Workbook

Sheet CoverSheet
A1: Journal of Industrial Ecology – www.wileyonlinelibrary.com/journal/jie
A3: SUPPORTING INFORMATION FOR:
A5: Citterio, C., Golinucci, N., Rinaldi, L. & Rocco, M. V. Carbon footprint of electricity: a systematic methodological and quantitative review. Journal of Industrial Ecology.
A9: This supporting information provides the values of carbon intensity by technology from the considered sources, and results of computations to obtain factors for country electricity generation. Summaries of statistical analysis are reported for each intensity indicator. "Data sources's details" extends Table 1 of the article.
A12: Sheets summary
A13: Direct Carbon Intensity by technology
A14: Statistic analysis DCI by technology
A15: Life Cycle Carbon Intensity by technology
A16: Statistic analysis LCCI by technology
A17: DCI by country 2017&2023
A18: LCCI by country 2017&2023
A19: Statistic analyisis national DCI 2017
A20: Statistic analyisis national DCI 2023
A21: Statistic analyisis national LCCI 2017
A22: Statistic analyisis national LCCI 2023
A23: Data sources' details

Sheet DCI by technology
A1: Source | B1: Technology_aggr | C1: Technology | D1: Country | E1: GWP100 | F1: Unit | G1: Notes | H1: Data from figure 1a in manuscript
A2: Electricity Maps | B2: Natural Gas | C2: NG | D2: AT | E2: 380 | F2: g/kWh | G2: EU-ETS, ENTSO-E 2023
A3: Electricity Maps | B3: Natural Gas | C3: NG | D3: CZ | E3: 364.25 | F3: g/kWh | G3: EU-ETS, ENTSO-E 2023
A4: Electricity Maps | B4: Natural Gas | C4: NG | D4: US | E4: 406.0342962 | F4: g/kWh | G4: eGrid 2020
A5: Electricity Maps | B5: Natural Gas | C5: NG | D5: NL | E5: 404.39 | F5: g/kWh | G5: EU-ETS, ENTSO-E 2023
A6: Electricity Maps | B6: Natural Gas | C6: NG | D6: IE | E6: 473.89 | F6: g/kWh | G6: EU-ETS, ENTSO-E 2023
A7: Electricity Maps | B7: Natural Gas | C7: NG | D7: BG | E7: 410.39 | F7: g/kWh | G7: EU-ETS, ENTSO-E 2023
A8: Electricity Maps | B8: Natural Gas | C8: NG | D8: CY | E8: 410.39 | F8: g/kWh | G8: EU-ETS, ENTSO-E 2023
A9: Electricity Maps | B9: Natural Gas | C9: NG | D9: EE | E9: 410.39 | F9: g/kWh | G9: EU-ETS, ENTSO-E 2023
A10: Electricity Maps | B10: Natural Gas | C10: NG | D10: HR | E10: 410.39 | F10: g/kWh | G10: EU-ETS, ENTSO-E 2023
A11: Electricity Maps | B11: Natural Gas | C11: NG | D11: LU | E11: 410.39 | F11: g/kWh | G11: EU-ETS, ENTSO-E 2023
A12: Electricity Maps | B12: Natural Gas | C12: NG | D12: MT | E12: 410.39 | F12: g/kWh | G12: EU-ETS, ENTSO-E 2023
A13: Electricity Maps | B13: Natural Gas | C13: NG | D13: SI | E13: 410.39 | F13: g/kWh | G13: EU-ETS, ENTSO-E 2023
A14: Electricity Maps | B14: Natural Gas | C14: NG | D14: EL | E14: 396.14 | F14: g/kWh | G14: EU-ETS, ENTSO-E 2023
A15: Electricity Maps | B15: Natural Gas | C15: NG | D15: BE | E15: 393.56 | F15: g/kWh | G15: EU-ETS, ENTSO-E 2023
A16: Electricity Maps | B16: Natural Gas | C16: NG | D16: PT | E16: 375.95 | F16: g/kWh | G16: EU-ETS, ENTSO-E 2023
A17: Electricity Maps | B17: Natural Gas | C17: NG | D17: SE | E17: 312.59 | F17: g/kWh | G17: EU-ETS, ENTSO-E 2023
A18: Electricity Maps | B18: Natural Gas | C18: NG | D18: IT | E18: 415.98 | F18: g/kWh | G18: EU-ETS, ENTSO-E 2023
A19: Electricity Maps | B19: Natural Gas | C19: NG | D19: DE | E19: 409.62 | F19: g/kWh | G19: EU-ETS, ENTSO-E 2023
A20: Electricity Maps | B20: Natural Gas | C20: NG | D20: DK | E20: 299.26 | F20: g/kWh | G20: EU-ETS, ENTSO-E 2023
A21: Electricity Maps | B21: Natural Gas | C21: NG | D21: SK | E21: 514.8 | F21: g/kWh | G21: EU-ETS, ENTSO-E 2023
A22: Electricity Maps | B22: Natural Gas | C22: NG | D22: FR | E22: 391.79 | F22: g/kWh | G22: EU-ETS, ENTSO-E 2023
A23: Electricity Maps | B23: Natural Gas | C23: NG | D23: ES | E23: 399.79 | F23: g/kWh | G23: EU-ETS, ENTSO-E 2023
A24: Electricity Maps | B24: Natural Gas | C24: NG | D24: LV | E24: 371.24 | F24: g/kWh | G24: EU-ETS, ENTSO-E 2023
A25: Electricity Maps | B25: Natural Gas | C25: NG | D25: HU | E25: 441.99 | F25: g/kWh | G25: EU-ETS, ENTSO-E 2023
A26: Electricity Maps | B26: Natural Gas | C26: NG | D26: RO | E26: 567.48 | F26: g/kWh | G26: EU-ETS, ENTSO-E 2023
A27: Electricity Maps | B27: Natural Gas | C27: NG | D27: LT | E27: 375.63 | F27: g/kWh | G27: EU-ETS, ENTSO-E 2023
A28: Electricity Maps | B28: Natural Gas | C28: NG | D28: PL | E28: 408.97 | F28: g/kWh | G28: EU-ETS, ENTSO-E 2023
A29: Electricity Maps | B29: Natural Gas | C29: NG | D29: FI | E29: 476.61 | F29: g/kWh | G29: EU-ETS, ENTSO-E 2023
A30: Electricity Maps | B30: Oil | C30: OI | D30: FR | E30: 657.06 | F30: g/kWh | G30: EU-ETS, ENTSO-E 2023
A31: Electricity Maps | B31: Oil | C31: OI | D31: AT | E31: 641.08 | F31: g/kWh | G31: EU-ETS, ENTSO-E 2023
A32: Electricity Maps | B32: Oil | C32: OI | D32: BE | E32: 641.08 | F32: g/kWh | G32: EU-ETS, ENTSO-E 2023
A33: Electricity Maps | B33: Oil | C33: OI | D33: CY | E33: 641.08 | F33: g/kWh | G33: EU-ETS, ENTSO-E 2023
A34: Electricity Maps | B34: Oil | C34: OI | D34: DE | E34: 641.08 | F34: g/kWh | G34: EU-ETS, ENTSO-E 2023
A35: Electricity Maps | B35: Oil | C35: OI | D35: DK | E35: 641.08 | F35: g/kWh | G35: EU-ETS, ENTSO-E 2023
A36: Electricity Maps | B36: Oil | C36: OI | D36: EE | E36: 641.08 | F36: g/kWh | G36: EU-ETS, ENTSO-E 2023
A37: Electricity Maps | B37: Oil | C37: OI | D37: ES | E37: 641.08 | F37: g/kWh | G37: EU-ETS, ENTSO-E 2023
A38: Electricity Maps | B38: Oil | C38: OI | D38: FI | E38: 641.08 | F38: g/kWh | G38: EU-ETS, ENTSO-E 2023
A39: Electricity Maps | B39: Oil | C39: OI | D39: HR | E39: 641.08 | F39: g/kWh | G39: EU-ETS, ENTSO-E 2023
A40: Electricity Maps | B40: Oil | C40: OI | D40: HU | E40: 641.08 | F40: g/kWh | G40: EU-ETS, ENTSO-E 2023
A41: Electricity Maps | B41: Oil | C41: OI | D41: IE | E41: 641.08 | F41: g/kWh | G41: EU-ETS, ENTSO-E 2023
A42: Electricity Maps | B42: Oil | C42: OI | D42: LV | E42: 641.08 | F42: g/kWh | G42: EU-ETS, ENTSO-E 2023
A43: Electricity Maps | B43: Oil | C43: OI | D43: MT | E43: 641.08 | F43: g/kWh | G43: EU-ETS, ENTSO-E 2023
A44: Electricity Maps | B44: Oil | C44: OI | D44: PL | E44: 641.08 | F44: g/kWh | G44: EU-ETS, ENTSO-E 2023
A45: Electricity Maps | B45: Oil | C45: OI | D45: RO | E45: 641.08 | F45: g/kWh | G45: EU-ETS, ENTSO-E 2023
A46: Electricity Maps | B46: Oil | C46: OI | D46: SI | E46: 641.08 | F46: g/kWh | G46: EU-ETS, ENTSO-E 2023
A47: Electricity Maps | B47: Oil | C47: OI | D47: SK | E47: 641.08 | F47: g/kWh | G47: EU-ETS, ENTSO-E 2023
A48: Electricity Maps | B48: Oil | C48: OI | D48: US | E48: 803.8986689 | F48: g/kWh | G48: eGrid 2020
A49: Electricity Maps | B49: Oil | C49: OI | D49: BG | E49: 925.95 | F49: g/kWh | G49: EU-ETS, ENTSO-E 2022
A50: Electricity Maps | B50: Oil | C50: OI | D50: CZ | E50: 925.95 | F50: g/kWh | G50: EU-ETS, ENTSO-E 2022
A51: Electricity Maps | B51: Oil | C51: OI | D51: EL | E51: 925.95 | F51: g/kWh | G51: EU-ETS, ENTSO-E 2022
A52: Electricity Maps | B52: Oil | C52: OI | D52: LT | E52: 925.95 | F52: g/kWh | G52: EU-ETS, ENTSO-E 2022
A53: Electricity Maps | B53: Oil | C53: OI | D53: LU | E53: 925.95 | F53: g/kWh | G53: EU-ETS, ENTSO-E 2022
A54: Electricity Maps | B54: Oil | C54: OI | D54: NL | E54: 925.95 | F54: g/kWh | G54: EU-ETS, ENTSO-E 2022
A55: Electricity Maps | B55: Oil | C55: OI | D55: PT | E55: 925.95 | F55: g/kWh | G55: EU-ETS, ENTSO-E 2022
A56: Electricity Maps | B56: Oil | C56: OI | D56: SE | E56: 373.49 | F56: g/kWh | G56: EU-ETS, ENTSO-E 2023
A57: Electricity Maps | B57: Oil | C57: OI | D57: IT | E57: 860.73 | F57: g/kWh | G57: EU-ETS, ENTSO-E 2023
A58: Electricity Maps | B58: Coal | C58: CO | D58: AT | E58: 1075.5 | F58: g/kWh | G58: EU-ETS, ENTSO-E 2022
A59: Electricity Maps | B59: Coal | C59: CO | D59: LU | E59: 1075.5 | F59: g/kWh | G59: EU-ETS, ENTSO-E 2022
A60: Electricity Maps | B60: Coal | C60: CO | D60: PT | E60: 1075.5 | F60: g/kWh | G60: EU-ETS, ENTSO-E 2022
A61: Electricity Maps | B61: Coal | C61: CO | D61: SE | E61: 1075.5 | F61: g/kWh | G61: EU-ETS, ENTSO-E 2022
A62: Electricity Maps | B62: Coal | C62: CO | D62: BE | E62: 1037.31 | F62: g/kWh | G62: EU-ETS, ENTSO-E 2023
A63: Electricity Maps | B63: Coal | C63: CO | D63: CY | E63: 1037.31 | F63: g/kWh | G63: EU-ETS, ENTSO-E 2023
A64: Electricity Maps | B64: Coal | C64: CO | D64: EE | E64: 1037.31 | F64: g/kWh | G64: EU-ETS, ENTSO-E 2023
A65: Electricity Maps | B65: Coal | C65: CO | D65: HR | E65: 1037.31 | F65: g/kWh | G65: EU-ETS, ENTSO-E 2023
A66: Electricity Maps | B66: Coal | C66: CO | D66: LT | E66: 1037.31 | F66: g/kWh | G66: EU-ETS, ENTSO-E 2023
A67: Electricity Maps | B67: Coal | C67: CO | D67: LV | E67: 1037.31 | F67: g/kWh | G67: EU-ETS, ENTSO-E 2023
A68: Electricity Maps | B68: Coal | C68: CO | D68: MT | E68: 1037.31 | F68: g/kWh | G68: EU-ETS, ENTSO-E 2023
A69: Electricity Maps | B69: Coal | C69: CO | D69: SI | E69: 1037.31 | F69: g/kWh | G69: EU-ETS, ENTSO-E 2023
A70: Electricity Maps | B70: Coal | C70: CO | D70: IT | E70: 1001.28 | F70: g/kWh | G70: EU-ETS, ENTSO-E 2023
A71: Electricity Maps | B71: Coal | C71: CO | D71: CZ | E71: 1051.99 | F71: g/kWh | G71: EU-ETS, ENTSO-E 2023
A72: Electricity Maps | B72: Coal | C72: CO | D72: NL | E72: 799.37 | F72: g/kWh | G72: EU-ETS, ENTSO-E 2023
A73: Electricity Maps | B73: Coal | C73: CO | D73: SK | E73: 764.9 | F73: g/kWh | G73: EU-ETS, ENTSO-E 2023
A74: Electricity Maps | B74: Coal | C74: CO | D74: ES | E74: 1221.36 | F74: g/kWh | G74: EU-ETS, ENTSO-E 2023
A75: Electricity Maps | B75: Coal | C75: CO | D75: BG | E75: 1123.53 | F75: g/kWh | G75: EU-ETS, ENTSO-E 2023
A76: Electricity Maps | B76: Coal | C76: CO | D76: EL | E76: 1218.46 | F76: g/kWh | G76: EU-ETS, ENTSO-E 2023
A77: Electricity Maps | B77: Coal | C77: CO | D77: US | E77: 989.615358 | F77: g/kWh | G77: eGrid 2020
A78: Electricity Maps | B78: Coal | C78: CO | D78: DK | E78: 720.51 | F78: g/kWh | G78: EU-ETS, ENTSO-E 2023
A79: Electricity Maps | B79: Coal | C79: CO | D79: FR | E79: 923.04 | F79: g/kWh | G79: EU-ETS, ENTSO-E 2023
A80: Electricity Maps | B80: Coal | C80: CO | D80: FI | E80: 718.07 | F80: g/kWh | G80: EU-ETS, ENTSO-E 2023
A81: Electricity Maps | B81: Coal | C81: CO | D81: IE | E81: 1201.64 | F81: g/kWh | G81: EU-ETS, ENTSO-E 2023
A82: Electricity Maps | B82: Coal | C82: CO | D82: HU | E82: 1231.95 | F82: g/kWh | G82: EU-ETS, ENTSO-E 2023
A83: Electricity Maps | B83: Coal | C83: CO | D83: RO | E83: 1224.26 | F83: g/kWh | G83: EU-ETS, ENTSO-E 2023
A84: Electricity Maps | B84: Coal | C84: CO | D84: DE | E84: 1018.94 | F84: g/kWh | G84: EU-ETS, ENTSO-E 2023
A85: Electricity Maps | B85: Coal | C85: CO | D85: PL | E85: 1078.88 | F85: g/kWh | G85: EU-ETS, ENTSO-E 2023
A86: Electricity Maps | B86: Wind | C86: WI | D86: AT | E86: 0 | F86: g/kWh | G86: IPCC 2014
A87: Electricity Maps | B87: Wind | C87: WI | D87: BE | E87: 0 | F87: g/kWh | G87: IPCC 2014
A88: Electricity Maps | B88: Wind | C88: WI | D88: BG | E88: 0 | F88: g/kWh | G88: IPCC 2014
A89: Electricity Maps | B89: Wind | C89: WI | D89: CY | E89: 0 | F89: g/kWh | G89: IPCC 2014
A90: Electricity Maps | B90: Wind | C90: WI | D90: CZ | E90: 0 | F90: g/kWh | G90: IPCC 2014
A91: Electricity Maps | B91: Wind | C91: WI | D91: DE | E91: 0 | F91: g/kWh | G91: IPCC 2014
A92: Electricity Maps | B92: Wind | C92: WI | D92: DK | E92: 0 | F92: g/kWh | G92: IPCC 2014
A93: Electricity Maps | B93: Wind | C93: WI | D93: EE | E93: 0 | F93: g/kWh | G93: IPCC 2014
A94: Electricity Maps | B94: Wind | C94: WI | D94: ES | E94: 0 | F94: g/kWh | G94: IPCC 2014
A95: Electricity Maps | B95: Wind | C95: WI | D95: FI | E95: 0 | F95: g/kWh | G95: IPCC 2014
A96: Electricity Maps | B96: Wind | C96: WI | D96: FR | E96: 0 | F96: g/kWh | G96: IPCC 2014
A97: Electricity Maps | B97: Wind | C97: WI | D97: EL | E97: 0 | F97: g/kWh | G97: IPCC 2014
A98: Electricity Maps | B98: Wind | C98: WI | D98: HR | E98: 0 | F98: g/kWh | G98: IPCC 2014
A99: Electricity Maps | B99: Wind | C99: WI | D99: HU | E99: 0 | F99: g/kWh | G99: IPCC 2014
A100: Electricity Maps | B100: Wind | C100: WI | D100: IE | E100: 0 | F100: g/kWh | G100: IPCC 2014
A101: Electricity Maps | B101: Wind | C101: WI | D101: IT | E101: 0 | F101: g/kWh | G101: IPCC 2014
A102: Electricity Maps | B102: Wind | C102: WI | D102: LT | E102: 0 | F102: g/kWh | G102: IPCC 2014
A103: Electricity Maps | B103: Wind | C103: WI | D103: LU | E103: 0 | F103: g/kWh | G103: IPCC 2014
A104: Electricity Maps | B104: Wind | C104: WI | D104: LV | E104: 0 | F104: g/kWh | G104: IPCC 2014
A105: Electricity Maps | B105: Wind | C105: WI | D105: MT | E105: 0 | F105: g/kWh | G105: IPCC 2014
A106: Electricity Maps | B106: Wind | C106: WI | D106: NL | E106: 0 | F106: g/kWh | G106: IPCC 2014
A107: Electricity Maps | B107: Wind | C107: WI | D107: PL | E107: 0 | F107: g/kWh | G107: IPCC 2014
A108: Electricity Maps | B108: Wind | C108: WI | D108: PT | E108: 0 | F108: g/kWh | G108: IPCC 2014
A109: Electricity Maps | B109: Wind | C109: WI | D109: RO | E109: 0 | F109: g/kWh | G109: IPCC 2014
A110: Electricity Maps | B110: Wind | C110: WI | D110: SE | E110: 0 | F110: g/kWh | G110: IPCC 2014
A111: Electricity Maps | B111: Wind | C111: WI | D111: SI | E111: 0 | F111: g/kWh | G111: IPCC 2014
A112: Electricity Maps | B112: Wind | C112: WI | D112: SK | E112: 0 | F112: g/kWh | G112: IPCC 2014
A113: Electricity Maps | B113: Wind | C113: WI | D113: US | E113: 0 | F113: g/kWh | G113: IPCC 2014
A114: Electricity Maps | B114: Hydro | C114: HY | D114: AT | E114: 0 | F114: g/kWh | G114: IPCC 2014
A115: Electricity Maps | B115: Hydro | C115: HY | D115: BE | E115: 0 | F115: g/kWh | G115: IPCC 2014
A116: Electricity Maps | B116: Hydro | C116: HY | D116: BG | E116: 0 | F116: g/kWh | G116: IPCC 2014
A117: Electricity Maps | B117: Hydro | C117: HY | D117: CY | E117: 0 | F117: g/kWh | G117: IPCC 2014
A118: Electricity Maps | B118: Hydro | C118: HY | D118: CZ | E118: 0 | F118: g/kWh | G118: IPCC 2014
A119: Electricity Maps | B119: Hydro | C119: HY | D119: DE | E119: 0 | F119: g/kWh | G119: IPCC 2014
A120: Electricity Maps | B120: Hydro | C120: HY | D120: DK | E120: 0 | F120: g/kWh | G120: IPCC 2014
A121: Electricity Maps | B121: Hydro | C121: HY | D121: EE | E121: 0 | F121: g/kWh | G121: IPCC 2014
A122: Electricity Maps | B122: Hydro | C122: HY | D122: ES | E122: 0 | F122: g/kWh | G122: IPCC 2014
A123: Electricity Maps | B123: Hydro | C123: HY | D123: FI | E123: 0 | F123: g/kWh | G123: IPCC 2014
A124: Electricity Maps | B124: Hydro | C124: HY | D124: FR | E124: 0 | F124: g/kWh | G124: IPCC 2014
A125: Electricity Maps | B125: Hydro | C125: HY | D125: EL | E125: 0 | F125: g/kWh | G125: IPCC 2014
A126: Electricity Maps | B126: Hydro | C126: HY | D126: HR | E126: 0 | F126: g/kWh | G126: IPCC 2014
A127: Electricity Maps | B127: Hydro | C127: HY | D127: HU | E127: 0 | F127: g/kWh | G127: IPCC 2014
A128: Electricity Maps | B128: Hydro | C128: HY | D128: IE | E128: 0 | F128: g/kWh | G128: IPCC 2014
A129: Electricity Maps | B129: Hydro | C129: HY | D129: IT | E129: 0 | F129: g/kWh | G129: IPCC 2014
A130: Electricity Maps | B130: Hydro | C130: HY | D130: LT | E130: 0 | F130: g/kWh | G130: IPCC 2014
A131: Electricity Maps | B131: Hydro | C131: HY | D131: LU | E131: 0 | F131: g/kWh | G131: IPCC 2014
A132: Electricity Maps | B132: Hydro | C132: HY | D132: LV | E132: 0 | F132: g/kWh | G132: IPCC 2014
A133: Electricity Maps | B133: Hydro | C133: HY | D133: MT | E133: 0 | F133: g/kWh | G133: IPCC 2014
A134: Electricity Maps | B134: Hydro | C134: HY | D134: NL | E134: 0 | F134: g/kWh | G134: IPCC 2014
A135: Electricity Maps | B135: Hydro | C135: HY | D135: PL | E135: 0 | F135: g/kWh | G135: IPCC 2014
A136: Electricity Maps | B136: Hydro | C136: HY | D136: PT | E136: 0 | F136: g/kWh | G136: IPCC 2014
A137: Electricity Maps | B137: Hydro | C137: HY | D137: RO | E137: 0 | F137: g/kWh | G137: IPCC 2014
A138: Electricity Maps | B138: Hydro | C138: HY | D138: SE | E138: 0 | F138: g/kWh | G138: IPCC 2014
A139: Electricity Maps | B139: Hydro | C139: HY | D139: SI | E139: 0 | F139: g/kWh | G139: IPCC 2014
A140: Electricity Maps | B140: Hydro | C140: HY | D140: SK | E140: 0 | F140: g/kWh | G140: IPCC 2014
A141: Electricity Maps | B141: Hydro | C141: HY | D141: US | E141: 0 | F141: g/kWh | G141: IPCC 2014
A142: Electricity Maps | B142: Solar | C142: SO | D142: AT | E142: 0 | F142: g/kWh | G142: IPCC 2014
A143: Electricity Maps | B143: Solar | C143: SO | D143: BE | E143: 0 | F143: g/kWh | G143: IPCC 2014
A144: Electricity Maps | B144: Solar | C144: SO | D144: BG | E144: 0 | F144: g/kWh | G144: IPCC 2014
A145: Electricity Maps | B145: Solar | C145: SO | D145: CY | E145: 0 | F145: g/kWh | G145: IPCC 2014
A146: Electricity Maps | B146: Solar | C146: SO | D146: CZ | E146: 0 | F146: g/kWh | G146: IPCC 2014
A147: Electricity Maps | B147: Solar | C147: SO | D147: DE | E147: 0 | F147: g/kWh | G147: IPCC 2014
A148: Electricity Maps | B148: Solar | C148: SO | D148: DK | E148: 0 | F148: g/kWh | G148: IPCC 2014
A149: Electricity Maps | B149: Solar | C149: SO | D149: EE | E149: 0 | F149: g/kWh | G149: IPCC 2014
A150: Electricity Maps | B150: Solar | C150: SO | D150: ES | E150: 0 | F150: g/kWh | G150: IPCC 2014
A151: Electricity Maps | B151: Solar | C151: SO | D151: FI | E151: 0 | F151: g/kWh | G151: IPCC 2014
A152: Electricity Maps | B152: Solar | C152: SO | D152: FR | E152: 0 | F152: g/kWh | G152: IPCC 2014
A153: Electricity Maps | B153: Solar | C153: SO | D153: EL | E153: 0 | F153: g/kWh | G153: IPCC 2014
A154: Electricity Maps | B154: Solar | C154: SO | D154: HR | E154: 0 | F154: g/kWh | G154: IPCC 2014
A155: Electricity Maps | B155: Solar | C155: SO | D155: HU | E155: 0 | F155: g/kWh | G155: IPCC 2014
A156: Electricity Maps | B156: Solar | C156: SO | D156: IE | E156: 0 | F156: g/kWh | G156: IPCC 2014
A157: Electricity Maps | B157: Solar | C157: SO | D157: IT | E157: 0 | F157: g/kWh | G157: IPCC 2014
A158: Electricity Maps | B158: Solar | C158: SO | D158: LT | E158: 0 | F158: g/kWh | G158: IPCC 2014
A159: Electricity Maps | B159: Solar | C159: SO | D159: LU | E159: 0 | F159: g/kWh | G159: IPCC 2014
A160: Electricity Maps | B160: Solar | C160: SO | D160: LV | E160: 0 | F160: g/kWh | G160: IPCC 2014
A161: Electricity Maps | B161: Solar | C161: SO | D161: MT | E161: 0 | F161: g/kWh | G161: IPCC 2014
A162: Electricity Maps | B162: Solar | C162: SO | D162: NL | E162: 0 | F162: g/kWh | G162: IPCC 2014
A163: Electricity Maps | B163: Solar | C163: SO | D163: PL | E163: 0 | F163: g/kWh | G163: IPCC 2014
A164: Electricity Maps | B164: Solar | C164: SO | D164: PT | E164: 0 | F164: g/kWh | G164: IPCC 2014
A165: Electricity Maps | B165: Solar | C165: SO | D165: RO | E165: 0 | F165: g/kWh | G165: IPCC 2014
A166: Electricity Maps | B166: Solar | C166: SO | D166: SE | E166: 0 | F166: g/kWh | G166: IPCC 2014
A167: Electricity Maps | B167: Solar | C167: SO | D167: SI | E167: 0 | F167: g/kWh | G167: IPCC 2014
A168: Electricity Maps | B168: Solar | C168: SO | D168: SK | E168: 0 | F168: g/kWh | G168: IPCC 2014
A169: Electricity Maps | B169: Solar | C169: SO | D169: US | E169: 0 | F169: g/kWh | G169: IPCC 2014
A170: Electricity Maps | B170: Biomass and waste | C170: BWB | D170: AT | E170: 0 | F170: g/kWh | G170: BEIS 2021
A171: Electricity Maps | B171: Biomass and waste | C171: BWB | D171: BE | E171: 0 | F171: g/kWh | G171: BEIS 2021
A172: Electricity Maps | B172: Biomass and waste | C172: BWB | D172: BG | E172: 0 | F172: g/kWh | G172: BEIS 2021
A173: Electricity Maps | B173: Biomass and waste | C173: BWB | D173: CY | E173: 0 | F173: g/kWh | G173: BEIS 2021
A174: Electricity Maps | B174: Biomass and waste | C174: BWB | D174: CZ | E174: 0 | F174: g/kWh | G174: BEIS 2021
A175: Electricity Maps | B175: Biomass and waste | C175: BWB | D175: DE | E175: 0 | F175: g/kWh | G175: BEIS 2021
A176: Electricity Maps | B176: Biomass and waste | C176: BWB | D176: DK | E176: 0 | F176: g/kWh | G176: BEIS 2021
A177: Electricity Maps | B177: Biomass and waste | C177: BWB | D177: EE | E177: 0 | F177: g/kWh | G177: BEIS 2021
A178: Electricity Maps | B178: Biomass and waste | C178: BWB | D178: ES | E178: 0 | F178: g/kWh | G178: BEIS 2021
A179: Electricity Maps | B179: Biomass and waste | C179: BWB | D179: FI | E179: 0 | F179: g/kWh | G179: BEIS 2021
A180: Electricity Maps | B180: Biomass and waste | C180: BWB | D180: FR | E180: 0 | F180: g/kWh | G180: BEIS 2021
A181: Electricity Maps | B181: Biomass and waste | C181: BWB | D181: EL | E181: 0 | F181: g/kWh | G181: BEIS 2021
A182: Electricity Maps | B182: Biomass and waste | C182: BWB | D182: HR | E182: 0 | F182: g/kWh | G182: BEIS 2021
A183: Electricity Maps | B183: Biomass and waste | C183: BWB | D183: HU | E183: 0 | F183: g/kWh | G183: BEIS 2021
A184: Electricity Maps | B184: Biomass and waste | C184: BWB | D184: IE | E184: 0 | F184: g/kWh | G184: BEIS 2021
A185: Electricity Maps | B185: Biomass and waste | C185: BWB | D185: IT | E185: 0 | F185: g/kWh | G185: BEIS 2021
A186: Electricity Maps | B186: Biomass and waste | C186: BWB | D186: LT | E186: 0 | F186: g/kWh | G186: BEIS 2021
A187: Electricity Maps | B187: Biomass and waste | C187: BWB | D187: LU | E187: 0 | F187: g/kWh | G187: BEIS 2021
A188: Electricity Maps | B188: Biomass and waste | C188: BWB | D188: LV | E188: 0 | F188: g/kWh | G188: BEIS 2021
A189: Electricity Maps | B189: Biomass and waste | C189: BWB | D189: MT | E189: 0 | F189: g/kWh | G189: BEIS 2021
A190: Electricity Maps | B190: Biomass and waste | C190: BWB | D190: NL | E190: 0 | F190: g/kWh | G190: EU-ETS 2021
A191: Electricity Maps | B191: Biomass and waste | C191: BWB | D191: PL | E191: 0 | F191: g/kWh | G191: BEIS 2021
A192: Electricity Maps | B192: Biomass and waste | C192: BWB | D192: PT | E192: 0 | F192: g/kWh | G192: BEIS 2021
A193: Electricity Maps | B193: Biomass and waste | C193: BWB | D193: RO | E193: 0 | F193: g/kWh | G193: BEIS 2021
A194: Electricity Maps | B194: Biomass and waste | C194: BWB | D194: SE | E194: 0 | F194: g/kWh | G194: BEIS 2021
A195: Electricity Maps | B195: Biomass and waste | C195: BWB | D195: SI | E195: 0 | F195: g/kWh | G195: BEIS 2021
A196: Electricity Maps | B196: Biomass and waste | C196: BWB | D196: SK | E196: 0 | F196: g/kWh | G196: BEIS 2021
A197: Electricity Maps | B197: Biomass and waste | C197: BWB | D197: US | E197: 0 | F197: g/kWh | G197: eGrid 2020
A198: Electricity Maps | B198: Nuclear | C198: NU | D198: AT | E198: 0 | F198: g/kWh | G198: IPCC 2014
A199: Electricity Maps | B199: Nuclear | C199: NU | D199: BE | E199: 0 | F199: g/kWh | G199: IPCC 2014
A200: Electricity Maps | B200: Nuclear | C200: NU | D200: BG | E200: 0 | F200: g/kWh | G200: IPCC 2014
... 278 more rows

Sheet Stat analysis DCI by tech
A1: Technology | B1: Source | C1: n | D1: Lower whisker (g/kWh) | E1: Q1 (g/kWh) | F1: Median (g/kWh) | G1: Q3 (g/kWh) | H1: Upper whisker (g/kWh) | I1: IQR (g/kWh) | J1: Mean (g/kWh) | K1: Std Dev (g/kWh) | L1: CV%
A2: Biomass and waste | B2: EXIO Hybrid | C2: 23 | D2: 0.5981668219 | E2: 2.30330928 | F2: 6.107401041 | G2: 10.87709682 | H2: 17.78695981 | I2: 8.573787544 | J2: 7.277602813 | K2: 5.488242434 | L2: 0.7541277773
A3: Biomass and waste | B3: Electricity Maps | C3: 28 | D3: 0 | E3: 0 | F3: 0 | G3: 0 | H3: 0 | I3: 0 | J3: 0 | K3: 0
A4: Coal | B4: EXIO Hybrid | C4: 23 | D4: 720.7722905 | E4: 889.8282803 | F4: 927.3420214 | G4: 1027.137376 | H4: 1204.071342 | I4: 137.3090956 | J4: 947.7173322 | K4: 107.7721257 | L4: 0.1137175844
A5: Coal | B5: Electricity Maps | C5: 28 | D5: 923.04 | E5: 1014.525 | F5: 1037.31 | G5: 1076.345 | H5: 1123.53 | I5: 61.82 | J5: 1031.72412 | K5: 140.2291653 | L5: 0.1359173083
A6: Coal | B6: IPCC | C6: 3 | D6: 670 | E6: 715 | F6: 760 | G6: 815 | H6: 870 | I6: 100 | J6: 766.6666667 | K6: 100.166528 | L6: 0.1306519931
A7: Geothermal | B7: EXIO Hybrid | C7: 4 | D7: 0.08518706382 | E7: 0.1011363084 | F7: 0.1725796392 | G7: 0.259736448 | H7: 0.3228261264 | I7: 0.1586001396 | J7: 0.1882931172 | K7: 0.1125008942 | L7: 0.5974774645
A8: Geothermal | B8: Electricity Maps | C8: 28 | D8: 0 | E8: 0 | F8: 0 | G8: 0 | H8: 0 | I8: 0 | J8: 2.531423261 | K8: 13.39503282 | L8: 5.291502622
A9: Hydro | B9: EXIO Hybrid | C9: 26 | D9: 0.01899359767 | E9: 0.08204608827 | F9: 0.1936497862 | G9: 0.4162487311 | H9: 0.7628862355 | I9: 0.3342026428 | J9: 0.2923762942 | K9: 0.2843147688 | L9: 0.9724275682
A10: Hydro | B10: Electricity Maps | C10: 28 | D10: 0 | E10: 0 | F10: 0 | G10: 0 | H10: 0 | I10: 0 | J10: 0 | K10: 0
A11: Natural Gas | B11: EXIO Hybrid | C11: 26 | D11: 468.3385912 | E11: 538.3050646 | F11: 632.424648 | G11: 671.203052 | H11: 794.7117353 | I11: 132.8979874 | J11: 654.5415115 | K11: 190.314573 | L11: 0.290760127
A12: Natural Gas | B12: Electricity Maps | C12: 28 | D12: 364.25 | E12: 388.8425 | F12: 409.295 | G12: 410.39 | H12: 441.99 | I12: 21.5475 | J12: 409.0247963 | K12: 52.65898396 | L12: 0.1287427668
A13: Natural Gas | B13: IPCC | C13: 3 | D13: 350 | E13: 360 | F13: 370 | G13: 430 | H13: 490 | I13: 70 | J13: 403.3333333 | K13: 75.71877794 | L13: 0.1877325073
A14: Nuclear | B14: EXIO Hybrid | C14: 14 | D14: 0.02112103732 | E14: 0.05526808381 | F14: 0.122290151 | G14: 0.2928551848 | H14: 0.4982238623 | I14: 0.2375871009 | J14: 0.1793690877 | K14: 0.1477235699 | L14: 0.8235731798
A15: Nuclear | B15: Electricity Maps | C15: 28 | D15: 0 | E15: 0 | F15: 0 | G15: 0 | H15: 0 | I15: 0 | J15: 0 | K15: 0
A16: Oil | B16: EXIO Hybrid | C16: 28 | D16: 509.2138911 | E16: 667.6684804 | F16: 757.5486521 | G16: 827.1848699 | H16: 980.7302691 | I16: 159.5163895 | J16: 774.0517902 | K16: 156.4668625 | L16: 0.2021400435
A17: Oil | B17: Electricity Maps | C17: 28 | D17: 373.49 | E17: 641.08 | F17: 641.08 | G17: 877.035 | H17: 925.95 | I17: 235.955 | J17: 716.9710239 | K17: 143.1662719 | L17: 0.1996820891
A18: Solar | B18: EXIO Hybrid | C18: 19 | D18: 6.158574988e-05 | E18: 0.0005396205874 | F18: 0.008503374162 | G18: 0.07153610177 | H18: 0.1024436951 | I18: 0.07099648119 | J18: 0.04949528546 | K18: 0.07464071491 | L18: 1.508036861
A19: Solar | B19: Electricity Maps | C19: 28 | D19: 0 | E19: 0 | F19: 0 | G19: 0 | H19: 0 | I19: 0 | J19: 0 | K19: 0
A20: Tide and wave | B20: EXIO Hybrid | C20: 1 | D20: 0.03742949832 | E20: 0.03742949832 | F20: 0.03742949832 | G20: 0.03742949832 | H20: 0.03742949832 | I20: 0 | J20: 0.03742949832 | L20: 0
A21: Wind | B21: EXIO Hybrid | C21: 25 | D21: 0.001025842431 | E21: 0.03032348595 | F21: 0.08145250005 | G21: 0.150907587 | H21: 0.2628524402 | I21: 0.1205841011 | J21: 0.1519642298 | K21: 0.2137187786 | L21: 1.406375559
A22: Wind | B22: Electricity Maps | C22: 28 | D22: 0 | E22: 0 | F22: 0 | G22: 0 | H22: 0 | I22: 0 | J22: 0 | K22: 0
A24: IEA values are not shown due to license restrictions

Sheet LCCI by technology
A1: Source | B1: Technology_aggr | C1: Technology | D1: Country | E1: GWP100 | F1: Unit | G1: Notes | H1: Data from figure 1b in manuscript
A2: Electricity Maps | B2: Natural Gas | C2: NG | D2: AT | E2: 500 | F2: g/kWh | G2: EU-ETS, ENTSO-E 2023; IPCC 2014
A3: Electricity Maps | B3: Natural Gas | C3: NG | D3: CZ | E3: 484.25 | F3: g/kWh | G3: EU-ETS, ENTSO-E 2023; IPCC 2014
A4: Electricity Maps | B4: Natural Gas | C4: NG | D4: BE | E4: 513.56 | F4: g/kWh | G4: EU-ETS, ENTSO-E 2023; IPCC 2014
A5: Electricity Maps | B5: Natural Gas | C5: NG | D5: DE | E5: 529.62 | F5: g/kWh | G5: EU-ETS, ENTSO-E 2023; IPCC 2014
A6: Electricity Maps | B6: Natural Gas | C6: NG | D6: PT | E6: 495.95 | F6: g/kWh | G6: EU-ETS, ENTSO-E 2023; IPCC 2014
A7: Electricity Maps | B7: Natural Gas | C7: NG | D7: SE | E7: 432.59 | F7: g/kWh | G7: EU-ETS, ENTSO-E 2023; IPCC 2014
A8: Electricity Maps | B8: Natural Gas | C8: NG | D8: HU | E8: 561.99 | F8: g/kWh | G8: EU-ETS, ENTSO-E 2023; IPCC 2014
A9: Electricity Maps | B9: Natural Gas | C9: NG | D9: DK | E9: 419.26 | F9: g/kWh | G9: EU-ETS, ENTSO-E 2023; IPCC 2014
A10: Electricity Maps | B10: Natural Gas | C10: NG | D10: SK | E10: 634.8 | F10: g/kWh | G10: EU-ETS, ENTSO-E 2023; IPCC 2014
A11: Electricity Maps | B11: Natural Gas | C11: NG | D11: FR | E11: 511.79 | F11: g/kWh | G11: EU-ETS, ENTSO-E 2023; IPCC 2014
A12: Electricity Maps | B12: Natural Gas | C12: NG | D12: FI | E12: 596.61 | F12: g/kWh | G12: EU-ETS, ENTSO-E 2023; IPCC 2014
A13: Electricity Maps | B13: Natural Gas | C13: NG | D13: EL | E13: 516.14 | F13: g/kWh | G13: EU-ETS, ENTSO-E 2023; IPCC 2014
A14: Electricity Maps | B14: Natural Gas | C14: NG | D14: NL | E14: 524.39 | F14: g/kWh | G14: EU-ETS, ENTSO-E 2023; IPCC 2014
A15: Electricity Maps | B15: Natural Gas | C15: NG | D15: IE | E15: 593.89 | F15: g/kWh | G15: EU-ETS, ENTSO-E 2023; IPCC 2014
A16: Electricity Maps | B16: Natural Gas | C16: NG | D16: BG | E16: 530.39 | F16: g/kWh | G16: EU-ETS, ENTSO-E 2023; IPCC 2014
A17: Electricity Maps | B17: Natural Gas | C17: NG | D17: CY | E17: 530.39 | F17: g/kWh | G17: EU-ETS, ENTSO-E 2023; IPCC 2014
A18: Electricity Maps | B18: Natural Gas | C18: NG | D18: EE | E18: 530.39 | F18: g/kWh | G18: EU-ETS, ENTSO-E 2023; IPCC 2014
A19: Electricity Maps | B19: Natural Gas | C19: NG | D19: HR | E19: 530.39 | F19: g/kWh | G19: EU-ETS, ENTSO-E 2023; IPCC 2014
A20: Electricity Maps | B20: Natural Gas | C20: NG | D20: LU | E20: 530.39 | F20: g/kWh | G20: EU-ETS, ENTSO-E 2023; IPCC 2014
A21: Electricity Maps | B21: Natural Gas | C21: NG | D21: MT | E21: 530.39 | F21: g/kWh | G21: EU-ETS, ENTSO-E 2023; IPCC 2014
A22: Electricity Maps | B22: Natural Gas | C22: NG | D22: SI | E22: 530.39 | F22: g/kWh | G22: EU-ETS, ENTSO-E 2023; IPCC 2014
A23: Electricity Maps | B23: Natural Gas | C23: NG | D23: RO | E23: 687.48 | F23: g/kWh | G23: EU-ETS, ENTSO-E 2023; IPCC 2014
A24: Electricity Maps | B24: Natural Gas | C24: NG | D24: LV | E24: 491.24 | F24: g/kWh | G24: EU-ETS, ENTSO-E 2023; IPCC 2014
A25: Electricity Maps | B25: Natural Gas | C25: NG | D25: IT | E25: 535.98 | F25: g/kWh | G25: EU-ETS, ENTSO-E 2023; IPCC 2014
A26: Electricity Maps | B26: Natural Gas | C26: NG | D26: LT | E26: 495.63 | F26: g/kWh | G26: EU-ETS, ENTSO-E 2023; IPCC 2014
A27: Electricity Maps | B27: Natural Gas | C27: NG | D27: ES | E27: 519.79 | F27: g/kWh | G27: EU-ETS, ENTSO-E 2023; IPCC 2014
A28: Electricity Maps | B28: Natural Gas | C28: NG | D28: PL | E28: 528.97 | F28: g/kWh | G28: EU-ETS, ENTSO-E 2023; IPCC 2014
A29: Electricity Maps | B29: Oil | C29: OI | D29: FR | E29: 901.06 | F29: g/kWh | G29: EU-ETS, ENTSO-E 2023; IPCC 2014
A30: Electricity Maps | B30: Oil | C30: OI | D30: IT | E30: 1104.73 | F30: g/kWh | G30: EU-ETS, ENTSO-E 2023; IPCC 2014
A31: Electricity Maps | B31: Oil | C31: OI | D31: SE | E31: 617.49 | F31: g/kWh | G31: EU-ETS, ENTSO-E 2023; IPCC 2014
A32: Electricity Maps | B32: Oil | C32: OI | D32: AT | E32: 885.08 | F32: g/kWh | G32: EU-ETS, ENTSO-E 2023; IPCC 2014
A33: Electricity Maps | B33: Oil | C33: OI | D33: BE | E33: 885.08 | F33: g/kWh | G33: EU-ETS, ENTSO-E 2023; IPCC 2014
A34: Electricity Maps | B34: Oil | C34: OI | D34: CY | E34: 885.08 | F34: g/kWh | G34: EU-ETS, ENTSO-E 2023; IPCC 2014
A35: Electricity Maps | B35: Oil | C35: OI | D35: DE | E35: 885.08 | F35: g/kWh | G35: EU-ETS, ENTSO-E 2023; IPCC 2014
A36: Electricity Maps | B36: Oil | C36: OI | D36: DK | E36: 885.08 | F36: g/kWh | G36: EU-ETS, ENTSO-E 2023; IPCC 2014
A37: Electricity Maps | B37: Oil | C37: OI | D37: EE | E37: 885.08 | F37: g/kWh | G37: EU-ETS, ENTSO-E 2023; IPCC 2014
A38: Electricity Maps | B38: Oil | C38: OI | D38: ES | E38: 885.08 | F38: g/kWh | G38: EU-ETS, ENTSO-E 2023; IPCC 2014
A39: Electricity Maps | B39: Oil | C39: OI | D39: FI | E39: 885.08 | F39: g/kWh | G39: EU-ETS, ENTSO-E 2023; IPCC 2014
A40: Electricity Maps | B40: Oil | C40: OI | D40: HR | E40: 885.08 | F40: g/kWh | G40: EU-ETS, ENTSO-E 2023; IPCC 2014
A41: Electricity Maps | B41: Oil | C41: OI | D41: HU | E41: 885.08 | F41: g/kWh | G41: EU-ETS, ENTSO-E 2023; IPCC 2014
A42: Electricity Maps | B42: Oil | C42: OI | D42: IE | E42: 885.08 | F42: g/kWh | G42: EU-ETS, ENTSO-E 2023; IPCC 2014
A43: Electricity Maps | B43: Oil | C43: OI | D43: LV | E43: 885.08 | F43: g/kWh | G43: EU-ETS, ENTSO-E 2023; IPCC 2014
A44: Electricity Maps | B44: Oil | C44: OI | D44: MT | E44: 885.08 | F44: g/kWh | G44: EU-ETS, ENTSO-E 2023; IPCC 2014
A45: Electricity Maps | B45: Oil | C45: OI | D45: PL | E45: 885.08 | F45: g/kWh | G45: EU-ETS, ENTSO-E 2023; IPCC 2014
A46: Electricity Maps | B46: Oil | C46: OI | D46: RO | E46: 885.08 | F46: g/kWh | G46: EU-ETS, ENTSO-E 2023; IPCC 2014
A47: Electricity Maps | B47: Oil | C47: OI | D47: SI | E47: 885.08 | F47: g/kWh | G47: EU-ETS, ENTSO-E 2023; IPCC 2014
A48: Electricity Maps | B48: Oil | C48: OI | D48: SK | E48: 885.08 | F48: g/kWh | G48: EU-ETS, ENTSO-E 2023; IPCC 2014
A49: Electricity Maps | B49: Oil | C49: OI | D49: BG | E49: 1169.95 | F49: g/kWh | G49: EU-ETS, ENTSO-E 2022; IPCC 2014
A50: Electricity Maps | B50: Oil | C50: OI | D50: CZ | E50: 1169.95 | F50: g/kWh | G50: EU-ETS, ENTSO-E 2022; IPCC 2014
A51: Electricity Maps | B51: Oil | C51: OI | D51: EL | E51: 1169.95 | F51: g/kWh | G51: EU-ETS, ENTSO-E 2022; IPCC 2014
A52: Electricity Maps | B52: Oil | C52: OI | D52: LT | E52: 1169.95 | F52: g/kWh | G52: EU-ETS, ENTSO-E 2022; IPCC 2014
A53: Electricity Maps | B53: Oil | C53: OI | D53: LU | E53: 1169.95 | F53: g/kWh | G53: EU-ETS, ENTSO-E 2022; IPCC 2014
A54: Electricity Maps | B54: Oil | C54: OI | D54: NL | E54: 1169.95 | F54: g/kWh | G54: EU-ETS, ENTSO-E 2022; IPCC 2014
A55: Electricity Maps | B55: Oil | C55: OI | D55: PT | E55: 1169.95 | F55: g/kWh | G55: EU-ETS, ENTSO-E 2022; IPCC 2014
A56: Electricity Maps | B56: Coal | C56: CO | D56: LU | E56: 1135.5 | F56: g/kWh | G56: EU-ETS, ENTSO-E 2022; IPCC 2014
A57: Electricity Maps | B57: Coal | C57: CO | D57: BE | E57: 1097.31 | F57: g/kWh | G57: EU-ETS, ENTSO-E 2023; IPCC 2014
A58: Electricity Maps | B58: Coal | C58: CO | D58: CY | E58: 1097.31 | F58: g/kWh | G58: EU-ETS, ENTSO-E 2023; IPCC 2014
A59: Electricity Maps | B59: Coal | C59: CO | D59: EE | E59: 1097.31 | F59: g/kWh | G59: EU-ETS, ENTSO-E 2023; IPCC 2014
A60: Electricity Maps | B60: Coal | C60: CO | D60: HR | E60: 1097.31 | F60: g/kWh | G60: EU-ETS, ENTSO-E 2023; IPCC 2014
A61: Electricity Maps | B61: Coal | C61: CO | D61: LT | E61: 1097.31 | F61: g/kWh | G61: EU-ETS, ENTSO-E 2023; IPCC 2014
A62: Electricity Maps | B62: Coal | C62: CO | D62: LV | E62: 1097.31 | F62: g/kWh | G62: EU-ETS, ENTSO-E 2023; IPCC 2014
A63: Electricity Maps | B63: Coal | C63: CO | D63: MT | E63: 1097.31 | F63: g/kWh | G63: EU-ETS, ENTSO-E 2023; IPCC 2014
A64: Electricity Maps | B64: Coal | C64: CO | D64: SI | E64: 1097.31 | F64: g/kWh | G64: EU-ETS, ENTSO-E 2023; IPCC 2014
A65: Electricity Maps | B65: Coal | C65: CO | D65: CZ | E65: 1111.99 | F65: g/kWh | G65: EU-ETS, ENTSO-E 2023; IPCC 2014
A66: Electricity Maps | B66: Coal | C66: CO | D66: NL | E66: 859.37 | F66: g/kWh | G66: EU-ETS, ENTSO-E 2023; IPCC 2014
A67: Electricity Maps | B67: Coal | C67: CO | D67: SE | E67: 1171.867209 | F67: g/kWh | G67: EU-ETS, ENTSO-E 2022; Oberschelp, Christopher, et al. "Global emission hotspots of coal power generation."
A68: Electricity Maps | B68: Coal | C68: CO | D68: SK | E68: 824.9 | F68: g/kWh | G68: EU-ETS, ENTSO-E 2023; IPCC 2014
A69: Electricity Maps | B69: Coal | C69: CO | D69: ES | E69: 1281.36 | F69: g/kWh | G69: EU-ETS, ENTSO-E 2023; IPCC 2014
A70: Electricity Maps | B70: Coal | C70: CO | D70: AT | E70: 1187.127343 | F70: g/kWh | G70: EU-ETS, ENTSO-E 2022; Oberschelp, Christopher, et al. "Global emission hotspots of coal power generation."
A71: Electricity Maps | B71: Coal | C71: CO | D71: BG | E71: 1183.53 | F71: g/kWh | G71: EU-ETS, ENTSO-E 2023; IPCC 2014
A72: Electricity Maps | B72: Coal | C72: CO | D72: IT | E72: 1061.28 | F72: g/kWh | G72: EU-ETS, ENTSO-E 2023; IPCC 2014
A73: Electricity Maps | B73: Coal | C73: CO | D73: EL | E73: 1278.46 | F73: g/kWh | G73: EU-ETS, ENTSO-E 2023; IPCC 2014
A74: Electricity Maps | B74: Coal | C74: CO | D74: PT | E74: 1118.213761 | F74: g/kWh | G74: EU-ETS, ENTSO-E 2022; Oberschelp, Christopher, et al. "Global emission hotspots of coal power generation."
A75: Electricity Maps | B75: Coal | C75: CO | D75: DK | E75: 780.51 | F75: g/kWh | G75: EU-ETS, ENTSO-E 2023; IPCC 2014
A76: Electricity Maps | B76: Coal | C76: CO | D76: FR | E76: 983.04 | F76: g/kWh | G76: EU-ETS, ENTSO-E 2023; IPCC 2014
A77: Electricity Maps | B77: Coal | C77: CO | D77: FI | E77: 778.07 | F77: g/kWh | G77: EU-ETS, ENTSO-E 2023; IPCC 2014
A78: Electricity Maps | B78: Coal | C78: CO | D78: IE | E78: 1261.64 | F78: g/kWh | G78: EU-ETS, ENTSO-E 2023; IPCC 2014
A79: Electricity Maps | B79: Coal | C79: CO | D79: HU | E79: 1291.95 | F79: g/kWh | G79: EU-ETS, ENTSO-E 2023; IPCC 2014
A80: Electricity Maps | B80: Coal | C80: CO | D80: RO | E80: 1284.26 | F80: g/kWh | G80: EU-ETS, ENTSO-E 2023; IPCC 2014
A81: Electricity Maps | B81: Coal | C81: CO | D81: PL | E81: 1138.88 | F81: g/kWh | G81: EU-ETS, ENTSO-E 2023; IPCC 2014
A82: Electricity Maps | B82: Coal | C82: CO | D82: DE | E82: 1078.94 | F82: g/kWh | G82: EU-ETS, ENTSO-E 2023; IPCC 2014
A83: Electricity Maps | B83: Wind | C83: WI | D83: AT | E83: 12.62 | F83: g/kWh | G83: UNECE 2022, WindEurope "Wind energy in Europe, 2021 Statistics and the outlook for 2022-2026" Wind Europe Proceedings (2021)
A84: Electricity Maps | B84: Wind | C84: WI | D84: BE | E84: 12.62 | F84: g/kWh | G84: UNECE 2022, WindEurope "Wind energy in Europe, 2021 Statistics and the outlook for 2022-2026" Wind Europe Proceedings (2021)
A85: Electricity Maps | B85: Wind | C85: WI | D85: BG | E85: 12.62 | F85: g/kWh | G85: UNECE 2022, WindEurope "Wind energy in Europe, 2021 Statistics and the outlook for 2022-2026" Wind Europe Proceedings (2021)
A86: Electricity Maps | B86: Wind | C86: WI | D86: CY | E86: 12.62 | F86: g/kWh | G86: UNECE 2022, WindEurope "Wind energy in Europe, 2021 Statistics and the outlook for 2022-2026" Wind Europe Proceedings (2021)
A87: Electricity Maps | B87: Wind | C87: WI | D87: CZ | E87: 12.62 | F87: g/kWh | G87: UNECE 2022, WindEurope "Wind energy in Europe, 2021 Statistics and the outlook for 2022-2026" Wind Europe Proceedings (2021)
A88: Electricity Maps | B88: Wind | C88: WI | D88: DE | E88: 12.62 | F88: g/kWh | G88: UNECE 2022, WindEurope "Wind energy in Europe, 2021 Statistics and the outlook for 2022-2026" Wind Europe Proceedings (2021)
A89: Electricity Maps | B89: Wind | C89: WI | D89: DK | E89: 12.62 | F89: g/kWh | G89: UNECE 2022, WindEurope "Wind energy in Europe, 2021 Statistics and the outlook for 2022-2026" Wind Europe Proceedings (2021)
A90: Electricity Maps | B90: Wind | C90: WI | D90: EE | E90: 12.62 | F90: g/kWh | G90: UNECE 2022, WindEurope "Wind energy in Europe, 2021 Statistics and the outlook for 2022-2026" Wind Europe Proceedings (2021)
A91: Electricity Maps | B91: Wind | C91: WI | D91: ES | E91: 12.62 | F91: g/kWh | G91: UNECE 2022, WindEurope "Wind energy in Europe, 2021 Statistics and the outlook for 2022-2026" Wind Europe Proceedings (2021)
A92: Electricity Maps | B92: Wind | C92: WI | D92: FI | E92: 12.62 | F92: g/kWh | G92: UNECE 2022, WindEurope "Wind energy in Europe, 2021 Statistics and the outlook for 2022-2026" Wind Europe Proceedings (2021)
A93: Electricity Maps | B93: Wind | C93: WI | D93: FR | E93: 12.62 | F93: g/kWh | G93: UNECE 2022, WindEurope "Wind energy in Europe, 2021 Statistics and the outlook for 2022-2026" Wind Europe Proceedings (2021)
A94: Electricity Maps | B94: Wind | C94: WI | D94: EL | E94: 12.62 | F94: g/kWh | G94: UNECE 2022, WindEurope "Wind energy in Europe, 2021 Statistics and the outlook for 2022-2026" Wind Europe Proceedings (2021)
A95: Electricity Maps | B95: Wind | C95: WI | D95: HR | E95: 12.62 | F95: g/kWh | G95: UNECE 2022, WindEurope "Wind energy in Europe, 2021 Statistics and the outlook for 2022-2026" Wind Europe Proceedings (2021)
A96: Electricity Maps | B96: Wind | C96: WI | D96: HU | E96: 12.62 | F96: g/kWh | G96: UNECE 2022, WindEurope "Wind energy in Europe, 2021 Statistics and the outlook for 2022-2026" Wind Europe Proceedings (2021)
A97: Electricity Maps | B97: Wind | C97: WI | D97: IE | E97: 12.62 | F97: g/kWh | G97: UNECE 2022, WindEurope "Wind energy in Europe, 2021 Statistics and the outlook for 2022-2026" Wind Europe Proceedings (2021)
A98: Electricity Maps | B98: Wind | C98: WI | D98: IT | E98: 12.62 | F98: g/kWh | G98: UNECE 2022, WindEurope "Wind energy in Europe, 2021 Statistics and the outlook for 2022-2026" Wind Europe Proceedings (2021)
A99: Electricity Maps | B99: Wind | C99: WI | D99: LT | E99: 12.62 | F99: g/kWh | G99: UNECE 2022, WindEurope "Wind energy in Europe, 2021 Statistics and the outlook for 2022-2026" Wind Europe Proceedings (2021)
A100: Electricity Maps | B100: Wind | C100: WI | D100: LU | E100: 12.62 | F100: g/kWh | G100: UNECE 2022, WindEurope "Wind energy in Europe, 2021 Statistics and the outlook for 2022-2026" Wind Europe Proceedings (2021)
A101: Electricity Maps | B101: Wind | C101: WI | D101: LV | E101: 12.62 | F101: g/kWh | G101: UNECE 2022, WindEurope "Wind energy in Europe, 2021 Statistics and the outlook for 2022-2026" Wind Europe Proceedings (2021)
A102: Electricity Maps | B102: Wind | C102: WI | D102: MT | E102: 12.62 | F102: g/kWh | G102: UNECE 2022, WindEurope "Wind energy in Europe, 2021 Statistics and the outlook for 2022-2026" Wind Europe Proceedings (2021)
A103: Electricity Maps | B103: Wind | C103: WI | D103: NL | E103: 12.62 | F103: g/kWh | G103: UNECE 2022, WindEurope "Wind energy in Europe, 2021 Statistics and the outlook for 2022-2026" Wind Europe Proceedings (2021)
A104: Electricity Maps | B104: Wind | C104: WI | D104: PL | E104: 12.62 | F104: g/kWh | G104: UNECE 2022, WindEurope "Wind energy in Europe, 2021 Statistics and the outlook for 2022-2026" Wind Europe Proceedings (2021)
A105: Electricity Maps | B105: Wind | C105: WI | D105: PT | E105: 12.62 | F105: g/kWh | G105: UNECE 2022, WindEurope "Wind energy in Europe, 2021 Statistics and the outlook for 2022-2026" Wind Europe Proceedings (2021)
A106: Electricity Maps | B106: Wind | C106: WI | D106: RO | E106: 12.62 | F106: g/kWh | G106: UNECE 2022, WindEurope "Wind energy in Europe, 2021 Statistics and the outlook for 2022-2026" Wind Europe Proceedings (2021)
A107: Electricity Maps | B107: Wind | C107: WI | D107: SE | E107: 12.62 | F107: g/kWh | G107: UNECE 2022, WindEurope "Wind energy in Europe, 2021 Statistics and the outlook for 2022-2026" Wind Europe Proceedings (2021)
A108: Electricity Maps | B108: Wind | C108: WI | D108: SI | E108: 12.62 | F108: g/kWh | G108: UNECE 2022, WindEurope "Wind energy in Europe, 2021 Statistics and the outlook for 2022-2026" Wind Europe Proceedings (2021)
A109: Electricity Maps | B109: Wind | C109: WI | D109: SK | E109: 12.62 | F109: g/kWh | G109: UNECE 2022, WindEurope "Wind energy in Europe, 2021 Statistics and the outlook for 2022-2026" Wind Europe Proceedings (2021)
A110: Electricity Maps | B110: Hydro | C110: HY | D110: AT | E110: 10.7 | F110: g/kWh | G110: UNECE 2022
A111: Electricity Maps | B111: Hydro | C111: HY | D111: BE | E111: 10.7 | F111: g/kWh | G111: UNECE 2022
A112: Electricity Maps | B112: Hydro | C112: HY | D112: BG | E112: 10.7 | F112: g/kWh | G112: UNECE 2022
A113: Electricity Maps | B113: Hydro | C113: HY | D113: CY | E113: 10.7 | F113: g/kWh | G113: UNECE 2022
A114: Electricity Maps | B114: Hydro | C114: HY | D114: CZ | E114: 10.7 | F114: g/kWh | G114: UNECE 2022
A115: Electricity Maps | B115: Hydro | C115: HY | D115: DE | E115: 10.7 | F115: g/kWh | G115: UNECE 2022
A116: Electricity Maps | B116: Hydro | C116: HY | D116: DK | E116: 10.7 | F116: g/kWh | G116: UNECE 2022
A117: Electricity Maps | B117: Hydro | C117: HY | D117: EE | E117: 10.7 | F117: g/kWh | G117: UNECE 2022
A118: Electricity Maps | B118: Hydro | C118: HY | D118: ES | E118: 10.7 | F118: g/kWh | G118: UNECE 2022
A119: Electricity Maps | B119: Hydro | C119: HY | D119: FI | E119: 10.7 | F119: g/kWh | G119: UNECE 2022
A120: Electricity Maps | B120: Hydro | C120: HY | D120: FR | E120: 10.7 | F120: g/kWh | G120: UNECE 2022
A121: Electricity Maps | B121: Hydro | C121: HY | D121: EL | E121: 10.7 | F121: g/kWh | G121: UNECE 2022
A122: Electricity Maps | B122: Hydro | C122: HY | D122: HR | E122: 10.7 | F122: g/kWh | G122: UNECE 2022
A123: Electricity Maps | B123: Hydro | C123: HY | D123: HU | E123: 10.7 | F123: g/kWh | G123: UNECE 2022
A124: Electricity Maps | B124: Hydro | C124: HY | D124: IE | E124: 10.7 | F124: g/kWh | G124: UNECE 2022
A125: Electricity Maps | B125: Hydro | C125: HY | D125: IT | E125: 10.7 | F125: g/kWh | G125: UNECE 2022
A126: Electricity Maps | B126: Hydro | C126: HY | D126: LT | E126: 10.7 | F126: g/kWh | G126: UNECE 2022
A127: Electricity Maps | B127: Hydro | C127: HY | D127: LU | E127: 10.7 | F127: g/kWh | G127: UNECE 2022
A128: Electricity Maps | B128: Hydro | C128: HY | D128: LV | E128: 10.7 | F128: g/kWh | G128: UNECE 2022
A129: Electricity Maps | B129: Hydro | C129: HY | D129: MT | E129: 10.7 | F129: g/kWh | G129: UNECE 2022
A130: Electricity Maps | B130: Hydro | C130: HY | D130: NL | E130: 10.7 | F130: g/kWh | G130: UNECE 2022
A131: Electricity Maps | B131: Hydro | C131: HY | D131: PL | E131: 10.7 | F131: g/kWh | G131: UNECE 2022
A132: Electricity Maps | B132: Hydro | C132: HY | D132: PT | E132: 10.7 | F132: g/kWh | G132: UNECE 2022
A133: Electricity Maps | B133: Hydro | C133: HY | D133: RO | E133: 10.7 | F133: g/kWh | G133: UNECE 2022
A134: Electricity Maps | B134: Hydro | C134: HY | D134: SE | E134: 10.7 | F134: g/kWh | G134: UNECE 2022
A135: Electricity Maps | B135: Hydro | C135: HY | D135: SI | E135: 10.7 | F135: g/kWh | G135: UNECE 2022
A136: Electricity Maps | B136: Hydro | C136: HY | D136: SK | E136: 10.7 | F136: g/kWh | G136: UNECE 2022
A137: Electricity Maps | B137: Solar | C137: SO | D137: AT | E137: 31 | F137: g/kWh | G137: INCER ACV
A138: Electricity Maps | B138: Solar | C138: SO | D138: BE | E138: 36 | F138: g/kWh | G138: INCER ACV
A139: Electricity Maps | B139: Solar | C139: SO | D139: EE | E139: 36.5 | F139: g/kWh | G139: INCER ACV
A140: Electricity Maps | B140: Solar | C140: SO | D140: NL | E140: 36.5 | F140: g/kWh | G140: INCER ACV
A141: Electricity Maps | B141: Solar | C141: SO | D141: SK | E141: 33 | F141: g/kWh | G141: INCER ACV
A142: Electricity Maps | B142: Solar | C142: SO | D142: FI | E142: 45 | F142: g/kWh | G142: IPCC 2014
A143: Electricity Maps | B143: Solar | C143: SO | D143: LU | E143: 45 | F143: g/kWh | G143: IPCC 2014
A144: Electricity Maps | B144: Solar | C144: SO | D144: MT | E144: 45 | F144: g/kWh | G144: IPCC 2014
A145: Electricity Maps | B145: Solar | C145: SO | D145: SE | E145: 40.81666667 | F145: g/kWh | G145: INCER ACV
A146: Electricity Maps | B146: Solar | C146: SO | D146: CZ | E146: 34.33333333 | F146: g/kWh | G146: INCER ACV
A147: Electricity Maps | B147: Solar | C147: SO | D147: FR | E147: 30.075 | F147: g/kWh | G147: INCER ACV
A148: Electricity Maps | B148: Solar | C148: SO | D148: LV | E148: 36.9 | F148: g/kWh | G148: INCER ACV
A149: Electricity Maps | B149: Solar | C149: SO | D149: RO | E149: 29.78 | F149: g/kWh | G149: INCER ACV
A150: Electricity Maps | B150: Solar | C150: SO | D150: SI | E150: 30.83333333 | F150: g/kWh | G150: INCER ACV
A151: Electricity Maps | B151: Solar | C151: SO | D151: DE | E151: 35.11666667 | F151: g/kWh | G151: INCER ACV
A152: Electricity Maps | B152: Solar | C152: SO | D152: HR | E152: 29.03333333 | F152: g/kWh | G152: INCER ACV
A153: Electricity Maps | B153: Solar | C153: SO | D153: ES | E153: 26.46666667 | F153: g/kWh | G153: INCER ACV
A154: Electricity Maps | B154: Solar | C154: SO | D154: IE | E154: 42.13333333 | F154: g/kWh | G154: INCER ACV
A155: Electricity Maps | B155: Solar | C155: SO | D155: EL | E155: 26.1 | F155: g/kWh | G155: INCER ACV
A156: Electricity Maps | B156: Solar | C156: SO | D156: LT | E156: 36.7 | F156: g/kWh | G156: INCER ACV
A157: Electricity Maps | B157: Solar | C157: SO | D157: CY | E157: 25.6 | F157: g/kWh | G157: INCER ACV
A158: Electricity Maps | B158: Solar | C158: SO | D158: PT | E158: 25.6 | F158: g/kWh | G158: INCER ACV
A159: Electricity Maps | B159: Solar | C159: SO | D159: IT | E159: 26.26527778 | F159: g/kWh | G159: INCER ACV
A160: Electricity Maps | B160: Solar | C160: SO | D160: BG | E160: 27.73333333 | F160: g/kWh | G160: INCER ACV
A161: Electricity Maps | B161: Solar | C161: SO | D161: HU | E161: 30.66666667 | F161: g/kWh | G161: INCER ACV
A162: Electricity Maps | B162: Solar | C162: SO | D162: DK | E162: 35.98888889 | F162: g/kWh | G162: INCER ACV
A163: Electricity Maps | B163: Solar | C163: SO | D163: PL | E163: 34.84 | F163: g/kWh | G163: INCER ACV
A164: Electricity Maps | B164: Biomass and waste | C164: BWB | D164: AT | E164: 230 | F164: g/kWh | G164: BEIS 2021; IPCC 2014
A165: Electricity Maps | B165: Biomass and waste | C165: BWB | D165: BE | E165: 230 | F165: g/kWh | G165: BEIS 2021; IPCC 2014
A166: Electricity Maps | B166: Biomass and waste | C166: BWB | D166: BG | E166: 230 | F166: g/kWh | G166: BEIS 2021; IPCC 2014
A167: Electricity Maps | B167: Biomass and waste | C167: BWB | D167: CY | E167: 230 | F167: g/kWh | G167: BEIS 2021; IPCC 2014
A168: Electricity Maps | B168: Biomass and waste | C168: BWB | D168: CZ | E168: 230 | F168: g/kWh | G168: BEIS 2021; IPCC 2014
A169: Electricity Maps | B169: Biomass and waste | C169: BWB | D169: DE | E169: 230 | F169: g/kWh | G169: BEIS 2021; IPCC 2014
A170: Electricity Maps | B170: Biomass and waste | C170: BWB | D170: DK | E170: 230 | F170: g/kWh | G170: BEIS 2021; IPCC 2014
A171: Electricity Maps | B171: Biomass and waste | C171: BWB | D171: EE | E171: 230 | F171: g/kWh | G171: BEIS 2021; IPCC 2014
A172: Electricity Maps | B172: Biomass and waste | C172: BWB | D172: ES | E172: 230 | F172: g/kWh | G172: BEIS 2021; IPCC 2014
A173: Electricity Maps | B173: Biomass and waste | C173: BWB | D173: FI | E173: 230 | F173: g/kWh | G173: BEIS 2021; IPCC 2014
A174: Electricity Maps | B174: Biomass and waste | C174: BWB | D174: FR | E174: 230 | F174: g/kWh | G174: BEIS 2021; IPCC 2014
A175: Electricity Maps | B175: Biomass and waste | C175: BWB | D175: EL | E175: 230 | F175: g/kWh | G175: BEIS 2021; IPCC 2014
A176: Electricity Maps | B176: Biomass and waste | C176: BWB | D176: HR | E176: 230 | F176: g/kWh | G176: BEIS 2021; IPCC 2014
A177: Electricity Maps | B177: Biomass and waste | C177: BWB | D177: HU | E177: 230 | F177: g/kWh | G177: BEIS 2021; IPCC 2014
A178: Electricity Maps | B178: Biomass and waste | C178: BWB | D178: IE | E178: 230 | F178: g/kWh | G178: BEIS 2021; IPCC 2014
A179: Electricity Maps | B179: Biomass and waste | C179: BWB | D179: IT | E179: 230 | F179: g/kWh | G179: BEIS 2021; IPCC 2014
A180: Electricity Maps | B180: Biomass and waste | C180: BWB | D180: LT | E180: 230 | F180: g/kWh | G180: BEIS 2021; IPCC 2014
A181: Electricity Maps | B181: Biomass and waste | C181: BWB | D181: LU | E181: 230 | F181: g/kWh | G181: BEIS 2021; IPCC 2014
A182: Electricity Maps | B182: Biomass and waste | C182: BWB | D182: LV | E182: 230 | F182: g/kWh | G182: BEIS 2021; IPCC 2014
A183: Electricity Maps | B183: Biomass and waste | C183: BWB | D183: MT | E183: 230 | F183: g/kWh | G183: BEIS 2021; IPCC 2014
A184: Electricity Maps | B184: Biomass and waste | C184: BWB | D184: NL | E184: 230 | F184: g/kWh | G184: BEIS 2021; IPCC 2014
A185: Electricity Maps | B185: Biomass and waste | C185: BWB | D185: PL | E185: 230 | F185: g/kWh | G185: BEIS 2021; IPCC 2014
A186: Electricity Maps | B186: Biomass and waste | C186: BWB | D186: PT | E186: 230 | F186: g/kWh | G186: BEIS 2021; IPCC 2014
A187: Electricity Maps | B187: Biomass and waste | C187: BWB | D187: RO | E187: 230 | F187: g/kWh | G187: BEIS 2021; IPCC 2014
A188: Electricity Maps | B188: Biomass and waste | C188: BWB | D188: SE | E188: 230 | F188: g/kWh | G188: BEIS 2021; IPCC 2014
A189: Electricity Maps | B189: Biomass and waste | C189: BWB | D189: SI | E189: 230 | F189: g/kWh | G189: BEIS 2021; IPCC 2014
A190: Electricity Maps | B190: Biomass and waste | C190: BWB | D190: SK | E190: 230 | F190: g/kWh | G190: BEIS 2021; IPCC 2014
A191: Electricity Maps | B191: Nuclear | C191: NU | D191: AT | E191: 5.13 | F191: g/kWh | G191: UNECE 2022
A192: Electricity Maps | B192: Nuclear | C192: NU | D192: BE | E192: 5.13 | F192: g/kWh | G192: UNECE 2022
A193: Electricity Maps | B193: Nuclear | C193: NU | D193: BG | E193: 5.13 | F193: g/kWh | G193: UNECE 2022
A194: Electricity Maps | B194: Nuclear | C194: NU | D194: CY | E194: 5.13 | F194: g/kWh | G194: UNECE 2022
A195: Electricity Maps | B195: Nuclear | C195: NU | D195: CZ | E195: 5.13 | F195: g/kWh | G195: UNECE 2022
A196: Electricity Maps | B196: Nuclear | C196: NU | D196: DE | E196: 5.13 | F196: g/kWh | G196: UNECE 2022
A197: Electricity Maps | B197: Nuclear | C197: NU | D197: DK | E197: 5.13 | F197: g/kWh | G197: UNECE 2022
A198: Electricity Maps | B198: Nuclear | C198: NU | D198: EE | E198: 5.13 | F198: g/kWh | G198: UNECE 2022
A199: Electricity Maps | B199: Nuclear | C199: NU | D199: ES | E199: 5.13 | F199: g/kWh | G199: UNECE 2022
A200: Electricity Maps | B200: Nuclear | C200: NU | D200: FI | E200: 5.13 | F200: g/kWh | G200: UNECE 2022
... 2029 more rows

Sheet Stat analysis LCCI by tech
A1: Technology | B1: Source | C1: n | D1: Lower whisker (g/kWh) | E1: Q1 (g/kWh) | F1: Median (g/kWh) | G1: Q3 (g/kWh) | H1: Upper whisker (g/kWh) | I1: IQR (g/kWh) | J1: Mean (g/kWh) | K1: Std Dev (g/kWh) | L1: CV%
A2: Biomass and waste | B2: EXIO Hybrid | C2: 23 | D2: 22.6 | E2: 35.5 | F2: 51.3 | G2: 154.2 | H2: 306.9 | I2: 118.7 | J2: 110.0 | K2: 109.9 | L2: =K2/J2 -> 100%
A3: Biomass and waste | B3: Ecoinvent | C3: 169 | D3: 0.0 | E3: 45.6 | F3: 49.0 | G3: 171.9 | H3: 323.1 | I3: 126.2 | J3: 95.2 | K3: 101.9 | L3: 107%
A4: Biomass and waste | B4: Electricity Maps | C4: 28 | D4: 230.0 | E4: 230.0 | F4: 230.0 | G4: 230.0 | H4: 230.0 | I4: 0.0 | J4: 232.0 | K4: 10.6 | L4: 5%
A5: Biomass and waste | B5: IPCC | C5: 3 | D5: 130.0 | E5: 180.0 | F5: 230.0 | G5: 560.0 | H5: 890.0 | I5: 380.0 | J5: 416.7 | K5: 413.0 | L5: 99%
A6: Coal | B6: EXIO Hybrid | C6: 23 | D6: 1174.4 | E6: 1346.2 | F6: 1651.7 | G6: 1753.0 | H6: 2103.6 | I6: 406.8 | J6: 1602.6 | K6: 256.7 | L6: 16%
A7: Coal | B7: Ecoinvent | C7: 161 | D7: 926.4 | E7: 1166.9 | F7: 1269.0 | G7: 1497.0 | H7: 1926.1 | I7: 330.0 | J7: 1353.0 | K7: 256.6 | L7: 19%
A8: Coal | B8: Electricity Maps | C8: 28 | D8: 983.0 | E8: 1074.5 | F8: 1097.3 | G8: 1174.8 | H8: 1292.0 | I8: 100.3 | J8: 1094.2 | K8: 141.6 | L8: 13%
A9: Coal | B9: IPCC | C9: 3 | D9: 740.0 | E9: 780.0 | F9: 820.0 | G9: 865.0 | H9: 910.0 | I9: 85.0 | J9: 823.3 | K9: 85.0 | L9: 10%
A10: Coal | B10: NREL | C10: 3 | D10: 930.0 | E10: 955.0 | F10: 980.0 | G10: 1015.0 | H10: 1050.0 | I10: 60.0 | J10: 986.7 | K10: 60.3 | L10: 6%
A11: Geothermal | B11: EXIO Hybrid | C11: 5 | D11: 10.7 | E11: 13.6 | F11: 58.1 | G11: 85.5 | H11: 94.8 | I11: 71.9 | J11: 52.5 | K11: 39.3 | L11: 75%
A12: Geothermal | B12: Ecoinvent | C12: 17 | D12: 81.7 | E12: 81.7 | F12: 81.7 | G12: 81.7 | H12: 81.7 | I12: 0.0 | J12: 81.7 | K12: 0.0 | L12: 0%
A13: Geothermal | B13: Electricity Maps | C13: 28 | D13: 38.0 | E13: 38.0 | F13: 38.0 | G13: 38.0 | H13: 38.0 | I13: 0.0 | J13: 40.5 | K13: 13.4 | L13: 33%
A14: Geothermal | B14: IPCC | C14: 3 | D14: 6.0 | E14: 22.0 | F14: 38.0 | G14: 58.5 | H14: 79.0 | I14: 36.5 | J14: 41.0 | K14: 36.6 | L14: 89%
A15: Hydro | B15: EXIO Hybrid | C15: 26 | D15: 1.4 | E15: 12.7 | F15: 26.6 | G15: 54.8 | H15: 98.5 | I15: 42.2 | J15: 40.8 | K15: 42.9 | L15: 105%
A16: Hydro | B16: Ecoinvent | C16: 251 | D16: 4.0 | E16: 4.4 | F16: 7.0 | G16: 88.1 | H16: 177.0 | I16: 83.7 | J16: 291.9 | K16: 568.4 | L16: 195%
A17: Hydro | B17: Electricity Maps | C17: 28 | D17: 10.7 | E17: 10.7 | F17: 10.7 | G17: 10.7 | H17: 10.7 | I17: 0.0 | J17: 11.2 | K17: 2.5 | L17: 22%
A18: Hydro | B18: IPCC | C18: 3 | D18: 1.0 | E18: 12.5 | F18: 24.0 | G18: 1112.0 | H18: 2200.0 | I18: 1099.5 | J18: 741.7 | K18: 1263.0 | L18: 170%
A19: Natural Gas | B19: EXIO Hybrid | C19: 26 | D19: 730.5 | E19: 852.0 | F19: 988.1 | G19: 1336.9 | H19: 2043.3 | I19: 484.9 | J19: 1318.1 | K19: 935.8 | L19: 71%
A20: Natural Gas | B20: Ecoinvent | C20: 321 | D20: 209.3 | E20: 498.6 | F20: 598.8 | G20: 707.3 | H20: 990.8 | I20: 208.7 | J20: 612.6 | K20: 157.6 | L20: 26%
A21: Natural Gas | B21: Electricity Maps | C21: 28 | D21: 484.3 | E21: 508.8 | F21: 529.3 | G21: 530.4 | H21: 562.0 | I21: 21.5 | J21: 529.0 | K21: 52.7 | L21: 10%
A22: Natural Gas | B22: IPCC | C22: 3 | D22: 410.0 | E22: 450.0 | F22: 490.0 | G22: 570.0 | H22: 650.0 | I22: 120.0 | J22: 516.7 | K22: 122.2 | L22: 24%
A23: Natural Gas | B23: NREL | C23: 3 | D23: 427.0 | E23: 456.5 | F23: 486.0 | G23: 522.0 | H23: 558.0 | I23: 65.5 | J23: 490.3 | K23: 65.6 | L23: 13%
A24: Nec | B24: EXIO Hybrid | C24: 6 | D24: 53.6 | E24: 89.9 | F24: 218.6 | G24: 296.1 | H24: 352.7 | I24: 206.2 | J24: 202.1 | K24: 128.7 | L24: 64%
A25: Nuclear | B25: EXIO Hybrid | C25: 14 | D25: 3.7 | E25: 12.3 | F25: 23.3 | G25: 44.5 | H25: 84.6 | I25: 32.2 | J25: 29.8 | K25: 22.6 | L25: 76%
A26: Nuclear | B26: Ecoinvent | C26: 67 | D26: 10.1 | E26: 11.1 | F26: 11.4 | G26: 11.8 | H26: 12.6 | I26: 0.8 | J26: 15.9 | K26: 30.0 | L26: 189%
A27: Nuclear | B27: Electricity Maps | C27: 28 | D27: 5.1 | E27: 5.1 | F27: 5.1 | G27: 5.1 | H27: 5.1 | I27: 0.0 | J27: 5.4 | K27: 1.3 | L27: 24%
A28: Nuclear | B28: IPCC | C28: 3 | D28: 3.7 | E28: 7.9 | F28: 12.0 | G28: 61.0 | H28: 110.0 | I28: 53.2 | J28: 41.9 | K28: 59.1 | L28: 141%
A29: Nuclear | B29: NREL | C29: 3 | D29: 10.0 | E29: 11.5 | F29: 13.0 | G29: 26.0 | H29: 39.0 | I29: 14.5 | J29: 20.7 | K29: 15.9 | L29: 77%
A30: Oil | B30: EXIO Hybrid | C30: 28 | D30: 1209.8 | E30: 1604.4 | F30: 1775.2 | G30: 1896.9 | H30: 1943.4 | I30: 292.5 | J30: 1841.1 | K30: 391.3 | L30: 21%
A31: Oil | B31: Ecoinvent | C31: 155 | D31: 446.8 | E31: 875.0 | F31: 1058.2 | G31: 1165.8 | H31: 1540.7 | I31: 290.8 | J31: 1055.3 | K31: 328.2 | L31: 31%
A32: Oil | B32: Electricity Maps | C32: 28 | D32: 617.5 | E32: 885.1 | F32: 885.1 | G32: 1121.0 | H32: 1170.0 | I32: 236.0 | J32: 961.0 | K32: 143.2 | L32: 15%
A33: Solar | B33: EXIO Hybrid | C33: 24 | D33: 4.1 | E33: 25.5 | F33: 48.4 | G33: 73.8 | H33: 99.1 | I33: 48.3 | J33: 57.8 | K33: 56.5 | L33: 98%
A34: Solar | B34: Ecoinvent | C34: 260 | D34: 49.9 | E34: 74.4 | F34: 80.9 | G34: 90.8 | H34: 115.1 | I34: 16.4 | J34: 83.2 | K34: 16.5 | L34: 20%
A35: Solar | B35: Electricity Maps | C35: 28 | D35: 25.6 | E35: 28.7 | F35: 33.7 | G35: 36.6 | H35: 45.0 | I35: 7.8 | J35: 33.5 | K35: 6.1 | L35: 18%
A36: Solar | B36: IPCC | C36: 6 | D36: 8.8 | E36: 20.3 | F36: 37.5 | G36: 59.3 | H36: 63.0 | I36: 39.0 | J36: 57.5 | K36: 63.2 | L36: 110%
A37: Solar | B37: NREL | C37: 6 | D37: 14.0 | E37: 29.0 | F37: 33.5 | G37: 41.0 | H37: 50.0 | I37: 12.0 | J37: 33.7 | K37: 12.5 | L37: 37%
A38: Tide and wave | B38: EXIO Hybrid | C38: 3 | D38: 64.0 | E38: 94.1 | F38: 124.2 | G38: 277.2 | H38: 430.2 | I38: 183.1 | J38: 206.2 | K38: 196.4 | L38: 95%
A39: Tide and wave | B39: IPCC | C39: 3 | D39: 5.6 | E39: 11.3 | F39: 17.0 | G39: 22.5 | H39: 28.0 | I39: 11.2 | J39: 16.9 | K39: 11.2 | L39: 66%
A40: Wind | B40: EXIO Hybrid | C40: 26 | D40: 2.6 | E40: 13.0 | F40: 22.6 | G40: 41.7 | H40: 71.5 | I40: 28.7 | J40: 39.4 | K40: 45.7 | L40: 116%
A41: Wind | B41: Ecoinvent | C41: 303 | D41: 11.0 | E41: 15.7 | F41: 20.7 | G41: 23.7 | H41: 34.6 | I41: 7.9 | J41: 22.2 | K41: 10.1 | L41: 45%
A42: Wind | B42: Electricity Maps | C42: 28 | D42: 12.6 | E42: 12.6 | F42: 12.6 | G42: 12.6 | H42: 12.6 | I42: 0.0 | J42: 12.6 | K42: 0.3 | L42: 2%
A43: Wind | B43: IPCC | C43: 3 | D43: 7.0 | E43: 9.0 | F43: 11.0 | G43: 33.5 | H43: 56.0 | I43: 24.5 | J43: 24.7 | K43: 27.2 | L43: 110%
A44: Wind | B44: NREL | C44: 3 | D44: 8.0 | E44: 10.5 | F44: 13.0 | G44: 16.5 | H44: 20.0 | I44: 6.0 | J44: 13.7 | K44: 6.0 | L44: 44%

Sheet DCI by country
A1: Country | B1: Year | C1: DB type | D1: Source | E1: GWP100 | F1: Unit | G1: Notes | H1: Data from figure 2 in manuscript
A2: BE | B2: 2017 | C2: Physical | D2: JRC | E2: 217.1283768 | F2: g/kWh
A3: BG | B3: 2017 | C3: Physical | D3: JRC | E3: 658.4280192 | F3: g/kWh
A4: CZ | B4: 2017 | C4: Physical | D4: JRC | E4: 659.61878 | F4: g/kWh
A5: DK | B5: 2017 | C5: Physical | D5: JRC | E5: 140.5581314 | F5: g/kWh
A6: DE | B6: 2017 | C6: Physical | D6: JRC | E6: 474.8272879 | F6: g/kWh
A7: EE | B7: 2017 | C7: Physical | D7: JRC | E7: 1032.465278 | F7: g/kWh
A8: IE | B8: 2017 | C8: Physical | D8: JRC | E8: 422.8444736 | F8: g/kWh
A9: GR | B9: 2017 | C9: Physical | D9: JRC | E9: 615.2181313 | F9: g/kWh
A10: ES | B10: 2017 | C10: Physical | D10: JRC | E10: 338.1299088 | F10: g/kWh
A11: FR | B11: 2017 | C11: Physical | D11: JRC | E11: 87.22969726 | F11: g/kWh
A12: HR | B12: 2017 | C12: Physical | D12: JRC | E12: 418.8832037 | F12: g/kWh
A13: IT | B13: 2017 | C13: Physical | D13: JRC | E13: 327.6702159 | F13: g/kWh
A14: CY | B14: 2017 | C14: Physical | D14: JRC | E14: 722.279492 | F14: g/kWh
A15: LV | B15: 2017 | C15: Physical | D15: JRC | E15: 370.2138976 | F15: g/kWh
A16: LT | B16: 2017 | C16: Physical | D16: JRC | E16: 70.67459252 | F16: g/kWh
A17: LU | B17: 2017 | C17: Physical | D17: JRC | E17: 437.2113106 | F17: g/kWh
A18: HU | B18: 2017 | C18: Physical | D18: JRC | E18: 282.3029219 | F18: g/kWh
A19: MT | B19: 2017 | C19: Physical | D19: JRC | E19: 423.5991792 | F19: g/kWh
A20: NL | B20: 2017 | C20: Physical | D20: JRC | E20: 466.0417081 | F20: g/kWh
A21: AT | B21: 2017 | C21: Physical | D21: JRC | E21: 315.5310342 | F21: g/kWh
A22: PL | B22: 2017 | C22: Physical | D22: JRC | E22: 867.5578531 | F22: g/kWh
A23: PT | B23: 2017 | C23: Physical | D23: JRC | E23: 423.4872344 | F23: g/kWh
A24: RO | B24: 2017 | C24: Physical | D24: JRC | E24: 471.2215347 | F24: g/kWh
A25: SI | B25: 2017 | C25: Physical | D25: JRC | E25: 235.521835 | F25: g/kWh
A26: SK | B26: 2017 | C26: Physical | D26: JRC | E26: 429.0759299 | F26: g/kWh
A27: FI | B27: 2017 | C27: Physical | D27: JRC | E27: 98.49433163 | F27: g/kWh
A28: SE | B28: 2017 | C28: Physical | D28: JRC | E28: 17.04703521 | F28: g/kWh
A29: AT | B29: 2017 | C29: Physical | D29: Electricity Maps | E29: 90.4851354 | F29: g/kWh | G29: generation shares from ENTSO-E
A30: AT | B30: 2017 | C30: Hybrid | D30: EXIO Hybrid | E30: 154.3088004 | F30: g/kWh | G30: generation shares from ENTSO-E
A31: BE | B31: 2017 | C31: Physical | D31: Electricity Maps | E31: 141.3148897 | F31: g/kWh | G31: generation shares from ENTSO-E
A32: BE | B32: 2017 | C32: Hybrid | D32: EXIO Hybrid | E32: 185.2139316 | F32: g/kWh | G32: generation shares from ENTSO-E
A33: BG | B33: 2017 | C33: Physical | D33: Electricity Maps | E33: 545.0121944 | F33: g/kWh | G33: generation shares from ENTSO-E
A34: BG | B34: 2017 | C34: Hybrid | D34: EXIO Hybrid | E34: 542.0457822 | F34: g/kWh | G34: generation shares from ENTSO-E
A35: CZ | B35: 2017 | C35: Physical | D35: Electricity Maps | E35: 553.2002899 | F35: g/kWh | G35: generation shares from ENTSO-E
A36: CZ | B36: 2017 | C36: Hybrid | D36: EXIO Hybrid | E36: 558.4083985 | F36: g/kWh | G36: generation shares from ENTSO-E
A37: DE | B37: 2017 | C37: Physical | D37: Electricity Maps | E37: 448.7027313 | F37: g/kWh | G37: generation shares from ENTSO-E
A38: DE | B38: 2017 | C38: Hybrid | D38: EXIO Hybrid | E38: 454.9909525 | F38: g/kWh | G38: generation shares from ENTSO-E
A39: DK | B39: 2017 | C39: Physical | D39: Electricity Maps | E39: 173.2569506 | F39: g/kWh | G39: generation shares from ENTSO-E
A40: DK | B40: 2017 | C40: Hybrid | D40: EXIO Hybrid | E40: 229.5818363 | F40: g/kWh | G40: generation shares from ENTSO-E
A41: EE | B41: 2017 | C41: Physical | D41: Electricity Maps | E41: 574.2746101 | F41: g/kWh | G41: generation shares from ENTSO-E
A42: EE | B42: 2017 | C42: Hybrid | D42: EXIO Hybrid | E42: 544.2197335 | F42: g/kWh | G42: generation shares from ENTSO-E
A43: GR | B43: 2017 | C43: Physical | D43: Electricity Maps | E43: 604.5545431 | F43: g/kWh | G43: generation shares from ENTSO-E
A44: GR | B44: 2017 | C44: Hybrid | D44: EXIO Hybrid | E44: 599.7924288 | F44: g/kWh | G44: generation shares from ENTSO-E
A45: ES | B45: 2017 | C45: Physical | D45: Electricity Maps | E45: 314.6852936 | F45: g/kWh | G45: generation shares from ENTSO-E
A46: ES | B46: 2017 | C46: Hybrid | D46: EXIO Hybrid | E46: 299.2388915 | F46: g/kWh | G46: generation shares from ENTSO-E
A47: FI | B47: 2017 | C47: Physical | D47: Electricity Maps | E47: 155.8895454 | F47: g/kWh | G47: generation shares from ENTSO-E
A48: FI | B48: 2017 | C48: Hybrid | D48: EXIO Hybrid | E48: 246.0129612 | F48: g/kWh | G48: generation shares from ENTSO-E
A49: FR | B49: 2017 | C49: Physical | D49: Electricity Maps | E49: 51.03383445 | F49: g/kWh | G49: generation shares from ENTSO-E
A50: FR | B50: 2017 | C50: Hybrid | D50: EXIO Hybrid | E50: 71.50992878 | F50: g/kWh | G50: generation shares from ENTSO-E
A51: HR | B51: 2017 | C51: Physical | D51: Electricity Maps | E51: 229.137156 | F51: g/kWh | G51: generation shares from ENTSO-E
A52: HR | B52: 2017 | C52: Hybrid | D52: EXIO Hybrid | E52: 270.1888548 | F52: g/kWh | G52: generation shares from ENTSO-E
A53: HU | B53: 2017 | C53: Physical | D53: Electricity Maps | E53: 320.6115298 | F53: g/kWh | G53: generation shares from ENTSO-E
A54: HU | B54: 2017 | C54: Hybrid | D54: EXIO Hybrid | E54: 317.4121481 | F54: g/kWh | G54: generation shares from ENTSO-E
A55: IE | B55: 2017 | C55: Physical | D55: Electricity Maps | E55: 505.2482675 | F55: g/kWh | G55: generation shares from ENTSO-E
A56: IE | B56: 2017 | C56: Hybrid | D56: EXIO Hybrid | E56: 453.8911603 | F56: g/kWh | G56: generation shares from ENTSO-E
A57: IT | B57: 2017 | C57: Physical | D57: Electricity Maps | E57: 384.5524228 | F57: g/kWh | G57: generation shares from ENTSO-E
A58: IT | B58: 2017 | C58: Hybrid | D58: EXIO Hybrid | E58: 345.1926728 | F58: g/kWh | G58: generation shares from ENTSO-E
A59: LT | B59: 2017 | C59: Physical | D59: Electricity Maps | E59: 104.4167711 | F59: g/kWh | G59: generation shares from ENTSO-E
A60: LT | B60: 2017 | C60: Hybrid | D60: EXIO Hybrid | E60: 120.2894882 | F60: g/kWh | G60: generation shares from ENTSO-E
A61: LV | B61: 2017 | C61: Physical | D61: Electricity Maps | E61: 134.8047261 | F61: g/kWh | G61: generation shares from ENTSO-E
A62: LV | B62: 2017 | C62: Hybrid | D62: EXIO Hybrid | E62: 144.4560415 | F62: g/kWh | G62: generation shares from ENTSO-E
A63: NL | B63: 2017 | C63: Physical | D63: Electricity Maps | E63: 527.9820154 | F63: g/kWh | G63: generation shares from ENTSO-E
A64: NL | B64: 2017 | C64: Hybrid | D64: EXIO Hybrid | E64: 395.2348893 | F64: g/kWh | G64: generation shares from ENTSO-E
A65: PL | B65: 2017 | C65: Physical | D65: Electricity Maps | E65: 916.4344307 | F65: g/kWh | G65: generation shares from ENTSO-E
A66: PL | B66: 2017 | C66: Hybrid | D66: EXIO Hybrid | E66: 760.243199 | F66: g/kWh | G66: generation shares from ENTSO-E
A67: PT | B67: 2017 | C67: Physical | D67: Electricity Maps | E67: 393.220046 | F67: g/kWh | G67: generation shares from ENTSO-E
A68: PT | B68: 2017 | C68: Hybrid | D68: EXIO Hybrid | E68: 398.8556536 | F68: g/kWh | G68: generation shares from ENTSO-E
A69: RO | B69: 2017 | C69: Physical | D69: Electricity Maps | E69: 430.1360052 | F69: g/kWh | G69: generation shares from ENTSO-E
A70: RO | B70: 2017 | C70: Hybrid | D70: EXIO Hybrid | E70: 400.5430364 | F70: g/kWh | G70: generation shares from ENTSO-E
A71: SE | B71: 2017 | C71: Physical | D71: Electricity Maps | E71: 1.523821689 | F71: g/kWh | G71: generation shares from ENTSO-E
A72: SE | B72: 2017 | C72: Hybrid | D72: EXIO Hybrid | E72: 0.01818875367 | F72: g/kWh | G72: generation shares from ENTSO-E
A73: SI | B73: 2017 | C73: Physical | D73: Electricity Maps | E73: 305.8079197 | F73: g/kWh | G73: generation shares from ENTSO-E
A74: SI | B74: 2017 | C74: Hybrid | D74: EXIO Hybrid | E74: 292.2163765 | F74: g/kWh | G74: generation shares from ENTSO-E
A75: SK | B75: 2017 | C75: Physical | D75: Electricity Maps | E75: 169.0844364 | F75: g/kWh | G75: generation shares from ENTSO-E
A76: SK | B76: 2017 | C76: Hybrid | D76: EXIO Hybrid | E76: 138.9597416 | F76: g/kWh | G76: generation shares from ENTSO-E
A77: US | B77: 2017 | C77: Physical | D77: Electricity Maps | E77: 438.9122217 | F77: g/kWh | G77: generation shares from ENTSO-E
A78: US | B78: 2017 | C78: Hybrid | D78: EXIO Hybrid | E78: 441.135139 | F78: g/kWh | G78: generation shares from ENTSO-E
A79: AT | B79: 2017 | C79: Monetary | D79: EORA | E79: 47.712 | F79: g/kWh
A80: BE | B80: 2017 | C80: Monetary | D80: EORA | E80: 159.508 | F80: g/kWh
A81: BG | B81: 2017 | C81: Monetary | D81: EORA | E81: 217.288 | F81: g/kWh
A82: CY | B82: 2017 | C82: Monetary | D82: EORA | E82: 454.296 | F82: g/kWh
A83: CZ | B83: 2017 | C83: Monetary | D83: EORA | E83: 165.323 | F83: g/kWh
A84: DE | B84: 2017 | C84: Monetary | D84: EORA | E84: 141.561 | F84: g/kWh
A85: DK | B85: 2017 | C85: Monetary | D85: EORA | E85: 163.339 | F85: g/kWh
A86: ES | B86: 2017 | C86: Monetary | D86: EORA | E86: 172.577 | F86: g/kWh
A87: EE | B87: 2017 | C87: Monetary | D87: EORA | E87: 351.577 | F87: g/kWh
A88: FI | B88: 2017 | C88: Monetary | D88: EORA | E88: 189.922 | F88: g/kWh
A89: FR | B89: 2017 | C89: Monetary | D89: EORA | E89: 39.951 | F89: g/kWh
A90: GR | B90: 2017 | C90: Monetary | D90: EORA | E90: 492.560 | F90: g/kWh
A91: HR | B91: 2017 | C91: Monetary | D91: EORA | E91: 120.422 | F91: g/kWh
A92: HU | B92: 2017 | C92: Monetary | D92: EORA | E92: 113.956 | F92: g/kWh
A93: IE | B93: 2017 | C93: Monetary | D93: EORA | E93: 277.487 | F93: g/kWh
A94: IT | B94: 2017 | C94: Monetary | D94: EORA | E94: 170.170 | F94: g/kWh
A95: LT | B95: 2017 | C95: Monetary | D95: EORA | E95: 93.489 | F95: g/kWh
A96: LU | B96: 2017 | C96: Monetary | D96: EORA | E96: 62.354 | F96: g/kWh
A97: LV | B97: 2017 | C97: Monetary | D97: EORA | E97: 113.062 | F97: g/kWh
A98: MT | B98: 2017 | C98: Monetary | D98: EORA | E98: 430.806 | F98: g/kWh
A99: NL | B99: 2017 | C99: Monetary | D99: EORA | E99: 131.931 | F99: g/kWh
A100: PL | B100: 2017 | C100: Monetary | D100: EORA | E100: 279.232 | F100: g/kWh
A101: PT | B101: 2017 | C101: Monetary | D101: EORA | E101: 159.877 | F101: g/kWh
A102: RO | B102: 2017 | C102: Monetary | D102: EORA | E102: 120.637 | F102: g/kWh
A103: SK | B103: 2017 | C103: Monetary | D103: EORA | E103: 47.097 | F103: g/kWh
A104: SI | B104: 2017 | C104: Monetary | D104: EORA | E104: 240.440 | F104: g/kWh
A105: SE | B105: 2017 | C105: Monetary | D105: EORA | E105: 37.588 | F105: g/kWh
A106: US | B106: 2017 | C106: Monetary | D106: EORA | E106: 322.472 | F106: g/kWh
A107: AT | B107: 2017 | C107: Monetary | D107: GLORIA act | E107: 54.625 | F107: g/kWh
A108: BE | B108: 2017 | C108: Monetary | D108: GLORIA act | E108: 140.961 | F108: g/kWh
A109: BG | B109: 2017 | C109: Monetary | D109: GLORIA act | E109: 597.028 | F109: g/kWh
A110: CY | B110: 2017 | C110: Monetary | D110: GLORIA act | E110: 497.205 | F110: g/kWh
A111: CZ | B111: 2017 | C111: Monetary | D111: GLORIA act | E111: 333.156 | F111: g/kWh
A112: DE | B112: 2017 | C112: Monetary | D112: GLORIA act | E112: 217.133 | F112: g/kWh
A113: DK | B113: 2017 | C113: Monetary | D113: GLORIA act | E113: 127.202 | F113: g/kWh
A114: ES | B114: 2017 | C114: Monetary | D114: GLORIA act | E114: 174.399 | F114: g/kWh
A115: EE | B115: 2017 | C115: Monetary | D115: GLORIA act | E115: 450.158 | F115: g/kWh
A116: FI | B116: 2017 | C116: Monetary | D116: GLORIA act | E116: 128.648 | F116: g/kWh
A117: FR | B117: 2017 | C117: Monetary | D117: GLORIA act | E117: 40.571 | F117: g/kWh
A118: GR | B118: 2017 | C118: Monetary | D118: GLORIA act | E118: 251.467 | F118: g/kWh
A119: HR | B119: 2017 | C119: Monetary | D119: GLORIA act | E119: 99.914 | F119: g/kWh
A120: HU | B120: 2017 | C120: Monetary | D120: GLORIA act | E120: 197.181 | F120: g/kWh
A121: IE | B121: 2017 | C121: Monetary | D121: GLORIA act | E121: 310.203 | F121: g/kWh
A122: IT | B122: 2017 | C122: Monetary | D122: GLORIA act | E122: 151.118 | F122: g/kWh
A123: LT | B123: 2017 | C123: Monetary | D123: GLORIA act | E123: 57.624 | F123: g/kWh
A124: LU | B124: 2017 | C124: Monetary | D124: GLORIA act | E124: 14.090 | F124: g/kWh
A125: LV | B125: 2017 | C125: Monetary | D125: GLORIA act | E125: 62.317 | F125: g/kWh
A126: MT | B126: 2017 | C126: Monetary | D126: GLORIA act | E126: 82.196 | F126: g/kWh
A127: NL | B127: 2017 | C127: Monetary | D127: GLORIA act | E127: 239.178 | F127: g/kWh
A128: PL | B128: 2017 | C128: Monetary | D128: GLORIA act | E128: 551.566 | F128: g/kWh
A129: PT | B129: 2017 | C129: Monetary | D129: GLORIA act | E129: 149.693 | F129: g/kWh
A130: RO | B130: 2017 | C130: Monetary | D130: GLORIA act | E130: 223.129 | F130: g/kWh
A131: SK | B131: 2017 | C131: Monetary | D131: GLORIA act | E131: 86.186 | F131: g/kWh
A132: SI | B132: 2017 | C132: Monetary | D132: GLORIA act | E132: 160.864 | F132: g/kWh
A133: SE | B133: 2017 | C133: Monetary | D133: GLORIA act | E133: 36.375 | F133: g/kWh
A134: US | B134: 2017 | C134: Monetary | D134: GLORIA act | E134: 380.968 | F134: g/kWh
A135: AT | B135: 2017 | C135: Monetary | D135: EXIOBASE ixi | E135: 24.868 | F135: g/kWh
A136: BE | B136: 2017 | C136: Monetary | D136: EXIOBASE ixi | E136: 120.054 | F136: g/kWh
A137: BG | B137: 2017 | C137: Monetary | D137: EXIOBASE ixi | E137: 379.965 | F137: g/kWh
A138: CY | B138: 2017 | C138: Monetary | D138: EXIOBASE ixi | E138: 441.622 | F138: g/kWh
A139: CZ | B139: 2017 | C139: Monetary | D139: EXIOBASE ixi | E139: 249.897 | F139: g/kWh
A140: DE | B140: 2017 | C140: Monetary | D140: EXIOBASE ixi | E140: 171.673 | F140: g/kWh
A141: DK | B141: 2017 | C141: Monetary | D141: EXIOBASE ixi | E141: 11.156 | F141: g/kWh
A142: EE | B142: 2017 | C142: Monetary | D142: EXIOBASE ixi | E142: 266.076 | F142: g/kWh
A143: ES | B143: 2017 | C143: Monetary | D143: EXIOBASE ixi | E143: 232.698 | F143: g/kWh
A144: FI | B144: 2017 | C144: Monetary | D144: EXIOBASE ixi | E144: 60.213 | F144: g/kWh
A145: FR | B145: 2017 | C145: Monetary | D145: EXIOBASE ixi | E145: 37.807 | F145: g/kWh
A146: GR | B146: 2017 | C146: Monetary | D146: EXIOBASE ixi | E146: 176.700 | F146: g/kWh
A147: HR | B147: 2017 | C147: Monetary | D147: EXIOBASE ixi | E147: 140.488 | F147: g/kWh
A148: HU | B148: 2017 | C148: Monetary | D148: EXIOBASE ixi | E148: 126.910 | F148: g/kWh
A149: IE | B149: 2017 | C149: Monetary | D149: EXIOBASE ixi | E149: 318.413 | F149: g/kWh
A150: IT | B150: 2017 | C150: Monetary | D150: EXIOBASE ixi | E150: 189.689 | F150: g/kWh
A151: LT | B151: 2017 | C151: Monetary | D151: EXIOBASE ixi | E151: 14.354 | F151: g/kWh
A152: LU | B152: 2017 | C152: Monetary | D152: EXIOBASE ixi | E152: 13.349 | F152: g/kWh
A153: LV | B153: 2017 | C153: Monetary | D153: EXIOBASE ixi | E153: 26.184 | F153: g/kWh
A154: MT | B154: 2017 | C154: Monetary | D154: EXIOBASE ixi | E154: 83.025 | F154: g/kWh
A155: NL | B155: 2017 | C155: Monetary | D155: EXIOBASE ixi | E155: 220.722 | F155: g/kWh
A156: PL | B156: 2017 | C156: Monetary | D156: EXIOBASE ixi | E156: 427.726 | F156: g/kWh
A157: PT | B157: 2017 | C157: Monetary | D157: EXIOBASE ixi | E157: 168.878 | F157: g/kWh
A158: RO | B158: 2017 | C158: Monetary | D158: EXIOBASE ixi | E158: 291.775 | F158: g/kWh
A159: SE | B159: 2017 | C159: Monetary | D159: EXIOBASE ixi | E159: 1.695 | F159: g/kWh
A160: SI | B160: 2017 | C160: Monetary | D160: EXIOBASE ixi | E160: 188.997 | F160: g/kWh
A161: SK | B161: 2017 | C161: Monetary | D161: EXIOBASE ixi | E161: 86.119 | F161: g/kWh
A162: US | B162: 2017 | C162: Monetary | D162: EXIOBASE ixi | E162: 457.322 | F162: g/kWh
A163: AT | B163: 2017 | C163: Monetary | D163: EXIOBASE pxp | E163: 18.748 | F163: g/kWh
A164: BE | B164: 2017 | C164: Monetary | D164: EXIOBASE pxp | E164: 103.125 | F164: g/kWh
A165: BG | B165: 2017 | C165: Monetary | D165: EXIOBASE pxp | E165: 407.882 | F165: g/kWh
A166: CY | B166: 2017 | C166: Monetary | D166: EXIOBASE pxp | E166: 442.829 | F166: g/kWh
A167: CZ | B167: 2017 | C167: Monetary | D167: EXIOBASE pxp | E167: 253.700 | F167: g/kWh
A168: DE | B168: 2017 | C168: Monetary | D168: EXIOBASE pxp | E168: 151.615 | F168: g/kWh
A169: DK | B169: 2017 | C169: Monetary | D169: EXIOBASE pxp | E169: 6.813 | F169: g/kWh
A170: EE | B170: 2017 | C170: Monetary | D170: EXIOBASE pxp | E170: 238.384 | F170: g/kWh
A171: ES | B171: 2017 | C171: Monetary | D171: EXIOBASE pxp | E171: 189.775 | F171: g/kWh
A172: FI | B172: 2017 | C172: Monetary | D172: EXIOBASE pxp | E172: 51.816 | F172: g/kWh
A173: FR | B173: 2017 | C173: Monetary | D173: EXIOBASE pxp | E173: 37.795 | F173: g/kWh
A174: GR | B174: 2017 | C174: Monetary | D174: EXIOBASE pxp | E174: 175.327 | F174: g/kWh
A175: HR | B175: 2017 | C175: Monetary | D175: EXIOBASE pxp | E175: 113.719 | F175: g/kWh
A176: HU | B176: 2017 | C176: Monetary | D176: EXIOBASE pxp | E176: 132.035 | F176: g/kWh
A177: IE | B177: 2017 | C177: Monetary | D177: EXIOBASE pxp | E177: 304.705 | F177: g/kWh
A178: IT | B178: 2017 | C178: Monetary | D178: EXIOBASE pxp | E178: 175.589 | F178: g/kWh
A179: LT | B179: 2017 | C179: Monetary | D179: EXIOBASE pxp | E179: 8.134 | F179: g/kWh
A180: LU | B180: 2017 | C180: Monetary | D180: EXIOBASE pxp | E180: 1.510 | F180: g/kWh
A181: LV | B181: 2017 | C181: Monetary | D181: EXIOBASE pxp | E181: 13.096 | F181: g/kWh
A182: MT | B182: 2017 | C182: Monetary | D182: EXIOBASE pxp | E182: 52.229 | F182: g/kWh
A183: NL | B183: 2017 | C183: Monetary | D183: EXIOBASE pxp | E183: 196.320 | F183: g/kWh
A184: PL | B184: 2017 | C184: Monetary | D184: EXIOBASE pxp | E184: 372.212 | F184: g/kWh
A185: PT | B185: 2017 | C185: Monetary | D185: EXIOBASE pxp | E185: 139.956 | F185: g/kWh
A186: RO | B186: 2017 | C186: Monetary | D186: EXIOBASE pxp | E186: 291.761 | F186: g/kWh
A187: SE | B187: 2017 | C187: Monetary | D187: EXIOBASE pxp | E187: 0.922 | F187: g/kWh
A188: SI | B188: 2017 | C188: Monetary | D188: EXIOBASE pxp | E188: 128.497 | F188: g/kWh
A189: SK | B189: 2017 | C189: Monetary | D189: EXIOBASE pxp | E189: 40.144 | F189: g/kWh
A190: US | B190: 2017 | C190: Monetary | D190: EXIOBASE pxp | E190: 426.891 | F190: g/kWh
A191: AT | B191: 2017 | C191: Monetary | D191: EMERGING | E191: 24.273 | F191: g/kWh
A192: BE | B192: 2017 | C192: Monetary | D192: EMERGING | E192: 20.420 | F192: g/kWh
A193: BG | B193: 2017 | C193: Monetary | D193: EMERGING | E193: 482.600 | F193: g/kWh
A194: CY | B194: 2017 | C194: Monetary | D194: EMERGING | E194: 260.573 | F194: g/kWh
A195: CZ | B195: 2017 | C195: Monetary | D195: EMERGING | E195: 167.746 | F195: g/kWh
A196: DE | B196: 2017 | C196: Monetary | D196: EMERGING | E196: 285.341 | F196: g/kWh
A197: DK | B197: 2017 | C197: Monetary | D197: EMERGING | E197: 47.563 | F197: g/kWh
A198: ES | B198: 2017 | C198: Monetary | D198: EMERGING | E198: 58.129 | F198: g/kWh
A199: EE | B199: 2017 | C199: Monetary | D199: EMERGING | E199: 555.076 | F199: g/kWh
A200: FI | B200: 2017 | C200: Monetary | D200: EMERGING | E200: 115.291 | F200: g/kWh
... 124 more rows

Sheet LCCI by country
A1: Country | B1: Year | C1: DB type | D1: Source | E1: GWP100 | F1: Unit | G1: Notes | H1: Data from figure 2 in manuscript
A2: BE | B2: 2017 | C2: Physical | D2: JRC | E2: 230.389 | F2: g/kWh
A3: BG | B3: 2017 | C3: Physical | D3: JRC | E3: 573.846 | F3: g/kWh
A4: CZ | B4: 2017 | C4: Physical | D4: JRC | E4: 624.090 | F4: g/kWh
A5: DK | B5: 2017 | C5: Physical | D5: JRC | E5: 170.597 | F5: g/kWh
A6: DE | B6: 2017 | C6: Physical | D6: JRC | E6: 441.606 | F6: g/kWh
A7: EE | B7: 2017 | C7: Physical | D7: JRC | E7: 725.162 | F7: g/kWh
A8: IE | B8: 2017 | C8: Physical | D8: JRC | E8: 401.095 | F8: g/kWh
A9: GR | B9: 2017 | C9: Physical | D9: JRC | E9: 651.403 | F9: g/kWh
A10: ES | B10: 2017 | C10: Physical | D10: JRC | E10: 301.475 | F10: g/kWh
A11: FR | B11: 2017 | C11: Physical | D11: JRC | E11: 86.106 | F11: g/kWh
A12: HR | B12: 2017 | C12: Physical | D12: JRC | E12: 385.977 | F12: g/kWh
A13: IT | B13: 2017 | C13: Physical | D13: JRC | E13: 381.987 | F13: g/kWh
A14: CY | B14: 2017 | C14: Physical | D14: JRC | E14: 858.812 | F14: g/kWh
A15: LV | B15: 2017 | C15: Physical | D15: JRC | E15: 477.039 | F15: g/kWh
A16: LT | B16: 2017 | C16: Physical | D16: JRC | E16: 89.042 | F16: g/kWh
A17: LU | B17: 2017 | C17: Physical | D17: JRC | E17: 363.384 | F17: g/kWh
A18: HU | B18: 2017 | C18: Physical | D18: JRC | E18: 289.247 | F18: g/kWh
A19: MT | B19: 2017 | C19: Physical | D19: JRC | E19: 492.487 | F19: g/kWh
A20: NL | B20: 2017 | C20: Physical | D20: JRC | E20: 476.348 | F20: g/kWh
A21: AT | B21: 2017 | C21: Physical | D21: JRC | E21: 292.545 | F21: g/kWh
A22: PL | B22: 2017 | C22: Physical | D22: JRC | E22: 872.772 | F22: g/kWh
A23: PT | B23: 2017 | C23: Physical | D23: JRC | E23: 352.699 | F23: g/kWh
A24: RO | B24: 2017 | C24: Physical | D24: JRC | E24: 503.368 | F24: g/kWh
A25: SI | B25: 2017 | C25: Physical | D25: JRC | E25: 249.586 | F25: g/kWh
A26: SK | B26: 2017 | C26: Physical | D26: JRC | E26: 397.299 | F26: g/kWh
A27: FI | B27: 2017 | C27: Physical | D27: JRC | E27: 95.483 | F27: g/kWh
A28: SE | B28: 2017 | C28: Physical | D28: JRC | E28: 27.491 | F28: g/kWh
A29: AT | B29: 2017 | C29: Physical | D29: Electricity Maps | E29: 156.000 | F29: g/kWh
A30: BE | B30: 2017 | C30: Physical | D30: Electricity Maps | E30: 203.000 | F30: g/kWh
A31: BG | B31: 2017 | C31: Physical | D31: Electricity Maps | E31: 552.000 | F31: g/kWh
A32: CY | B32: 2017 | C32: Physical | D32: Electricity Maps | E32: 897 | F32: g/kWh
A33: CZ | B33: 2017 | C33: Physical | D33: Electricity Maps | E33: 601 | F33: g/kWh
A34: DE | B34: 2017 | C34: Physical | D34: Electricity Maps | E34: 520 | F34: g/kWh
A35: DK | B35: 2017 | C35: Physical | D35: Electricity Maps | E35: 294 | F35: g/kWh
A36: EE | B36: 2017 | C36: Physical | D36: Electricity Maps | E36: 778 | F36: g/kWh
A37: ES | B37: 2017 | C37: Physical | D37: Electricity Maps | E37: 329 | F37: g/kWh
A38: FI | B38: 2017 | C38: Physical | D38: Electricity Maps | E38: 229 | F38: g/kWh
A39: FR | B39: 2017 | C39: Physical | D39: Electricity Maps | E39: 72 | F39: g/kWh
A40: GR | B40: 2017 | C40: Physical | D40: Electricity Maps | E40: 776 | F40: g/kWh
A41: HR | B41: 2017 | C41: Physical | D41: Electricity Maps | E41: 261 | F41: g/kWh
A42: HU | B42: 2017 | C42: Physical | D42: Electricity Maps | E42: 354 | F42: g/kWh
A43: IE | B43: 2017 | C43: Physical | D43: Electricity Maps | E43: 409 | F43: g/kWh
A44: IT | B44: 2017 | C44: Physical | D44: Electricity Maps | E44: 456 | F44: g/kWh
A45: LT | B45: 2017 | C45: Physical | D45: Electricity Maps | E45: 190 | F45: g/kWh
A46: LV | B46: 2017 | C46: Physical | D46: Electricity Maps | E46: 211 | F46: g/kWh
A47: NL | B47: 2017 | C47: Physical | D47: Electricity Maps | E47: 579 | F47: g/kWh
A48: PL | B48: 2017 | C48: Physical | D48: Electricity Maps | E48: 956 | F48: g/kWh
A49: PT | B49: 2017 | C49: Physical | D49: Electricity Maps | E49: 476 | F49: g/kWh
A50: RO | B50: 2017 | C50: Physical | D50: Electricity Maps | E50: 488 | F50: g/kWh
A51: SE | B51: 2017 | C51: Physical | D51: Electricity Maps | E51: 20 | F51: g/kWh
A52: SI | B52: 2017 | C52: Physical | D52: Electricity Maps | E52: 327 | F52: g/kWh
A53: SK | B53: 2017 | C53: Physical | D53: Electricity Maps | E53: 234 | F53: g/kWh
A54: US | B54: 2017 | C54: Physical | D54: Electricity Maps | E54: 468 | F54: g/kWh
A55: AT | B55: 2017 | C55: Physical | D55: EMBER | E55: 163 | F55: g/kWh
A56: BE | B56: 2017 | C56: Physical | D56: EMBER | E56: 159 | F56: g/kWh
A57: BG | B57: 2017 | C57: Physical | D57: EMBER | E57: 503 | F57: g/kWh
A58: CY | B58: 2017 | C58: Physical | D58: EMBER | E58: 606 | F58: g/kWh
A59: CZ | B59: 2017 | C59: Physical | D59: EMBER | E59: 542 | F59: g/kWh
A60: DE | B60: 2017 | C60: Physical | D60: EMBER | E60: 470 | F60: g/kWh
A61: DK | B61: 2017 | C61: Physical | D61: EMBER | E61: 283 | F61: g/kWh
A62: EE | B62: 2017 | C62: Physical | D62: EMBER | E62: 583 | F62: g/kWh
A63: ES | B63: 2017 | C63: Physical | D63: EMBER | E63: 329 | F63: g/kWh
A64: FI | B64: 2017 | C64: Physical | D64: EMBER | E64: 186 | F64: g/kWh
A65: FR | B65: 2017 | C65: Physical | D65: EMBER | E65: 78.3 | F65: g/kWh
A66: GR | B66: 2017 | C66: Physical | D66: EMBER | E66: 580 | F66: g/kWh
A67: HR | B67: 2017 | C67: Physical | D67: EMBER | E67: 256 | F67: g/kWh
A68: HU | B68: 2017 | C68: Physical | D68: EMBER | E68: 291 | F68: g/kWh
A69: IE | B69: 2017 | C69: Physical | D69: EMBER | E69: 404 | F69: g/kWh
A70: IT | B70: 2017 | C70: Physical | D70: EMBER | E70: 393 | F70: g/kWh
A71: LT | B71: 2017 | C71: Physical | D71: EMBER | E71: 183 | F71: g/kWh
A72: LV | B72: 2017 | C72: Physical | D72: EMBER | E72: 141 | F72: g/kWh
A73: NL | B73: 2017 | C73: Physical | D73: EMBER | E73: 490 | F73: g/kWh
A74: PL | B74: 2017 | C74: Physical | D74: EMBER | E74: 806 | F74: g/kWh
A75: PT | B75: 2017 | C75: Physical | D75: EMBER | E75: 434 | F75: g/kWh
A76: RO | B76: 2017 | C76: Physical | D76: EMBER | E76: 369 | F76: g/kWh
A77: SE | B77: 2017 | C77: Physical | D77: EMBER | E77: 42.5 | F77: g/kWh
A78: SI | B78: 2017 | C78: Physical | D78: EMBER | E78: 318 | F78: g/kWh
A79: SK | B79: 2017 | C79: Physical | D79: EMBER | E79: 183 | F79: g/kWh
A80: US | B80: 2017 | C80: Physical | D80: EMBER | E80: 469 | F80: g/kWh
A81: AT | B81: 2017 | C81: Hybrid | D81: EXIO Hybrid | E81: 430 | F81: g/kWh | G81: generation shares from ENTSO-E
A82: AT | B82: 2017 | C82: Physical | D82: NREL | E82: 127 | F82: g/kWh | G82: generation shares from ENTSO-E
A83: AT | B83: 2017 | C83: Physical | D83: IPCC | E83: 131 | F83: g/kWh | G83: generation shares from ENTSO-E
A84: BE | B84: 2017 | C84: Hybrid | D84: EXIO Hybrid | E84: 323 | F84: g/kWh | G84: generation shares from ENTSO-E
A85: BE | B85: 2017 | C85: Physical | D85: NREL | E85: 163 | F85: g/kWh | G85: generation shares from ENTSO-E
A86: BE | B86: 2017 | C86: Physical | D86: IPCC | E86: 163 | F86: g/kWh | G86: generation shares from ENTSO-E
A87: BG | B87: 2017 | C87: Hybrid | D87: EXIO Hybrid | E87: 817 | F87: g/kWh | G87: generation shares from ENTSO-E
A88: BG | B88: 2017 | C88: Physical | D88: NREL | E88: 490 | F88: g/kWh | G88: generation shares from ENTSO-E
A89: BG | B89: 2017 | C89: Physical | D89: IPCC | E89: 415 | F89: g/kWh | G89: generation shares from ENTSO-E
A90: CZ | B90: 2017 | C90: Hybrid | D90: EXIO Hybrid | E90: 1165 | F90: g/kWh | G90: generation shares from ENTSO-E
A91: CZ | B91: 2017 | C91: Physical | D91: NREL | E91: 534 | F91: g/kWh | G91: generation shares from ENTSO-E
A92: CZ | B92: 2017 | C92: Physical | D92: IPCC | E92: 452 | F92: g/kWh | G92: generation shares from ENTSO-E
A93: DE | B93: 2017 | C93: Hybrid | D93: EXIO Hybrid | E93: 761 | F93: g/kWh | G93: generation shares from ENTSO-E
A94: DE | B94: 2017 | C94: Physical | D94: NREL | E94: 471 | F94: g/kWh | G94: generation shares from ENTSO-E
A95: DE | B95: 2017 | C95: Physical | D95: IPCC | E95: 410 | F95: g/kWh | G95: generation shares from ENTSO-E
A96: DK | B96: 2017 | C96: Hybrid | D96: EXIO Hybrid | E96: 471 | F96: g/kWh | G96: generation shares from ENTSO-E
A97: DK | B97: 2017 | C97: Physical | D97: NREL | E97: 294 | F97: g/kWh | G97: generation shares from ENTSO-E
A98: DK | B98: 2017 | C98: Physical | D98: IPCC | E98: 263 | F98: g/kWh | G98: generation shares from ENTSO-E
A99: EE | B99: 2017 | C99: Hybrid | D99: EXIO Hybrid | E99: 1407 | F99: g/kWh | G99: generation shares from ENTSO-E
A100: EE | B100: 2017 | C100: Physical | D100: NREL | E100: 789 | F100: g/kWh | G100: generation shares from ENTSO-E
A101: EE | B101: 2017 | C101: Physical | D101: IPCC | E101: 782 | F101: g/kWh | G101: generation shares from ENTSO-E
A102: GR | B102: 2017 | C102: Hybrid | D102: EXIO Hybrid | E102: 831 | F102: g/kWh | G102: generation shares from ENTSO-E
A103: GR | B103: 2017 | C103: Physical | D103: NREL | E103: 554 | F103: g/kWh | G103: generation shares from ENTSO-E
A104: GR | B104: 2017 | C104: Physical | D104: IPCC | E104: 495 | F104: g/kWh | G104: generation shares from ENTSO-E
A105: ES | B105: 2017 | C105: Hybrid | D105: EXIO Hybrid | E105: 600 | F105: g/kWh | G105: generation shares from ENTSO-E
A106: ES | B106: 2017 | C106: Physical | D106: NREL | E106: 308 | F106: g/kWh | G106: generation shares from ENTSO-E
A107: ES | B107: 2017 | C107: Physical | D107: IPCC | E107: 280 | F107: g/kWh | G107: generation shares from ENTSO-E
A108: FI | B108: 2017 | C108: Hybrid | D108: EXIO Hybrid | E108: 627 | F108: g/kWh | G108: generation shares from ENTSO-E
A109: FI | B109: 2017 | C109: Physical | D109: NREL | E109: 223 | F109: g/kWh | G109: generation shares from ENTSO-E
A110: FI | B110: 2017 | C110: Physical | D110: IPCC | E110: 201 | F110: g/kWh | G110: generation shares from ENTSO-E
A111: FR | B111: 2017 | C111: Hybrid | D111: EXIO Hybrid | E111: 200 | F111: g/kWh | G111: generation shares from ENTSO-E
A112: FR | B112: 2017 | C112: Physical | D112: NREL | E112: 75 | F112: g/kWh | G112: generation shares from ENTSO-E
A113: FR | B113: 2017 | C113: Physical | D113: IPCC | E113: 72 | F113: g/kWh | G113: generation shares from ENTSO-E
A114: HR | B114: 2017 | C114: Hybrid | D114: EXIO Hybrid | E114: 433 | F114: g/kWh | G114: generation shares from ENTSO-E
A115: HR | B115: 2017 | C115: Physical | D115: NREL | E115: 259 | F115: g/kWh | G115: generation shares from ENTSO-E
A116: HR | B116: 2017 | C116: Physical | D116: IPCC | E116: 247 | F116: g/kWh | G116: generation shares from ENTSO-E
A117: HU | B117: 2017 | C117: Hybrid | D117: EXIO Hybrid | E117: 455 | F117: g/kWh | G117: generation shares from ENTSO-E
A118: HU | B118: 2017 | C118: Physical | D118: NREL | E118: 297 | F118: g/kWh | G118: generation shares from ENTSO-E
A119: HU | B119: 2017 | C119: Physical | D119: IPCC | E119: 270 | F119: g/kWh | G119: generation shares from ENTSO-E
A120: IE | B120: 2017 | C120: Hybrid | D120: EXIO Hybrid | E120: 776 | F120: g/kWh | G120: generation shares from ENTSO-E
A121: IE | B121: 2017 | C121: Physical | D121: NREL | E121: 488 | F121: g/kWh | G121: generation shares from ENTSO-E
A122: IE | B122: 2017 | C122: Physical | D122: IPCC | E122: 453 | F122: g/kWh | G122: generation shares from ENTSO-E
A123: IT | B123: 2017 | C123: Hybrid | D123: EXIO Hybrid | E123: 720 | F123: g/kWh | G123: generation shares from ENTSO-E
A124: IT | B124: 2017 | C124: Physical | D124: NREL | E124: 340 | F124: g/kWh | G124: generation shares from ENTSO-E
A125: IT | B125: 2017 | C125: Physical | D125: IPCC | E125: 322 | F125: g/kWh | G125: generation shares from ENTSO-E
A126: LT | B126: 2017 | C126: Hybrid | D126: EXIO Hybrid | E126: 284 | F126: g/kWh | G126: generation shares from ENTSO-E
A127: LT | B127: 2017 | C127: Physical | D127: NREL | E127: 143 | F127: g/kWh | G127: generation shares from ENTSO-E
A128: LT | B128: 2017 | C128: Physical | D128: IPCC | E128: 147 | F128: g/kWh | G128: generation shares from ENTSO-E
A129: LV | B129: 2017 | C129: Hybrid | D129: EXIO Hybrid | E129: 252 | F129: g/kWh | G129: generation shares from ENTSO-E
A130: LV | B130: 2017 | C130: Physical | D130: NREL | E130: 140 | F130: g/kWh | G130: generation shares from ENTSO-E
A131: LV | B131: 2017 | C131: Physical | D131: IPCC | E131: 149 | F131: g/kWh | G131: generation shares from ENTSO-E
A132: NL | B132: 2017 | C132: Hybrid | D132: EXIO Hybrid | E132: 664 | F132: g/kWh | G132: generation shares from ENTSO-E
A133: NL | B133: 2017 | C133: Physical | D133: NREL | E133: 618 | F133: g/kWh | G133: generation shares from ENTSO-E
A134: NL | B134: 2017 | C134: Physical | D134: IPCC | E134: 561 | F134: g/kWh | G134: generation shares from ENTSO-E
A135: PL | B135: 2017 | C135: Hybrid | D135: EXIO Hybrid | E135: 1642 | F135: g/kWh | G135: generation shares from ENTSO-E
A136: PL | B136: 2017 | C136: Physical | D136: NREL | E136: 844 | F136: g/kWh | G136: generation shares from ENTSO-E
A137: PL | B137: 2017 | C137: Physical | D137: IPCC | E137: 712 | F137: g/kWh | G137: generation shares from ENTSO-E
A138: PT | B138: 2017 | C138: Hybrid | D138: EXIO Hybrid | E138: 725 | F138: g/kWh | G138: generation shares from ENTSO-E
A139: PT | B139: 2017 | C139: Physical | D139: NREL | E139: 421 | F139: g/kWh | G139: generation shares from ENTSO-E
A140: PT | B140: 2017 | C140: Physical | D140: IPCC | E140: 383 | F140: g/kWh | G140: generation shares from ENTSO-E
A141: RO | B141: 2017 | C141: Hybrid | D141: EXIO Hybrid | E141: 548 | F141: g/kWh | G141: generation shares from ENTSO-E
A142: RO | B142: 2017 | C142: Physical | D142: NREL | E142: 358 | F142: g/kWh | G142: generation shares from ENTSO-E
A143: RO | B143: 2017 | C143: Physical | D143: IPCC | E143: 318 | F143: g/kWh | G143: generation shares from ENTSO-E
A144: SE | B144: 2017 | C144: Hybrid | D144: EXIO Hybrid | E144: 10 | F144: g/kWh | G144: generation shares from ENTSO-E
A145: SE | B145: 2017 | C145: Physical | D145: NREL | E145: 12 | F145: g/kWh | G145: generation shares from ENTSO-E
A146: SE | B146: 2017 | C146: Physical | D146: IPCC | E146: 17 | F146: g/kWh | G146: generation shares from ENTSO-E
A147: SI | B147: 2017 | C147: Hybrid | D147: EXIO Hybrid | E147: 384 | F147: g/kWh | G147: generation shares from ENTSO-E
A148: SI | B148: 2017 | C148: Physical | D148: NREL | E148: 302 | F148: g/kWh | G148: generation shares from ENTSO-E
A149: SI | B149: 2017 | C149: Physical | D149: IPCC | E149: 259 | F149: g/kWh | G149: generation shares from ENTSO-E
A150: SK | B150: 2017 | C150: Hybrid | D150: EXIO Hybrid | E150: 273 | F150: g/kWh | G150: generation shares from ENTSO-E
A151: SK | B151: 2017 | C151: Physical | D151: NREL | E151: 147 | F151: g/kWh | G151: generation shares from ENTSO-E
A152: SK | B152: 2017 | C152: Physical | D152: IPCC | E152: 133 | F152: g/kWh | G152: generation shares from ENTSO-E
A153: US | B153: 2017 | C153: Hybrid | D153: EXIO Hybrid | E153: 843 | F153: g/kWh | G153: generation shares from ENTSO-E
A154: US | B154: 2017 | C154: Physical | D154: NREL | E154: 474 | F154: g/kWh | G154: generation shares from ENTSO-E
A155: US | B155: 2017 | C155: Physical | D155: IPCC | E155: 424 | F155: g/kWh | G155: generation shares from ENTSO-E
A156: AT | B156: 2017 | C156: Monetary | D156: EXIOBASE pxp | E156: 64 | F156: g/kWh
A157: BE | B157: 2017 | C157: Monetary | D157: EXIOBASE pxp | E157: 133 | F157: g/kWh
A158: BG | B158: 2017 | C158: Monetary | D158: EXIOBASE pxp | E158: 443 | F158: g/kWh
A159: CY | B159: 2017 | C159: Monetary | D159: EXIOBASE pxp | E159: 509 | F159: g/kWh
A160: CZ | B160: 2017 | C160: Monetary | D160: EXIOBASE pxp | E160: 308 | F160: g/kWh
A161: DE | B161: 2017 | C161: Monetary | D161: EXIOBASE pxp | E161: 187 | F161: g/kWh
A162: DK | B162: 2017 | C162: Monetary | D162: EXIOBASE pxp | E162: 17 | F162: g/kWh
A163: EE | B163: 2017 | C163: Monetary | D163: EXIOBASE pxp | E163: 261 | F163: g/kWh
A164: ES | B164: 2017 | C164: Monetary | D164: EXIOBASE pxp | E164: 215 | F164: g/kWh
A165: FI | B165: 2017 | C165: Monetary | D165: EXIOBASE pxp | E165: 63 | F165: g/kWh
A166: FR | B166: 2017 | C166: Monetary | D166: EXIOBASE pxp | E166: 63 | F166: g/kWh
A167: GR | B167: 2017 | C167: Monetary | D167: EXIOBASE pxp | E167: 232 | F167: g/kWh
A168: HR | B168: 2017 | C168: Monetary | D168: EXIOBASE pxp | E168: 180 | F168: g/kWh
A169: HU | B169: 2017 | C169: Monetary | D169: EXIOBASE pxp | E169: 159 | F169: g/kWh
A170: IE | B170: 2017 | C170: Monetary | D170: EXIOBASE pxp | E170: 329 | F170: g/kWh
A171: IT | B171: 2017 | C171: Monetary | D171: EXIOBASE pxp | E171: 227 | F171: g/kWh
A172: LT | B172: 2017 | C172: Monetary | D172: EXIOBASE pxp | E172: 37 | F172: g/kWh
A173: LU | B173: 2017 | C173: Monetary | D173: EXIOBASE pxp | E173: 43 | F173: g/kWh
A174: LV | B174: 2017 | C174: Monetary | D174: EXIOBASE pxp | E174: 35 | F174: g/kWh
A175: MT | B175: 2017 | C175: Monetary | D175: EXIOBASE pxp | E175: 142 | F175: g/kWh
A176: NL | B176: 2017 | C176: Monetary | D176: EXIOBASE pxp | E176: 232 | F176: g/kWh
A177: PL | B177: 2017 | C177: Monetary | D177: EXIOBASE pxp | E177: 404 | F177: g/kWh
A178: PT | B178: 2017 | C178: Monetary | D178: EXIOBASE pxp | E178: 251 | F178: g/kWh
A179: RO | B179: 2017 | C179: Monetary | D179: EXIOBASE pxp | E179: 361 | F179: g/kWh
A180: SE | B180: 2017 | C180: Monetary | D180: EXIOBASE pxp | E180: 9 | F180: g/kWh
A181: SI | B181: 2017 | C181: Monetary | D181: EXIOBASE pxp | E181: 153 | F181: g/kWh
A182: SK | B182: 2017 | C182: Monetary | D182: EXIOBASE pxp | E182: 108 | F182: g/kWh
A183: US | B183: 2017 | C183: Monetary | D183: EXIOBASE pxp | E183: 434 | F183: g/kWh
A184: AT | B184: 2017 | C184: Monetary | D184: EXIOBASE ixi | E184: 74 | F184: g/kWh
A185: BE | B185: 2017 | C185: Monetary | D185: EXIOBASE ixi | E185: 151 | F185: g/kWh
A186: BG | B186: 2017 | C186: Monetary | D186: EXIOBASE ixi | E186: 418 | F186: g/kWh
A187: CY | B187: 2017 | C187: Monetary | D187: EXIOBASE ixi | E187: 507 | F187: g/kWh
A188: CZ | B188: 2017 | C188: Monetary | D188: EXIOBASE ixi | E188: 305 | F188: g/kWh
A189: DE | B189: 2017 | C189: Monetary | D189: EXIOBASE ixi | E189: 207 | F189: g/kWh
A190: DK | B190: 2017 | C190: Monetary | D190: EXIOBASE ixi | E190: 30 | F190: g/kWh
A191: EE | B191: 2017 | C191: Monetary | D191: EXIOBASE ixi | E191: 291 | F191: g/kWh
A192: ES | B192: 2017 | C192: Monetary | D192: EXIOBASE ixi | E192: 260 | F192: g/kWh
A193: FI | B193: 2017 | C193: Monetary | D193: EXIOBASE ixi | E193: 71 | F193: g/kWh
A194: FR | B194: 2017 | C194: Monetary | D194: EXIOBASE ixi | E194: 63 | F194: g/kWh
A195: GR | B195: 2017 | C195: Monetary | D195: EXIOBASE ixi | E195: 247 | F195: g/kWh
A196: HR | B196: 2017 | C196: Monetary | D196: EXIOBASE ixi | E196: 213 | F196: g/kWh
A197: HU | B197: 2017 | C197: Monetary | D197: EXIOBASE ixi | E197: 153 | F197: g/kWh
A198: IE | B198: 2017 | C198: Monetary | D198: EXIOBASE ixi | E198: 343 | F198: g/kWh
A199: IT | B199: 2017 | C199: Monetary | D199: EXIOBASE ixi | E199: 243 | F199: g/kWh
A200: LT | B200: 2017 | C200: Monetary | D200: EXIOBASE ixi | E200: 45 | F200: g/kWh
... 362 more rows

Sheet Stat analysis DCI 2017
B1: Physical | C1: Physical | D1: Hybrid | E1: Monetary | F1: Monetary | G1: Monetary | H1: Monetary | I1: Monetary | J1: Monetary | K1: Stats | U1: Sources comparison
A2: Paese | B2: Electricity Maps | C2: JRC | D2: EXIO Hybrid | E2: EORA 199.82 | F2: EXIOBASE 3.10 ixi | G2: EXIOBASE 3.10 pxp | H2: GLORIA 0.6 act | I2: GTAP 11 | J2: EMERGING 1 | K2: Median | L2: Mean | M2: Standard dev | N2: CV% | O2: Min | P2: Max | Q2: Relative dispersion% | R2: Q1 | S2: Q2 | T2: IQR | U2: Source min | V2: Source max
A3: AT | B3: 90.5 | C3: 315.5 | D3: 154.3 | E3: 47.7 | F3: 24.9 | G3: 18.7 | H3: 54.6 | I3: 198.5 | J3: 24.3 | K3: =MEDIAN(B3:J3) -> 54.6 | L3: =AVERAGE(B3:J3) -> 103.2 | M3: =_xlfn.STDEV.S(B3:J3) -> 101.2 | N3: =M3/L3 -> 1.0 | O3: =MIN(B3:J3) -> 18.7 | P3: =MAX(B3:J3) -> 315.5 | Q3: =(P3-O3)/K3 -> 543% | R3: =QUARTILE(B3:J3,1) -> 24.9 | S3: =QUARTILE(B3:J3,3) -> 154.3 | T3: =QUARTILE(B3:J3,3)-QUARTILE(B3:I3,1) -> 112.3 | U3: =INDEX($B$2:$J$2,MATCH(O3,B3:J3,0)) -> EXIOBASE 3.10 pxp | V3: =INDEX($B$2:$J$2,MATCH(P3,B3:J3,0)) -> JRC
A4: BE | B4: 141.3 | C4: 217.1 | D4: 185.2 | E4: 159.5 | F4: 120.1 | G4: 103.1 | H4: 141.0 | I4: 188.0 | J4: 20.4 | K4: =MEDIAN(B4:J4) -> 141.3 | L4: =AVERAGE(B4:J4) -> 141.8 | M4: =_xlfn.STDEV.S(B4:J4) -> 57.8 | N4: =M4/L4 -> 0.4 | O4: =MIN(B4:J4) -> 20.4 | P4: =MAX(B4:J4) -> 217.1 | Q4: =(P4-O4)/K4 -> 139% | R4: =QUARTILE(B4:J4,1) -> 120.1 | S4: =QUARTILE(B4:J4,3) -> 185.2 | T4: =QUARTILE(B4:J4,3)-QUARTILE(B4:I4,1) -> 49.5 | U4: EMERGING 1 | V4: JRC
A5: BG | B5: 545.0 | C5: 658.4 | D5: 542.0 | E5: 217.3 | F5: 380.0 | G5: 407.9 | H5: 597.0 | I5: 403.5 | J5: 482.6 | K5: 482.6 | L5: 470.4 | M5: 133.6 | N5: 0.3 | O5: 217.3 | P5: 658.4 | Q5: 91% | R5: 403.5 | S5: 545.0 | T5: 147.4 | U5: EORA 199.82 | V5: JRC
A6: CY | C6: 722.3 | E6: 454.3 | F6: 441.6 | G6: 442.8 | H6: 497.2 | I6: 117.1 | J6: 260.6 | K6: 442.8 | L6: 419.4 | M6: 190.0 | N6: 0.5 | O6: 117.1 | P6: 722.3 | Q6: 137% | R6: 351.1 | S6: 475.8 | T6: 33.8 | U6: GTAP 11 | V6: JRC
A7: CZ | B7: 553.2 | C7: 659.6 | D7: 558.4 | E7: 165.3 | F7: 249.9 | G7: 253.7 | H7: 333.2 | I7: 528.3 | J7: 167.7 | K7: 333.2 | L7: 385.5 | M7: 189.7 | N7: 0.5 | O7: 165.3 | P7: 659.6 | Q7: 148% | R7: 249.9 | S7: 553.2 | T7: 300.5 | U7: EORA 199.82 | V7: JRC
A8: DE | B8: 448.7 | C8: 474.8 | D8: 455.0 | E8: 141.6 | F8: 171.7 | G8: 151.6 | H8: 217.1 | I8: 630.9 | J8: 285.3 | K8: 285.3 | L8: 330.7 | M8: 176.2 | N8: 0.5 | O8: 141.6 | P8: 630.9 | Q8: 171% | R8: 171.7 | S8: 455.0 | T8: 288.3 | U8: EORA 199.82 | V8: GTAP 11
A9: DK | B9: 173.3 | C9: 140.6 | D9: 229.6 | E9: 163.3 | F9: 11.2 | G9: 6.8 | H9: 127.2 | I9: 174.4 | J9: 47.6 | K9: 140.6 | L9: 119.3 | M9: 79.1 | N9: 0.7 | O9: 6.8 | P9: 229.6 | Q9: 158% | R9: 47.6 | S9: 173.3 | T9: 75.1 | U9: EXIOBASE 3.10 pxp | V9: EXIO Hybrid
A10: EE | B10: 574.3 | C10: 1,032.5 | D10: 544.2 | E10: 351.6 | F10: 266.1 | G10: 238.4 | H10: 450.2 | I10: 211.5 | J10: 555.1 | K10: 450.2 | L10: 469.3 | M10: 254.1 | N10: 0.5 | O10: 211.5 | P10: 1032.5 | Q10: 182% | R10: 266.1 | S10: 555.1 | T10: 295.9 | U10: GTAP 11 | V10: JRC
A11: ES | B11: 314.7 | C11: 338.1 | D11: 299.2 | E11: 172.6 | F11: 232.7 | G11: 189.8 | H11: 174.4 | I11: 290.0 | J11: 58.1 | K11: 232.7 | L11: 230.0 | M11: 90.0 | N11: 0.4 | O11: 58.1 | P11: 338.1 | Q11: 120% | R11: 174.4 | S11: 299.2 | T11: 113.3 | U11: EMERGING 1 | V11: JRC
A12: FI | B12: 155.9 | C12: 98.5 | D12: 246.0 | E12: 189.9 | F12: 60.2 | G12: 51.8 | H12: 128.6 | I12: 187.8 | J12: 115.3 | K12: 128.6 | L12: 137.1 | M12: 64.0 | N12: 0.5 | O12: 51.8 | P12: 246.0 | Q12: 151% | R12: 98.5 | S12: 187.8 | T12: 98.9 | U12: EXIOBASE 3.10 pxp | V12: EXIO Hybrid
A13: FR | B13: 51.0 | C13: 87.2 | D13: 71.5 | E13: 40.0 | F13: 37.8 | G13: 37.8 | H13: 40.6 | I13: 103.1 | J13: 25.0 | K13: 40.6 | L13: 54.9 | M13: 26.4 | N13: 0.5 | O13: 25.0 | P13: 103.1 | Q13: 192% | R13: 37.8 | S13: 71.5 | T13: 32.1 | U13: EMERGING 1 | V13: GTAP 11
A14: GR | B14: 604.6 | C14: 615.2 | D14: 599.8 | E14: 492.6 | F14: 176.7 | G14: 175.3 | H14: 251.5 | I14: 706.3 | J14: 247.7 | K14: 492.6 | L14: 430.0 | M14: 214.5 | N14: 0.5 | O14: 175.3 | P14: 706.3 | Q14: 108% | R14: 247.7 | S14: 604.6 | T14: 371.8 | U14: EXIOBASE 3.10 pxp | V14: GTAP 11
A15: HR | B15: 229.1 | C15: 418.9 | D15: 270.2 | E15: 120.4 | F15: 140.5 | G15: 113.7 | H15: 99.9 | I15: 303.0 | J15: 59.4 | K15: 140.5 | L15: 195.0 | M15: 117.9 | N15: 0.6 | O15: 59.4 | P15: 418.9 | Q15: 256% | R15: 113.7 | S15: 270.2 | T15: 151.4 | U15: EMERGING 1 | V15: JRC
A16: HU | B16: 320.6 | C16: 282.3 | D16: 317.4 | E16: 114.0 | F16: 126.9 | G16: 132.0 | H16: 197.2 | I16: 265.8 | J16: 83.0 | K16: 197.2 | L16: 204.4 | M16: 93.8 | N16: 0.5 | O16: 83.0 | P16: 320.6 | Q16: 121% | R16: 126.9 | S16: 282.3 | T16: 151.5 | U16: EMERGING 1 | V16: Electricity Maps
A17: IE | B17: 505.2 | C17: 422.8 | D17: 453.9 | E17: 277.5 | F17: 318.4 | G17: 304.7 | H17: 310.2 | I17: 582.6 | J17: 205.5 | K17: 318.4 | L17: 375.7 | M17: 122.0 | N17: 0.3 | O17: 205.5 | P17: 582.6 | Q17: 118% | R17: 304.7 | S17: 453.9 | T17: 145.1 | U17: EMERGING 1 | V17: GTAP 11
A18: IT | B18: 384.6 | C18: 327.7 | D18: 345.2 | E18: 170.2 | F18: 189.7 | G18: 175.6 | H18: 151.1 | I18: 315.8 | J18: 85.3 | K18: 189.7 | L18: 238.3 | M18: 105.3 | N18: 0.4 | O18: 85.3 | P18: 384.6 | Q18: 158% | R18: 170.2 | S18: 327.7 | T18: 153.4 | U18: EMERGING 1 | V18: Electricity Maps
A19: LT | B19: 104.4 | C19: 70.7 | D19: 120.3 | E19: 93.5 | F19: 14.4 | G19: 8.1 | H19: 57.6 | I19: 64.0 | J19: 5.8 | K19: 64.0 | L19: 59.9 | M19: 42.7 | N19: 0.7 | O19: 5.8 | P19: 120.3 | Q19: 179% | R19: 14.4 | S19: 93.5 | T19: 46.7 | U19: EMERGING 1 | V19: EXIO Hybrid
A20: LU | C20: 437.2 | E20: 62.4 | F20: 13.3 | G20: 1.5 | H20: 14.1 | I20: 172.8 | J20: 307.1 | K20: 62.4 | L20: 144.1 | M20: 170.4 | N20: 1.2 | O20: 1.5 | P20: 437.2 | Q20: 699% | R20: 13.7 | S20: 239.9 | T20: 226.4 | U20: EXIOBASE 3.10 pxp | V20: JRC
A21: LV | B21: 134.8 | C21: 370.2 | D21: 144.5 | E21: 113.1 | F21: 26.2 | G21: 13.1 | H21: 62.3 | I21: 148.9 | J21: 36.4 | K21: 113.1 | L21: 116.6 | M21: 108.8 | N21: 0.9 | O21: 13.1 | P21: 370.2 | Q21: 316% | R21: 36.4 | S21: 144.5 | T21: 91.2 | U21: EXIOBASE 3.10 pxp | V21: JRC
A22: MT | C22: 423.6 | E22: 430.8 | F22: 83.0 | G22: 52.2 | H22: 82.2 | I22: 518.9 | J22: 216.8 | K22: 216.8 | L22: 258.2 | M22: 196.2 | N22: 0.8 | O22: 52.2 | P22: 518.9 | Q22: 215% | R22: 82.6 | S22: 427.2 | T22: 344.8 | U22: EXIOBASE 3.10 pxp | V22: GTAP 11
A23: NL | B23: 528.0 | C23: 466.0 | D23: 395.2 | E23: 131.9 | F23: 220.7 | G23: 196.3 | H23: 239.2 | I23: 444.7 | J23: 239.6 | K23: 239.6 | L23: 318.0 | M23: 141.1 | N23: 0.4 | O23: 131.9 | P23: 528.0 | Q23: 165% | R23: 220.7 | S23: 444.7 | T23: 230.1 | U23: EORA 199.82 | V23: Electricity Maps
A24: PL | B24: 916.4 | C24: 867.6 | D24: 760.2 | E24: 279.2 | F24: 427.7 | G24: 372.2 | H24: 551.6 | I24: 727.0 | J24: 352.8 | K24: 551.6 | L24: 583.9 | M24: 239.6 | N24: 0.4 | O24: 279.2 | P24: 916.4 | Q24: 116% | R24: 372.2 | S24: 760.2 | T24: 346.4 | U24: EORA 199.82 | V24: Electricity Maps
A25: PT | B25: 393.2 | C25: 423.5 | D25: 398.9 | E25: 159.9 | F25: 168.9 | G25: 140.0 | H25: 149.7 | I25: 481.6 | J25: 252.4 | K25: 252.4 | L25: 285.3 | M25: 137.9 | N25: 0.5 | O25: 140.0 | P25: 481.6 | Q25: 135% | R25: 159.9 | S25: 398.9 | T25: 241.5 | U25: EXIOBASE 3.10 pxp | V25: GTAP 11
A26: RO | B26: 430.1 | C26: 471.2 | D26: 400.5 | E26: 120.6 | F26: 291.8 | G26: 291.8 | H26: 223.1 | I26: 369.8 | J26: 127.1 | K26: 291.8 | L26: 302.9 | M26: 127.1 | N26: 0.4 | O26: 120.6 | P26: 471.2 | Q26: 120% | R26: 223.1 | S26: 400.5 | T26: 125.9 | U26: EORA 199.82 | V26: JRC
A27: SE | B27: 1.5 | C27: 17.0 | D27: 0.0 | E27: 37.6 | F27: 1.7 | G27: 0.9 | H27: 36.4 | I27: 28.6 | J27: 7.2 | K27: 7.2 | L27: 14.6 | M27: 15.8 | N27: 1.1 | O27: 0.0 | P27: 37.6 | Q27: 520% | R27: 1.5 | S27: 28.6 | T27: 27.2 | U27: EXIO Hybrid | V27: EORA 199.82
A28: SI | B28: 305.8 | C28: 235.5 | D28: 292.2 | E28: 240.4 | F28: 189.0 | G28: 128.5 | H28: 160.9 | I28: 336.0 | J28: 198.2 | K28: 235.5 | L28: 231.8 | M28: 69.6 | N28: 0.3 | O28: 128.5 | P28: 336.0 | Q28: 88% | R28: 189.0 | S28: 292.2 | T28: 110.3 | U28: EXIOBASE 3.10 pxp | V28: GTAP 11
A29: SK | B29: 169.1 | C29: 429.1 | D29: 139.0 | E29: 47.1 | F29: 86.1 | G29: 40.1 | H29: 86.2 | I29: 267.4 | J29: 52.1 | K29: 86.2 | L29: 146.2 | M29: 128.7 | N29: 0.9 | O29: 40.1 | P29: 429.1 | Q29: 451% | R29: 52.1 | S29: 169.1 | T29: 92.7 | U29: EXIOBASE 3.10 pxp | V29: JRC
A30: US | B30: 438.9 | D30: 441.1 | E30: 322.5 | F30: 457.3 | G30: 426.9 | H30: 381.0 | I30: 425.4 | J30: 354.9 | K30: 426.2 | L30: 406.0 | M30: 47.8 | N30: 0.1 | O30: 322.5 | P30: 457.3 | Q30: 32% | R30: 374.4 | S30: 439.5 | T30: 36.3 | U30: EORA 199.82 | V30: EXIOBASE 3.10 ixi

Sheet Stat analysis DCI 2023
B1: Physical | C1: Hybrid | D1: Monetary | E1: Monetary | F1: Stats | P1: Sources comparison
A2: Paese | B2: Electricity Maps | C2: EXIO Hybrid | D2: GLORIA 0.6 act | E2: EMERGING 2 | F2: Median | G2: Mean | H2: Standard dev | I2: CV% | J2: Min | K2: Max | L2: Relative dispersion% | M2: Q1 | N2: Q2 | O2: IQR | P2: Source min | Q2: Source max
A3: AT | B3: 43.1 | C3: 86.8 | D3: 127.9 | E3: 214.0 | F3: =MEDIAN(B3:E3) -> 107.3 | G3: =AVERAGE(B3:E3) -> 118.0 | H3: =_xlfn.STDEV.S(B3:E3) -> 72.8 | I3: =H3/G3 -> 0.6 | J3: =MIN(B3:E3) -> 43.1 | K3: =MAX(B3:E3) -> 214.0 | L3: =(K3-J3)/F3 -> 159% | M3: =QUARTILE(B3:E3,1) -> 75.9 | N3: =QUARTILE(B3:E3,3) -> 149.4 | O3: =QUARTILE(B3:E3,3)-QUARTILE(B3:D3,1) -> 84.5 | P3: =INDEX($B$2:$E$2,MATCH(J3,B3:E3,0)) -> Electricity Maps | Q3: =INDEX($B$2:$E$2,MATCH(K3,B3:E3,0)) -> EMERGING 2
A4: BE | B4: 121.1 | C4: 135.4 | D4: 146.7 | E4: 185.7 | F4: =MEDIAN(B4:E4) -> 141.1 | G4: =AVERAGE(B4:E4) -> 147.2 | H4: =_xlfn.STDEV.S(B4:E4) -> 27.7 | I4: =H4/G4 -> 0.2 | J4: =MIN(B4:E4) -> 121.1 | K4: =MAX(B4:E4) -> 185.7 | L4: =(K4-J4)/F4 -> 46% | M4: =QUARTILE(B4:E4,1) -> 131.9 | N4: =QUARTILE(B4:E4,3) -> 156.4 | O4: =QUARTILE(B4:E4,3)-QUARTILE(B4:D4,1) -> 28.1 | P4: Electricity Maps | Q4: EMERGING 2
A5: BG | B5: 405.1 | C5: 405.8 | D5: 371.4 | E5: 185.4 | F5: 388.2 | G5: 341.9 | H5: 105.6 | I5: 0.3 | J5: 185.4 | K5: 405.8 | L5: 57% | M5: 324.9 | N5: 405.3 | O5: 17.0 | P5: EMERGING 2 | Q5: EXIO Hybrid
A6: CY | D6: 1,061.7 | E6: 316.5 | F6: 689.1 | G6: 689.1 | H6: 527.0 | I6: 0.8 | J6: 316.5 | K6: 1061.7 | L6: 108% | M6: 502.8 | N6: 875.4 | O6: -186.3 | P6: EMERGING 2 | Q6: GLORIA 0.6 act
A7: CZ | B7: 440.5 | C7: 443.9 | D7: 469.0 | E7: 911.7 | F7: =MEDIAN(B7:E7) -> 456.4 | G7: =AVERAGE(B7:E7) -> 566.3 | H7: =_xlfn.STDEV.S(B7:E7) -> 230.6 | I7: =H7/G7 -> 0.4 | J7: =MIN(B7:E7) -> 440.5 | K7: =MAX(B7:E7) -> 911.7 | L7: =(K7-J7)/F7 -> 103% | M7: =QUARTILE(B7:E7,1) -> 443.0 | N7: =QUARTILE(B7:E7,3) -> 579.6 | O7: =QUARTILE(B7:E7,3)-QUARTILE(B7:D7,1) -> 137.4 | P7: Electricity Maps | Q7: EMERGING 2
A8: DE | B8: 328.3 | C8: 336.0 | D8: 180.8 | E8: 176.2 | F8: 254.6 | G8: 255.3 | H8: 88.8 | I8: 0.3 | J8: 176.2 | K8: 336.0 | L8: 63% | M8: 179.7 | N8: 330.2 | O8: 75.7 | P8: EMERGING 2 | Q8: EXIO Hybrid
A9: DK | B9: 97.3 | C9: 133.4 | D9: 112.3 | E9: 147.9 | F9: 122.9 | G9: 122.7 | H9: 22.4 | I9: 0.2 | J9: 97.3 | K9: 147.9 | L9: 41% | M9: 108.6 | N9: 137.0 | O9: 32.2 | P9: Electricity Maps | Q9: EMERGING 2
A10: EE | B10: 382.5 | C10: 381.5 | D10: 248.2 | E10: 345.4 | F10: 363.4 | G10: 339.4 | H10: 63.2 | I10: 0.2 | J10: 248.2 | K10: 382.5 | L10: 37% | M10: 321.1 | N10: 381.7 | O10: 66.9 | P10: GLORIA 0.6 act | Q10: Electricity Maps
A11: ES | B11: 108.4 | C11: 137.2 | D11: 135.5 | E11: 95.4 | F11: 122.0 | G11: 119.1 | H11: 20.6 | I11: 0.2 | J11: 95.4 | K11: 137.2 | L11: 34% | M11: 105.1 | N11: 136.0 | O11: 14.0 | P11: EMERGING 2 | Q11: EXIO Hybrid
A12: FI | B12: 47.6 | C12: 76.7 | D12: 104.2 | E12: 72.0 | F12: 74.3 | G12: 75.1 | H12: 23.2 | I12: 0.3 | J12: 47.6 | K12: 104.2 | L12: 76% | M12: 65.9 | N12: 83.5 | O12: 21.4 | P12: Electricity Maps | Q12: GLORIA 0.6 act
A13: FR | B13: 26.9 | C13: 43.8 | D13: 41.8 | E13: 61.1 | F13: 42.8 | G13: 43.4 | H13: 14.0 | I13: 0.3 | J13: 26.9 | K13: 61.1 | L13: 80% | M13: 38.1 | N13: 48.1 | O13: 13.7 | P13: Electricity Maps | Q13: EMERGING 2
A14: GR | B14: 277.5 | C14: 313.2 | D14: 355.4 | E14: 461.3 | F14: 334.3 | G14: 351.9 | H14: 79.6 | I14: 0.2 | J14: 277.5 | K14: 461.3 | L14: 55% | M14: 304.3 | N14: 381.9 | O14: 86.5 | P14: Electricity Maps | Q14: EMERGING 2
A15: HR | B15: 164.7 | C15: 198.0 | D15: 154.6 | E15: 200.1 | F15: 181.4 | G15: 179.3 | H15: 23.2 | I15: 0.1 | J15: 154.6 | K15: 200.1 | L15: 25% | M15: 162.2 | N15: 198.5 | O15: 38.9 | P15: GLORIA 0.6 act | Q15: EMERGING 2
A16: HU | B16: 211.0 | C16: 219.8 | D16: 269.2 | E16: 342.7 | F16: 244.5 | G16: 260.7 | H16: 60.4 | I16: 0.2 | J16: 211.0 | K16: 342.7 | L16: 54% | M16: 217.6 | N16: 287.6 | O16: 72.2 | P16: Electricity Maps | Q16: EMERGING 2
A17: IE | B17: 299.5 | C17: 304.4 | D17: 409.4 | E17: 303.6 | F17: 304.0 | G17: 329.2 | H17: 53.5 | I17: 0.2 | J17: 299.5 | K17: 409.4 | L17: 36% | M17: 302.6 | N17: 330.7 | O17: 28.7 | P17: Electricity Maps | Q17: GLORIA 0.6 act
A18: IT | B18: 294.7 | C18: 331.7 | D18: 177.6 | E18: 170.5 | F18: 236.2 | G18: 243.6 | H18: 81.8 | I18: 0.3 | J18: 170.5 | K18: 331.7 | L18: 68% | M18: 175.8 | N18: 304.0 | O18: 67.8 | P18: EMERGING 2 | Q18: EXIO Hybrid
A19: LT | B19: 57.4 | C19: 78.0 | D19: 68.4 | E19: 75.1 | F19: 71.8 | G19: 69.7 | H19: 9.1 | I19: 0.1 | J19: 57.4 | K19: 78.0 | L19: 29% | M19: 65.7 | N19: 75.8 | O19: 12.9 | P19: Electricity Maps | Q19: EXIO Hybrid
A20: LU | D20: 25.3 | E20: 198.1 | F20: 111.7 | G20: 111.7 | H20: 122.2 | I20: 1.1 | J20: 25.3 | K20: 198.1 | L20: 155% | M20: 68.5 | N20: 154.9 | O20: 129.6 | P20: GLORIA 0.6 act | Q20: EMERGING 2
A21: LV | B21: 103.6 | C21: 159.6 | D21: 30.4 | E21: 352.6 | F21: 131.6 | G21: 161.6 | H21: 137.9 | I21: 0.9 | J21: 30.4 | K21: 352.6 | L21: 245% | M21: 85.3 | N21: 207.8 | O21: 140.8 | P21: GLORIA 0.6 act | Q21: EMERGING 2
A22: MT | D22: 114.4 | E22: 315.6 | F22: 215.0 | G22: 215.0 | H22: 142.3 | I22: 0.7 | J22: 114.4 | K22: 315.6 | L22: 94% | M22: 164.7 | N22: 265.3 | O22: 151.0 | P22: GLORIA 0.6 act | Q22: EMERGING 2
A23: NL | B23: 405.9 | C23: 261.5 | D23: 323.5 | E23: 163.4 | F23: 292.5 | G23: 288.5 | H23: 102.3 | I23: 0.4 | J23: 163.4 | K23: 405.9 | L23: 83% | M23: 236.9 | N23: 344.1 | O23: 51.6 | P23: EMERGING 2 | Q23: Electricity Maps
A24: PL | B24: 728.4 | C24: 620.9 | D24: 735.7 | E24: 762.0 | F24: 732.1 | G24: 711.8 | H24: 62.3 | I24: 0.1 | J24: 620.9 | K24: 762.0 | L24: 19% | M24: 701.6 | N24: 742.3 | O24: 67.6 | P24: EXIO Hybrid | Q24: EMERGING 2
A25: PT | B25: 86.6 | C25: 120.9 | D25: 124.8 | E25: 128.6 | F25: 122.8 | G25: 115.2 | H25: 19.3 | I25: 0.2 | J25: 86.6 | K25: 128.6 | L25: 34% | M25: 112.3 | N25: 125.7 | O25: 22.0 | P25: Electricity Maps | Q25: EMERGING 2
A26: RO | B26: 272.8 | C26: 265.6 | D26: 89.5 | E26: 902.3 | F26: 269.2 | G26: 382.5 | H26: 356.7 | I26: 0.9 | J26: 89.5 | K26: 902.3 | L26: 302% | M26: 221.6 | N26: 430.2 | O26: 252.6 | P26: GLORIA 0.6 act | Q26: EMERGING 2
A27: SE | B27: 1.3 | C27: 0.0 | D27: 28.3 | E27: 13.7 | F27: 7.5 | G27: 10.8 | H27: 13.2 | I27: 1.2 | J27: 0.0 | K27: 28.3 | L27: 375% | M27: 1.0 | N27: 17.4 | O27: 16.7 | P27: EXIO Hybrid | Q27: GLORIA 0.6 act
A28: SI | B28: 220.9 | C28: 213.3 | D28: 173.1 | E28: 386.5 | F28: 217.1 | G28: 248.4 | H28: 94.4 | I28: 0.4 | J28: 173.1 | K28: 386.5 | L28: 98% | M28: 203.2 | N28: 262.3 | O28: 69.1 | P28: GLORIA 0.6 act | Q28: EMERGING 2
A29: SK | B29: 97.6 | C29: 91.1 | D29: 123.4 | E29: 329.2 | F29: 110.5 | G29: 160.3 | H29: 113.4 | I29: 0.7 | J29: 91.1 | K29: 329.2 | L29: 215% | M29: 96.0 | N29: 174.9 | O29: 80.5 | P29: EXIO Hybrid | Q29: EMERGING 2
A30: US | B30: 341.3 | C30: 359.4 | D30: 604.8 | E30: 581.9 | F30: 470.7 | G30: 471.9 | H30: 140.8 | I30: 0.3 | J30: 341.3 | K30: 604.8 | L30: 56% | M30: 354.9 | N30: 587.6 | O30: 237.2 | P30: Electricity Maps | Q30: GLORIA 0.6 act

Sheet Stat analysis LCCI 2017
B1: Physical | C1: Physical | D1: Physical | E1: Physical | F1: Physical | G1: Hybrid | H1: Monetary | I1: Monetary | J1: Monetary | K1: Monetary | L1: Monetary | M1: Monetary | N1: Monetary | O1: Stats | Y1: Sources comparison
A2: Paese | B2: Electricity Maps | C2: EMBER | D2: IPCC | E2: JRC | F2: NREL | G2: EXIO Hybrid | H2: EORA 199.82 | I2: EXIOBASE 3.10 ixi | J2: EXIOBASE 3.10 pxp | K2: GLORIA 0.6 act | L2: GLORIA 0.6 com | M2: GTAP 11 | N2: EMERGING 1 | O2: Median | P2: Mean | Q2: Standard dev | R2: CV% | S2: Min | T2: Max | U2: Relative dispersion% | V2: Q1 | W2: Q2 | X2: IQR | Y2: Source min | Z2: Source max
A3: AT | B3: 156.0 | C3: 163.0 | D3: 131.2 | E3: 292.5 | F3: 126.8 | G3: 430.3 | H3: 103.2 | I3: 73.6 | J3: 64.3 | K3: 155.2 | L3: 155.2 | M3: 252.5 | N3: 66.4 | O3: =MEDIAN(B3:N3) -> 155.2 | P3: =AVERAGE(B3:N3) -> 166.9 | Q3: =_xlfn.STDEV.S(B3:N3) -> 103.8 | R3: =Q3/P3 -> 0.6 | S3: =MIN(B3:N3) -> 64.3 | T3: =MAX(B3:N3) -> 430.3 | U3: =(T3-S3)/O3 -> 236% | V3: =QUARTILE(B3:N3,1) -> 103.2 | W3: =QUARTILE(B3:N3,3) -> 163.0 | X3: =QUARTILE(B3:N3,3)-QUARTILE(B3:M3,1) -> 42.1 | Y3: =INDEX($B$2:$N$2,MATCH(S3,B3:N3,0)) -> EXIOBASE 3.10 pxp | Z3: =INDEX($B$2:$N$2,MATCH(T3,B3:N3,0)) -> EXIO Hybrid
A4: BE | B4: 203.0 | C4: 159.0 | D4: 163.1 | E4: 230.4 | F4: 163.0 | G4: 322.8 | H4: 209.2 | I4: 150.6 | J4: 133.1 | K4: 187.5 | L4: 187.5 | M4: 235.6 | N4: 80.2 | O4: =MEDIAN(B4:N4) -> 187.5 | P4: =AVERAGE(B4:N4) -> 186.5 | Q4: =_xlfn.STDEV.S(B4:N4) -> 58.4 | R4: =Q4/P4 -> 0.3 | S4: =MIN(B4:N4) -> 80.2 | T4: =MAX(B4:N4) -> 322.8 | U4: =(T4-S4)/O4 -> 129% | V4: =QUARTILE(B4:N4,1) -> 159.0 | W4: =QUARTILE(B4:N4,3) -> 209.2 | X4: =QUARTILE(B4:N4,3)-QUARTILE(B4:M4,1) -> 47.2 | Y4: =INDEX($B$2:$N$2,MATCH(S4,B4:N4,0)) -> EMERGING 1 | Z4: =INDEX($B$2:$N$2,MATCH(T4,B4:N4,0)) -> EXIO Hybrid
A5: BG | B5: 552.0 | C5: 503.0 | D5: 414.8 | E5: 573.8 | F5: 489.6 | G5: 816.8 | H5: 386.5 | I5: 418.2 | J5: 443.0 | K5: 731.6 | L5: 731.6 | M5: 507.9 | N5: 749.4 | O5: 507.9 | P5: 562.9 | Q5: 146.3 | R5: 0.3 | S5: 386.5 | T5: 816.8 | U5: 85% | V5: 443.0 | W5: 731.6 | X5: 294.8 | Y5: EORA 199.82 | Z5: EXIO Hybrid
A6: CY | B6: 897.0 | C6: 606.0 | D6: 0.0 | E6: 858.8 | H6: 789.4 | I6: 507.0 | J6: 508.8 | K6: 554.4 | L6: 554.4 | M6: 170.4 | N6: 440.0 | O6: 554.4 | P6: 535.1 | Q6: 271.3 | R6: 0.5 | S6: 0.0 | T6: 897.0 | U6: 162% | V6: 473.5 | W6: 697.7 | X6: 190.2 | Y6: IPCC | Z6: Electricity Maps
A7: CZ | B7: 601.0 | C7: 542.0 | D7: 452.1 | E7: 624.1 | F7: 533.7 | G7: 1,164.8 | H7: 471.2 | I7: 304.7 | J7: 307.8 | K7: 461.6 | L7: 461.6 | M7: 622.2 | N7: 245.1 | O7: 471.2 | P7: 522.5 | Q7: 228.2 | R7: 0.4 | S7: 245.1 | T7: 1164.8 | U7: 195% | V7: 452.1 | W7: 601.0 | X7: 141.8 | Y7: EMERGING 1 | Z7: EXIO Hybrid
A8: DE | B8: 520.0 | C8: 470.0 | D8: 409.9 | E8: 441.6 | F8: 470.8 | G8: 761.2 | H8: 198.8 | I8: 206.5 | J8: 186.8 | K8: 270.3 | L8: 270.4 | M8: 705.1 | N8: 393.7 | O8: 409.9 | P8: 408.1 | Q8: 183.9 | R8: 0.5 | S8: 186.8 | T8: 761.2 | U8: 140% | V8: 270.3 | W8: 470.8 | X8: 216.4 | Y8: EXIOBASE 3.10 pxp | Z8: EXIO Hybrid
A9: DK | B9: 294.0 | C9: 283.0 | D9: 262.8 | E9: 170.6 | F9: 293.7 | G9: 471.1 | H9: 216.5 | I9: 30.1 | J9: 17.2 | K9: 154.4 | L9: 154.4 | M9: 208.3 | N9: 70.5 | O9: 208.3 | P9: 202.0 | Q9: 124.6 | R9: 0.6 | S9: 17.2 | T9: 471.1 | U9: 218% | V9: 154.4 | W9: 283.0 | X9: 128.6 | Y9: EXIOBASE 3.10 pxp | Z9: EXIO Hybrid
A10: EE | B10: 778.0 | C10: 583.0 | D10: 782.3 | E10: 725.2 | F10: 789.1 | G10: 1,406.7 | H10: 582.4 | I10: 290.9 | J10: 260.7 | K10: 647.3 | L10: 647.3 | M10: 961.1 | N10: 746.4 | O10: 725.2 | P10: 707.7 | Q10: 286.3 | R10: 0.4 | S10: 260.7 | T10: 1406.7 | U10: 158% | V10: 583.0 | W10: 782.3 | X10: 199.4 | Y10: EXIOBASE 3.10 pxp | Z10: EXIO Hybrid
A11: ES | B11: 329.0 | C11: 329.0 | D11: 280.2 | E11: 301.5 | F11: 307.7 | G11: 599.7 | H11: 236.5 | I11: 259.9 | J11: 214.7 | K11: 270.7 | L11: 270.7 | M11: 367.3 | N11: 137.9 | O11: 280.2 | P11: 300.4 | Q11: 107.0 | R11: 0.4 | S11: 137.9 | T11: 599.7 | U11: 165% | V11: 259.9 | W11: 329.0 | X11: 61.0 | Y11: EMERGING 1 | Z11: EXIO Hybrid
A12: FI | B12: 229.0 | C12: 186.0 | D12: 200.9 | E12: 95.5 | F12: 223.2 | G12: 627.1 | H12: 247.2 | I12: 70.9 | J12: 62.9 | K12: 157.9 | L12: 157.9 | M12: 226.9 | N12: 152.4 | O12: 186.0 | P12: 202.9 | Q12: 141.1 | R12: 0.7 | S12: 62.9 | T12: 627.1 | U12: 303% | V12: 152.4 | W12: 226.9 | X12: 84.6 | Y12: EXIOBASE 3.10 pxp | Z12: EXIO Hybrid
A13: FR | B13: 72.0 | C13: 78.3 | D13: 72.3 | E13: 86.1 | F13: 74.7 | G13: 199.5 | H13: 78.1 | I13: 62.8 | J13: 63.0 | K13: 105.6 | L13: 105.6 | M13: 134.7 | N13: 59.2 | O13: 78.1 | P13: 91.7 | Q13: 38.8 | R13: 0.4 | S13: 59.2 | T13: 199.5 | U13: 180% | V13: 72.0 | W13: 105.6 | X13: 33.3 | Y13: EMERGING 1 | Z13: EXIO Hybrid
A14: GR | B14: 776.0 | C14: 580.0 | D14: 494.8 | E14: 651.4 | F14: 553.9 | G14: 831.5 | H14: 587.5 | I14: 246.7 | J14: 231.7 | K14: 329.1 | L14: 329.1 | M14: 840.3 | N14: 415.9 | O14: 553.9 | P14: 528.3 | Q14: 210.7 | R14: 0.4 | S14: 231.7 | T14: 840.3 | U14: 110% | V14: 329.1 | W14: 651.4 | X14: 322.3 | Y14: EXIOBASE 3.10 pxp | Z14: GTAP 11
A15: HR | B15: 261.0 | C15: 256.0 | D15: 246.7 | E15: 386.0 | F15: 259.0 | G15: 432.9 | H15: 237.5 | I15: 213.1 | J15: 180.1 | K15: 155.3 | L15: 155.3 | M15: 376.7 | N15: 116.2 | O15: 246.7 | P15: 252.0 | Q15: 95.9 | R15: 0.4 | S15: 116.2 | T15: 432.9 | U15: 128% | V15: 180.1 | W15: 261.0 | X15: 56.2 | Y15: EMERGING 1 | Z15: EXIO Hybrid
A16: HU | B16: 354.0 | C16: 291.0 | D16: 270.0 | E16: 289.2 | F16: 296.5 | G16: 454.6 | H16: 239.4 | I16: 152.7 | J16: 158.8 | K16: 234.3 | L16: 234.3 | M16: 318.2 | N16: 123.1 | O16: 270.0 | P16: 262.8 | Q16: 89.2 | R16: 0.3 | S16: 123.1 | T16: 454.6 | U16: 123% | V16: 234.3 | W16: 296.5 | X16: 62.2 | Y16: EMERGING 1 | Z16: EXIO Hybrid
A17: IE | B17: 409.0 | C17: 404.0 | D17: 453.5 | E17: 401.1 | F17: 488.4 | G17: 776.0 | H17: 381.5 | I17: 343.1 | J17: 328.6 | K17: 395.6 | L17: 395.6 | M17: 637.9 | N17: 268.5 | O17: 401.1 | P17: 437.1 | Q17: 134.4 | R17: 0.3 | S17: 268.5 | T17: 776.0 | U17: 127% | V17: 381.5 | W17: 453.5 | X17: 61.4 | Y17: EMERGING 1 | Z17: EXIO Hybrid
A18: IT | B18: 456.0 | C18: 393.0 | D18: 322.4 | E18: 382.0 | F18: 339.9 | G18: 720.4 | H18: 246.2 | I18: 243.3 | J18: 226.8 | K18: 284.7 | L18: 284.7 | M18: 392.2 | N18: 147.3 | O18: 322.4 | P18: 341.5 | Q18: 141.4 | R18: 0.4 | S18: 147.3 | T18: 720.4 | U18: 178% | V18: 246.2 | W18: 392.2 | X18: 117.2 | Y18: EMERGING 1 | Z18: EXIO Hybrid
A19: LT | B19: 190.0 | C19: 183.0 | D19: 146.6 | E19: 89.0 | F19: 142.6 | G19: 284.5 | H19: 247.3 | I19: 44.8 | J19: 36.8 | K19: 93.4 | L19: 93.4 | M19: 93.1 | N19: 30.4 | O19: 93.4 | P19: 128.8 | Q19: 79.6 | R19: 0.6 | S19: 30.4 | T19: 284.5 | U19: 272% | V19: 89.0 | W19: 183.0 | X19: 90.9 | Y19: EMERGING 1 | Z19: EXIO Hybrid
A20: LU | E20: 363.4 | H20: 108.3 | I20: 73.9 | J20: 43.1 | K20: 38.7 | L20: 38.7 | M20: 242.1 | N20: 556.4 | O20: 91.1 | P20: 183.1 | Q20: 190.6 | R20: 1.0 | S20: 38.7 | T20: 556.4 | U20: 568% | V20: 42.0 | W20: 272.4 | X20: 231.5 | Y20: GLORIA 0.6 act | Z20: EMERGING 1
A21: LV | B21: 211.0 | C21: 141.0 | D21: 149.2 | E21: 477.0 | F21: 139.7 | G21: 252.1 | H21: 249.3 | I21: 55.1 | J21: 35.4 | K21: 147.1 | L21: 147.1 | M21: 200.1 | N21: 82.3 | O21: 147.1 | P21: 175.9 | Q21: 112.4 | R21: 0.6 | S21: 35.4 | T21: 477.0 | U21: 300% | V21: 139.7 | W21: 211.0 | X21: 70.3 | Y21: EXIOBASE 3.10 pxp | Z21: JRC
A22: MT | E22: 492.5 | H22: 586.7 | I22: 190.1 | J22: 141.8 | K22: 246.2 | L22: 246.2 | M22: 642.0 | N22: 261.2 | O22: 253.7 | P22: 350.8 | Q22: 192.7 | R22: 0.5 | S22: 141.8 | T22: 642.0 | U22: 197% | V22: 232.2 | W22: 516.1 | X22: 297.9 | Y22: EXIOBASE 3.10 pxp | Z22: GTAP 11
A23: NL | B23: 579.0 | C23: 490.0 | D23: 560.6 | E23: 476.3 | F23: 618.3 | G23: 663.8 | H23: 215.6 | I23: 256.6 | J23: 231.5 | K23: 305.6 | L23: 305.6 | M23: 516.7 | N23: 329.7 | O23: 476.3 | P23: 426.9 | Q23: 157.8 | R23: 0.4 | S23: 215.6 | T23: 663.8 | U23: 94% | V23: 305.6 | W23: 560.6 | X23: 267.2 | Y23: EORA 199.82 | Z23: EXIO Hybrid
A24: PL | B24: 956.0 | C24: 806.0 | D24: 711.6 | E24: 872.8 | F24: 843.8 | G24: 1,641.5 | H24: 374.6 | I24: 460.7 | J24: 404.2 | K24: 629.2 | L24: 629.2 | M24: 866.0 | N24: 429.0 | O24: 711.6 | P24: 740.3 | Q24: 336.0 | R24: 0.5 | S24: 374.6 | T24: 1641.5 | U24: 178% | V24: 460.7 | W24: 866.0 | X24: 278.9 | Y24: EORA 199.82 | Z24: EXIO Hybrid
A25: PT | B25: 476.0 | C25: 434.0 | D25: 383.2 | E25: 352.7 | F25: 420.9 | G25: 724.8 | H25: 243.3 | I25: 290.2 | J25: 250.6 | K25: 282.5 | L25: 282.5 | M25: 566.0 | N25: 457.5 | O25: 383.2 | P25: 397.2 | Q25: 139.3 | R25: 0.4 | S25: 243.3 | T25: 724.8 | U25: 126% | V25: 282.5 | W25: 457.5 | X25: 174.9 | Y25: EORA 199.82 | Z25: EXIO Hybrid
A26: RO | B26: 488.0 | C26: 369.0 | D26: 317.8 | E26: 503.4 | F26: 358.5 | G26: 547.7 | H26: 404.1 | I26: 360.5 | J26: 360.5 | K26: 311.9 | L26: 311.9 | M26: 451.3 | N26: 236.8 | O26: 360.5 | P26: 386.3 | Q26: 89.0 | R26: 0.2 | S26: 236.8 | T26: 547.7 | U26: 86% | V26: 317.8 | W26: 451.3 | X26: 102.9 | Y26: EMERGING 1 | Z26: EXIO Hybrid
A27: SE | B27: 20.0 | C27: 42.5 | D27: 17.2 | E27: 27.5 | F27: 12.0 | G27: 10.4 | H27: 44.3 | I27: 9.5 | J27: 8.7 | K27: 48.3 | L27: 48.3 | M27: 38.4 | N27: 16.2 | O27: 20.0 | P27: 26.4 | Q27: 15.8 | R27: 0.6 | S27: 8.7 | T27: 48.3 | U27: 198% | V27: 12.0 | W27: 42.5 | X27: 30.9 | Y27: EXIOBASE 3.10 pxp | Z27: GLORIA 0.6 act
A28: SI | B28: 327.0 | C28: 318.0 | D28: 259.3 | E28: 249.6 | F28: 302.4 | G28: 383.8 | H28: 416.4 | I28: 217.9 | J28: 152.8 | K28: 211.2 | L28: 211.2 | M28: 433.7 | N28: 252.7 | O28: 259.3 | P28: 287.4 | Q28: 85.7 | R28: 0.3 | S28: 152.8 | T28: 433.7 | U28: 108% | V28: 217.9 | W28: 327.0 | X28: 110.7 | Y28: EXIOBASE 3.10 pxp | Z28: GTAP 11
A29: SK | B29: 234.0 | C29: 183.0 | D29: 133.5 | E29: 397.3 | F29: 147.2 | G29: 272.6 | H29: 163.4 | I29: 168.0 | J29: 107.6 | K29: 238.9 | L29: 239.0 | M29: 350.9 | N29: 153.5 | O29: 183.0 | P29: 214.5 | Q29: 86.1 | R29: 0.4 | S29: 107.6 | T29: 397.3 | U29: 158% | V29: 153.5 | W29: 239.0 | X29: 79.6 | Y29: EXIOBASE 3.10 pxp | Z29: JRC
A30: US | B30: 468.0 | C30: 469.0 | D30: 423.8 | F30: 473.9 | G30: 842.7 | H30: 362.4 | I30: 464.4 | J30: 434.2 | K30: 413.0 | L30: 413.0 | M30: 494.2 | N30: 405.8 | O30: 449.3 | P30: 472.0 | Q30: 122.5 | R30: 0.3 | S30: 362.4 | T30: 842.7 | U30: 107% | V30: 413.0 | W30: 470.2 | X30: 51.8 | Y30: EORA 199.82 | Z30: EXIO Hybrid

Sheet Stat analysis LCCI 2023
B1: Physical | C1: Physical | D1: Physical | E1: Hybrid | F1: Monetary | G1: Monetary | H1: Monetary | I1: Stats | S1: Sources comparison
A2: Paese | B2: Electricity Maps | C2: IPCC | D2: NREL | E2: EXIO Hybrid | F2: GLORIA 0.6 act | G2: GLORIA 0.6 com | H2: EMERGING 2 | I2: Median | J2: Mean | K2: Standard dev | L2: CV% | M2: Min | N2: Max | O2: Relative dispersion% | P2: Q1 | Q2: Q2 | R2: IQR | S2: Source min | T2: Source max
A3: AT | B3: 76.0 | C3: 81.0 | D3: 72.5 | E3: 273.6 | F3: 292.8 | G3: 292.8 | H3: =VLOOKUP(A3,[1]physical_efs!$H$254:$J$281,3,FALSE) -> 448.1 | I3: =MEDIAN(B3:H3) -> 273.6 | J3: =AVERAGE(B3:H3) -> 219.6 | K3: =_xlfn.STDEV.P(B3:H3) -> 134.9 | L3: =K3/J3 -> 0.6 | M3: =MIN(B3:H3) -> 72.5 | N3: =MAX(B3:H3) -> 448.1 | O3: =(N3-M3)/I3 -> 137% | P3: =_xlfn.QUARTILE.EXC(B3:H3,1) -> 76.0 | Q3: =_xlfn.QUARTILE.EXC(B3:H3,2) -> 273.6 | R3: =_xlfn.QUARTILE.EXC(B3:H3,3) -> 292.8 | S3: =INDEX($B$2:$H$2,MATCH(M3,B3:H3,0)) -> NREL | T3: =INDEX($B$2:$H$2,MATCH(N3,B3:H3,0)) -> EMERGING 2
A4: BE | B4: 171.0 | C4: 124.0 | D4: 125.4 | E4: 250.2 | F4: 191.2 | G4: 191.2 | H4: =VLOOKUP(A4,[1]physical_efs!$H$254:$J$281,3,FALSE) -> 246.9 | I4: =MEDIAN(B4:H4) -> 191.2 | J4: =AVERAGE(B4:H4) -> 185.7 | K4: =_xlfn.STDEV.P(B4:H4) -> 47.2 | L4: =K4/J4 -> 0.3 | M4: =MIN(B4:H4) -> 124.0 | N4: =MAX(B4:H4) -> 250.2 | O4: =(N4-M4)/I4 -> 66% | P4: =_xlfn.QUARTILE.EXC(B4:H4,1) -> 125.4 | Q4: =_xlfn.QUARTILE.EXC(B4:H4,2) -> 191.2 | R4: =_xlfn.QUARTILE.EXC(B4:H4,3) -> 246.9 | S4: =INDEX($B$2:$H$2,MATCH(M4,B4:H4,0)) -> IPCC | T4: =INDEX($B$2:$H$2,MATCH(N4,B4:H4,0)) -> EXIO Hybrid
A5: BG | B5: 412.0 | C5: 316.5 | D5: 371.4 | E5: 615.1 | F5: 472.2 | G5: 472.2 | H5: =VLOOKUP(A5,[1]physical_efs!$H$254:$J$281,3,FALSE) -> 285.7 | I5: 412.0 | J5: 420.7 | K5: 103.3 | L5: 0.2 | M5: 285.7 | N5: 615.1 | O5: 80% | P5: 316.5 | Q5: 412.0 | R5: 472.2 | S5: EMERGING 2 | T5: EXIO Hybrid
A6: CY | B6: 831.0 | F6: 1,341.3 | G6: 1,341.3 | H6: =VLOOKUP(A6,[1]physical_efs!$H$254:$J$281,3,FALSE) -> 316.5 | I6: 1,086.2 | J6: 957.5 | K6: 424.7 | L6: 0.4 | M6: 316.5 | N6: 1341.3 | O6: 94% | P6: 445.1 | Q6: 1,086.2 | R6: 1,341.3 | S6: EMERGING 2 | T6: GLORIA 0.6 com
A7: CZ | B7: 506.0 | C7: 365.0 | D7: 428.5 | E7: 941.0 | F7: 597.6 | G7: 597.6 | H7: =VLOOKUP(A7,[1]physical_efs!$H$254:$J$281,3,FALSE) -> 1,122.9 | I7: 597.6 | J7: 651.2 | K7: 257.7 | L7: 0.4 | M7: 365.0 | N7: 1122.9 | O7: 127% | P7: 428.5 | Q7: 597.6 | R7: 941.0 | S7: IPCC | T7: EMERGING 2
A8: DE | B8: 405.0 | C8: 314.5 | D8: 359.3 | E8: 570.3 | F8: 224.0 | G8: 224.0 | H8: =VLOOKUP(A8,[1]physical_efs!$H$254:$J$281,3,FALSE) -> 250.9 | I8: 314.5 | J8: 335.4 | K8: 115.2 | L8: 0.3 | M8: 224.0 | N8: 570.3 | O8: 110% | P8: 224.0 | Q8: 314.5 | R8: 405.0 | S8: GLORIA 0.6 act | T8: EXIO Hybrid
A9: DK | B9: 166.0 | C9: 163.1 | D9: 181.9 | E9: 282.3 | F9: 138.9 | G9: 138.9 | H9: =VLOOKUP(A9,[1]physical_efs!$H$254:$J$281,3,FALSE) -> 202.0 | I9: 166.0 | J9: 181.9 | K9: 46.0 | L9: 0.3 | M9: 138.9 | N9: 282.3 | O9: 86% | P9: 138.9 | Q9: 166.0 | R9: 202.0 | S9: GLORIA 0.6 com | T9: EXIO Hybrid
A10: EE | B10: 572.0 | C10: 504.4 | D10: 522.6 | E10: 853.9 | F10: 435.4 | G10: 435.4 | H10: =VLOOKUP(A10,[1]physical_efs!$H$254:$J$281,3,FALSE) -> 425.8 | I10: 504.4 | J10: 535.6 | K10: 139.3 | L10: 0.3 | M10: 425.8 | N10: 853.9 | O10: 85% | P10: 435.4 | Q10: 504.4 | R10: 572.0 | S10: EMERGING 2 | T10: EXIO Hybrid
A11: ES | B11: 155.0 | C11: 138.0 | D11: 141.3 | E11: 256.0 | F11: 242.2 | G11: 242.2 | H11: =VLOOKUP(A11,[1]physical_efs!$H$254:$J$281,3,FALSE) -> 162.0 | I11: 162.0 | J11: 191.0 | K11: 49.1 | L11: 0.3 | M11: 138.0 | N11: 256.0 | O11: 73% | P11: 141.3 | Q11: 162.0 | R11: 242.2 | S11: IPCC | T11: EXIO Hybrid
A12: FI | B12: 92.0 | C12: 76.5 | D12: 81.9 | E12: 227.2 | F12: 136.6 | G12: 136.6 | H12: =VLOOKUP(A12,[1]physical_efs!$H$254:$J$281,3,FALSE) -> 96.2 | I12: 96.2 | J12: 121.0 | K12: 48.9 | L12: 0.4 | M12: 76.5 | N12: 227.2 | O12: 157% | P12: 81.9 | Q12: 96.2 | R12: 136.6 | S12: IPCC | T12: EXIO Hybrid
A13: FR | B13: 42.0 | C13: 48.4 | D13: 48.5 | E13: 137.1 | F13: 89.3 | G13: 89.3 | H13: =VLOOKUP(A13,[1]physical_efs!$H$254:$J$281,3,FALSE) -> 138.9 | I13: 89.3 | J13: 84.8 | K13: 38.1 | L13: 0.4 | M13: 42.0 | N13: 138.9 | O13: 108% | P13: 48.4 | Q13: 89.3 | R13: 137.1 | S13: Electricity Maps | T13: EMERGING 2
A14: GR | B14: 305.0 | C14: 279.4 | D14: 297.6 | E14: 470.1 | F14: 463.6 | G14: 463.6 | H14: =VLOOKUP(A14,[1]physical_efs!$H$254:$J$281,3,FALSE) -> 725.5 | I14: 463.6 | J14: 429.3 | K14: 144.9 | L14: 0.3 | M14: 279.4 | N14: 725.5 | O14: 96% | P14: 297.6 | Q14: 463.6 | R14: 470.1 | S14: IPCC | T14: EMERGING 2
A15: HR | B15: 238.0 | C15: 186.1 | D15: 189.8 | E15: 314.7 | F15: 256.5 | G15: 256.5 | H15: =VLOOKUP(A15,[1]physical_efs!$H$254:$J$281,3,FALSE) -> 263.3 | I15: 256.5 | J15: 243.6 | K15: 41.4 | L15: 0.2 | M15: 186.1 | N15: 314.7 | O15: 50% | P15: 189.8 | Q15: 256.5 | R15: 263.3 | S15: IPCC | T15: EXIO Hybrid
A16: HU | B16: 246.0 | C16: 195.5 | D16: 211.6 | E16: 335.3 | F16: 308.2 | G16: 308.2 | H16: =VLOOKUP(A16,[1]physical_efs!$H$254:$J$281,3,FALSE) -> 413.5 | I16: 308.2 | J16: 288.4 | K16: 70.7 | L16: 0.2 | M16: 195.5 | N16: 413.5 | O16: 71% | P16: 211.6 | Q16: 308.2 | R16: 335.3 | S16: IPCC | T16: EMERGING 2
A17: IE | B17: 415.0 | C17: 303.1 | D17: 313.1 | E17: 521.6 | F17: 499.6 | G17: 499.6 | H17: =VLOOKUP(A17,[1]physical_efs!$H$254:$J$281,3,FALSE) -> 423.8 | I17: 423.8 | J17: 425.1 | K17: 82.8 | L17: 0.2 | M17: 303.1 | N17: 521.6 | O17: 52% | P17: 313.1 | Q17: 423.8 | R17: 499.6 | S17: IPCC | T17: EXIO Hybrid
A18: IT | B18: 362.0 | C18: 310.1 | D18: 320.8 | E18: 698.1 | F18: 382.9 | G18: 382.9 | H18: =VLOOKUP(A18,[1]physical_efs!$H$254:$J$281,3,FALSE) -> 330.7 | I18: 362.0 | J18: 398.2 | K18: 125.4 | L18: 0.3 | M18: 310.1 | N18: 698.1 | O18: 107% | P18: 320.8 | Q18: 362.0 | R18: 382.9 | S18: IPCC | T18: EXIO Hybrid
A19: LT | B19: 127.0 | C19: 101.5 | D19: 101.6 | E19: 193.2 | F19: 99.6 | G19: 99.6 | H19: =VLOOKUP(A19,[1]physical_efs!$H$254:$J$281,3,FALSE) -> 134.6 | I19: 101.6 | J19: 122.5 | K19: 31.8 | L19: 0.3 | M19: 99.6 | N19: 193.2 | O19: 92% | P19: 99.6 | Q19: 101.6 | R19: 134.6 | S19: GLORIA 0.6 com | T19: EXIO Hybrid
A20: LU | F20: 49.0 | G20: 49.0 | H20: =VLOOKUP(A20,[1]physical_efs!$H$254:$J$281,3,FALSE) -> 405.7 | I20: 49.0 | J20: 167.9 | K20: 168.2 | L20: 1.0 | M20: 49.0 | N20: 405.7 | O20: 728% | P20: 49.0 | Q20: 49.0 | R20: 405.7 | S20: GLORIA 0.6 com | T20: EMERGING 2
A21: LV | B21: 157.0 | C21: 145.5 | D21: 135.7 | E21: 271.8 | F21: 121.4 | G21: 121.4 | H21: =VLOOKUP(A21,[1]physical_efs!$H$254:$J$281,3,FALSE) -> 514.2 | I21: 145.5 | J21: 209.6 | K21: 133.4 | L21: 0.6 | M21: 121.4 | N21: 514.2 | O21: 270% | P21: 121.4 | Q21: 145.5 | R21: 271.8 | S21: GLORIA 0.6 com | T21: EMERGING 2
A22: MT | F22: 328.0 | G22: 328.0 | H22: =VLOOKUP(A22,[1]physical_efs!$H$254:$J$281,3,FALSE) -> 478.7 | I22: 328.0 | J22: 378.3 | K22: 71.0 | L22: 0.2 | M22: 328.0 | N22: 478.7 | O22: 46% | P22: 328.0 | Q22: 328.0 | R22: 478.7 | S22: GLORIA 0.6 com | T22: EMERGING 2
A23: NL | B23: 288.0 | C23: 369.9 | D23: 396.0 | E23: 427.6 | F23: 402.3 | G23: 402.3 | H23: =VLOOKUP(A23,[1]physical_efs!$H$254:$J$281,3,FALSE) -> 275.9 | I23: 396.0 | J23: 366.0 | K23: 55.5 | L23: 0.2 | M23: 275.9 | N23: 427.6 | O23: 38% | P23: 288.0 | Q23: 396.0 | R23: 402.3 | S23: EMERGING 2 | T23: EXIO Hybrid
A24: PL | B24: 777.0 | C24: 582.4 | D24: 685.0 | E24: 1,359.4 | F24: 797.1 | G24: 797.1 | H24: =VLOOKUP(A24,[1]physical_efs!$H$254:$J$281,3,FALSE) -> 837.0 | I24: 797.1 | J24: 833.6 | K24: 229.1 | L24: 0.3 | M24: 582.4 | N24: 1359.4 | O24: 97% | P24: 685.0 | Q24: 797.1 | R24: 837.0 | S24: IPCC | T24: EXIO Hybrid
A25: PT | B25: 152.0 | C25: 138.7 | D25: 135.3 | E25: 218.3 | F25: 308.5 | G25: 308.5 | H25: =VLOOKUP(A25,[1]physical_efs!$H$254:$J$281,3,FALSE) -> 228.6 | I25: 218.3 | J25: 212.8 | K25: 69.5 | L25: 0.3 | M25: 135.3 | N25: 308.5 | O25: 79% | P25: 138.7 | Q25: 218.3 | R25: 308.5 | S25: NREL | T25: GLORIA 0.6 act
A26: RO | B26: 280.0 | C26: 215.2 | D26: 234.2 | E26: 385.3 | F26: 125.4 | G26: 125.4 | H26: =VLOOKUP(A26,[1]physical_efs!$H$254:$J$281,3,FALSE) -> 1,083.8 | I26: 234.2 | J26: 349.9 | K26: 311.0 | L26: 0.9 | M26: 125.4 | N26: 1083.8 | O26: 409% | P26: 125.4 | Q26: 234.2 | R26: 385.3 | S26: GLORIA 0.6 com | T26: EMERGING 2
A27: SE | B27: 21.0 | C27: 17.3 | D27: 12.2 | E27: 12.7 | F27: 37.7 | G27: 37.8 | H27: =VLOOKUP(A27,[1]physical_efs!$H$254:$J$281,3,FALSE) -> 23.2 | I27: 21.0 | J27: 23.1 | K27: 10.0 | L27: 0.4 | M27: 12.2 | N27: 37.8 | O27: 121% | P27: 12.7 | Q27: 21.0 | R27: 37.7 | S27: NREL | T27: GLORIA 0.6 com
A28: SI | B28: 251.0 | C28: 195.4 | D28: 223.5 | E28: 292.3 | F28: 259.3 | G28: 259.3 | H28: =VLOOKUP(A28,[1]physical_efs!$H$254:$J$281,3,FALSE) -> 522.0 | I28: 259.3 | J28: 286.1 | K28: 100.4 | L28: 0.4 | M28: 195.4 | N28: 522.0 | O28: 126% | P28: 223.5 | Q28: 259.3 | R28: 292.3 | S28: IPCC | T28: EMERGING 2
A29: SK | B29: 139.0 | C29: 95.9 | D29: 99.7 | E29: 199.8 | F29: 312.5 | G29: 312.5 | H29: =VLOOKUP(A29,[1]physical_efs!$H$254:$J$281,3,FALSE) -> 511.7 | I29: 199.8 | J29: 238.7 | K29: 139.7 | L29: 0.6 | M29: 95.9 | N29: 511.7 | O29: 208% | P29: 99.7 | Q29: 199.8 | R29: 312.5 | S29: IPCC | T29: EMERGING 2
A30: US | B30: 421.0 | C30: 359.5 | D30: 385.6 | E30: 643.9 | F30: 649.7 | G30: 649.7 | H30: =VLOOKUP(A30,[1]physical_efs!$H$254:$J$281,3,FALSE) -> 643.7 | I30: 643.7 | J30: 536.2 | K30: 128.8 | L30: 0.2 | M30: 359.5 | N30: 649.7 | O30: 45% | P30: 385.6 | Q30: 643.7 | R30: 649.7 | S30: IPCC | T30: GLORIA 0.6 act

Sheet Data Sources' Details
A1: Data source and publication year (or version) | B1: Acronym | C1: Available data years | D1: Available regional detail | E1: Carbon intensities analyzed | F1: GHGs included | G1: Electricity generation technologies | H1: Handling co-products | I1: Unit type | J1: Database type | K1: Reference | L1: Prices
A2: EXIOBASE Hybrid SUT v3.3.18 | B2: EXIO Hybrid | C2: 2011 | D2: AT, BE, BG, CY, CZ, DE, DK, EE, ES, FI, FR, GR, HR, HU, IE, IT, LT, LU, LV, MT, NL, PL, PT, RO, SE, SI, SK, GB, US, JP, CN, CA, KR, BR, IN, MX, RU, AU, CH, TR, NO, ID, ZA, RoW Asia and Pacific, RoW America, RoW Europe, RoW Africa, RoW Middle East | E2: Direct CI, Life-Cycle CI | F2: CO2, N2O, CH4, SF6, HFCs | G2: Production of electricity by coal, Production of electricity by biomass and waste, Production of electricity by Geothermal, Production of electricity by hydro, Production of electricity by gas, Production of electricity nec, Production of electricity by nuclear, Production of electricity by petroleum and other oil derivatives, Production of electricity by solar photovoltaic; Production of electricity by solar thermal, Production of electricity by tide, wave, ocean, Production of electricity by wind | H2: Industry-based | I2: Physical | J2: EEIOT | K2: (Stadler et al., 2021a) | L2: NA
A3: Ecoinvent v3.4 via Steubing et al. | B3: Ecoinvent | D3: 216 regions (sub-regions, nations, clusters), but geographical information removed for this study for licenced data (following Steubing et al., 2022) | E3: Life-Cycle CI | F3: CO2, N2O, CH4, SF6, HFCs | G3: Coal, Biomass, Waste, Geothermal, Hydroelectric, Natural Gas, Industrial gasses, Nuclear, Petroleum products, Photovoltaics, Wind | H3: Cut-off | J3: P-LCA | K3: (“Ecoinvent,” 2025; Steubing et al., 2022) | L3: NA
I4: Physical
A5: IEA emission factors per plant 2024 | B5: IEA (CHP) | C5: 1990-2023 | D5: AL, DZ, AO, AR, AM, AU, AT, AZ, BH, BD, BY, BE, BJ, BO, BA, BW, BR, BN, BG, KH, CM, CA, CL, CN, CO, CG, CD, CR, CI, HR, CU, CW, CY, CZ, DK, DO, EC, EG, SV, GQ, ER, EE, ET, SZ, FI, FR, GA, GE, DE, GH, GI, GR, GT, GY, HT, HN, HK, HU, IS, IN, ID, IR, IQ, IE, IL, IT, JM, JP, JO, KZ, KE, KR, KP, XK, KW, KG, LA, LV, LB, LY, LT, LU, MG, MY, MT, MU, MX, MD, MN, ME, MA, MZ, MM, NA, NP, NL, NZ, NI, NE, NG, MK, NO, OM, PK, PA, PY, PE, PH, PL, PT, QA, RO, RU, RW, SA, SN, RS, SG, SK, SI, ZA, ES, LK, SS, SD, SR, SE, CH, SY, TW, TJ, TZ, TH, TG, TT, TN, TR, TM, AE, UG, GB, UA, UY, US, UZ, VE, VN, YE, ZM, ZW, World, OECD Total, OECD Americas, OECD Asia Oceania, OECD Europe, Africa, Non-OECD Americas, Middle East, Non-OECD Europe and Eurasia, Non-OECD Asia (excluding China), China (PR of China and Hong Kong China) | E5: Life-Cycle CI | F5: CO2, N2O, CH4 | G5: Coal peat and oil shale, Non-renewable wastes, Natural gas, Oil | H5: Electricity and heat CHP/ | I5: Physical | J5: Primary data | K5: (IEA, 2024b) | L5: NA
B6: IEA (ele) | H6: Electricity output only
A7: Electricity Maps 2025 | B7: Electricity Maps | D7: AD, AE, AF, AG, AL, AM, AO, AR, AT, AU, AW, AX, AZ, BA, BB, BD, BE, BF, BG, BH, BI, BJ, BN, BO, BR, BS, BT, BW, BY, BZ, CD, CF, CG, CH, CI, CM, CN, CO, CR, CU, CV, CY, CZ, DE, DJ, DK, DM, DO, DZ, EC, EE, EG, EH, ER, ES, ET, FI, FJ, FK, FM, FO, FR, GA, GB, GE, GF, GG, GH, GI, GL, GM, GN, GP, GQ, GR, GS, GT, GU, GW, GY, HK, HM, HN, HR, HT, HU, ID, IE, IL, IM, IN, IQ, IR, IS, IT, JE, JM, JO, JP, KE, KG, KH, KM, KP, KR, KW, KZ, LA, LB, LC, LI, LK, LR, LS, LT, LU, LV, LY, MA, MD, ME, MG, MK, ML, MM, MN, MQ, MR, MT, MU, MW, MX, MY, MZ, NA, NC, NE, NG, NI, NL, NO, NP, NZ, OM, PA, PE, PF, PG, PH, PK, PL, PM, PR, PS, PT, PW, PY, QA, RE, RO, RS, RU, RW, SA, SB, SD, SE, SG, SI, SJ, SK, SL, SN, SO, SR, SS, ST, SV, SY, SZ, TD, TF, TG, TH, TJ, TL, TM, TN, TO, TR, TT, TW, TZ, UA, UG, US, UY, UZ, VC, VE, VI, VN, VU, WS, XK, XX, YE, YT, ZA, ZM, ZW (and sub-regions) | E7: Direct CI, Life-Cycle CI | F7: Generic CO2-eq | G7: Coal, Biomass, Geothermal, Hydro, Gas, Unknown, Oil, Solar, Wind | I7: Physical | J7: Secondary data | K7: (Electricity Maps, 2024) | L7: NA
A8: NREL harmonization 2021 | B8: NREL | D8: x | E8: Life-Cycle CI | F8: Generic CO2-eq | G8: Coal, Natural gas, Nuclear, Solar photovoltaics, Concentrating solar power, Wind | I8: Physical | J8: Secondary data | K8: (National Renewable Energy Laboratory, 2021) | L8: NA
A9: IPCC AR5 WG3 (Annex III) | B9: IPCC | D9: x | E9: Direct CI, Life-Cycle CI | F9: Generic CO2-eq | G9: Coal, Biomass dedicated, Geothermal, Hydropower, Gas - Combined Cycle, Nuclear, Solar PV – Utility, Concentrated solar power, Ocean - Wave & Tidal, Wind | I9: Physical | J9: Secondary data | K9: (Schlömer et al., 2014) | L9: NA
A10: EXIOBASE IOT ixi/pxp v3.10.2 | B10: EXIO ixi | C10: 1995-2024 | D10: AT, BE, BG, CY, CZ, DE, DK, EE, ES, FI, FR, GR, HR, HU, IE, IT, LT, LU, LV, MT, NL, PL, PT, RO, SE, SI, SK, GB, US, JP, CN, CA, KR, BR, IN, MX, RU, AU, CH, TR,TW, NO, ID, ZA, RoW Asia and Pacific, RoW America, RoW Europe, RoW Africa, RoW Middle East | E10: Direct CI, Life-Cycle CI | F10: CO2, N2O, CH4, SF6, HFCs | G10: Production of electricity by coal, Production of electricity by biomass and waste, Production of electricity by Geothermal, Production of electricity by hydro, Production of electricity by gas, Production of electricity nec, Production of electricity by nuclear, Production of electricity by petroleum and other oil derivatives, Production of electricity by solar photovoltaic; Production of electricity by solar thermal, Production of electricity by tide, wave, ocean, Production of electricity by wind | H10: Industry-based | I10: Monetary | J10: EEIOT | K10: (Stadler et al., 2025) | L10: Basic
B11: EXIO pxp
A12: EMERGING v2.2 | B12: EMERGING | C12: 2015, 2018, 2021, 2023 | D12: AW, AF, AO, AI, AL, AD, AN, BQ, CW, AE, AR, AM, AS, AQ, TF, AG, AU, AT, AZ, BI, BE, BJ, BF, BD, BG, BH, BS, BA, BL, BY, BZ, BM, BO, BR, BB, BN, BT, BW, BV, CF, CA, CC, CH, CL, CN, CI, CM, CD, CG, CK, CO, KM, CV, CR, CU, CX, KY, CY, CZ, DE, DJ, DM, DK, DO, DZ, EC, EG, ER, EH, ES, EE, TW, ET, LI, FI, FJ, FK, FR, FO, FM, GA, GB, GE, GH, GI, GN, GP, GM, GW, GQ, GR, GD, GL, GT, GU, GF, GY, HK, HM, HN, HR, HT, HU, ID, IN, IO, IE, IR, IQ, IS, IL, IT, JM, JO, JP, KZ, KE, KG, KH, KI, KN, KR, KW, LA, LB, LR, LY, LC, LK, LS, LT, LU, LV, MO, MA, MC, MD, MG, MV, MX, MH, MK, ML, MT, MM, MN, MP, ME, MZ, MR, MS, MQ, MU, MW, MY, YT, NA, NC, NE, NF, NG, NI, NU, NL, NO, NP, NR, NZ, OM, PK, PA, PE, PN, PH, PW, PG, PL, PR, KP, PT, PY, PS, PF, QA, RE, RO, RU, RW, SA, SD, SH, SN, RS, SG, GS, SJ, SB, SL, SV, SM, SO, PM, SS, ST, SR, SK, SI, SE, SZ, SX, SC, SY, TC, TD, TG, TH, TJ, TK, TM, TL, TO, TT, TN, TR, TV, TZ, UG, UA, UM, UY, US, UZ, VA, VC, VE, VG, VI, VN, VU, WF, WS, YE, ZA, ZM, ZW | E12: Direct CI, Life-Cycle CI | F12: CO2 | G12: Aggregated single sector | H12: Industry-based | I12: Monetary | J12: EEIOT | K12: (Huo et al. 2026) | L12: Basic
A13: EORA26 v199.82 | B13: EORA | C13: 1990-2023 (-2017 open access) | D13: AFG, ALB, DZA, AND, AGO, ATG, ARG, ARM, ABW, AUS, AUT, AZE, BHS, BHR, BGD, BRB, BLR, BEL, BLZ, BEN, BMU, BTN, BOL, BIH, BWA, BRA, VGB, BRN, BGR, BFA, BDI, KHM, CMR, CAN, CPV, CYM, CAF, TCD, CHL, CHN, COL, COG, CRI, HRV, CUB, CYP, CZE, CIV, PRK, COD, DNK, DJI, DOM, ECU, EGY, SLV, ERI, EST, ETH, FJI, FIN, FRA, PYF, GAB, GMB, GEO, DEU, GHA, GRC, GRL, GTM, GIN, GUY, HTI, HND, HKG, HUN, ISL, IND, IDN, IRN, IRQ, IRL, ISR, ITA, JAM, JPN, JOR, KAZ, KEN, KWT, KGZ, LAO, LVA, LBN, LSO, LBR, LBY, LIE, LTU, LUX, MAC, MDG, MWI, MYS, MDV, MLI, MLT, MRT, MUS, MEX, MCO, MNG, MNE, MAR, MOZ, MMR, NAM, NPL, NLD, ANT, NCL, NZL, NIC, NER, NGA, NOR, PSE, OMN, PAK, PAN, PNG, PRY, PER, PHL, POL, PRT, QAT, KOR, MDA, ROU, RUS, RWA, WSM, SMR, STP, SAU, SEN, SRB, SYC, SLE, SGP, SVK, SVN, SOM, ZAF, SDS, ESP, LKA, SUD, SUR, SWZ, SWE, CHE, SYR, TWN, TJK, THA, MKD, TGO, TTO, TUN, TUR, TKM, USR, UGA, UKR, ARE, GBR, TZA, USA, URY, UZB, VUT, VEN, VNM, YEM, ZMB, ZWE, ROW | E13: Direct CI, Life-Cycle CI | F13: CO2, N2O, CH4, NF3, SF6, HFCs, CFCs | G13: Aggregated single sector | H13: Industry-based | I13: Monetary | J13: EEIOT | K13: (Lenzenet al, 2013) | L13: Basic
A14: GLORIA v0.60 | B14: GLORIA act | C14: 1990-2025 | D14: XAM, XEU, XAF, XAS, AFG, AGO, ALB, ARE, ARG, ARM, AUS, AUT, AZE, BDI, BEL, BEN, BFA, BGD, BGR, BHR, BHS, BIH, BLR, BLZ, BOL, BRA, BRN, BTN, BWA, CAF, CAN, CHE, CHL, CHN, CIV, CMR, COD, COG, COL, CRI, CUB, CYP, CZE, DEU, DJI, DYE, DNK, DOM, DZA, ECU, EGY, ERI, ESP, EST, ETH, FIN, FRA, GAB, GBR, GEO, GHA, GIN, GMB, GNQ, GRC, GTM, HND, HKG, HRV, HTI, HUN, IDN, IND, IRL, IRN, IRQ, ISL, ISR, ITA, JAM, JOR, JPN, KAZ, KEN, KGZ, KHM, KOR, KWT, LAO, LBN, LBR, LBY, LKA, LTU, LUX, LVA, MAR, MDA, MDG, MEX, MKD, MLI, MLT, MMR, MNG, MOZ, MRT, MWI, MYS, NAM, NER, NGA, NIC, NLD, NOR, NPL, NZL, OMN, PAK, PSE, PAN, PER, PHL, PNG, POL, PRK, PRT, PRY, QAT, ROU, RUS, RWA, SAU, SDS, SEN, SGP, SLE, SLV, SOM, SRB, SDN, SVK, SVN, SWE, SYR, TCD, TGO, THA, TJK, TKM, TUN, TUR, TZA, UGA, UKR, URY, USA, UZB, VEN, VNM, YEM, ZAF, ZMB, ZWE | E14: Direct CI, Life-Cycle CI | F14: CO2, N2O, CH4, NF3, SF6, HFCs | G14: Aggregated single sector | H14: Industry-based | I14: Monetary | J14: EEIOT | K14: (ielab, 2026) | L14: Basic
B15: GLORIA com
A16: GTAP 11 | B16: GTAP | C16: 2004, 2007, 2011, 2014, 2017 | D16: AFG, XAC, ALB, ARE, ARG, ARM, AUS, AUT, AZE, XEC, BEL, BEN, BFA, BGD, BGR, BHR, BLR, BOL, BRA, BRN, BWA, CAF, CAN, CHE, CHL, CHN, CIV, CMR, COD, COG, COL, COM, CRI, CYP, CZE, DEU, DNK, DOM, DZA, ECU, EGY, ESP, EST, ETH, FIN, FRA, GAB, GBR, GEO, GHA, GIN, GNQ, GRC, GTM, HKG, HND, HRV, HTI, HUN, IDN, IND, IRL, IRN, IRQ, ISR, ITA, JAM, JOR, JPN, KAZ, KEN, KGZ, KHM, KOR, KWT, LAO, LBN, LKA, LTU, LUX, LVA, MAR, MDG, MEX, MLI, MLT, MNG, MOZ, MUS, MWI, MYS, NAM, NER, NGA, NIC, NLD, NOR, NPL, NZL, OMN, PAK, PAN, PER, PHL, POL, PRI, PRT, PRY, PSE, QAT, ROU, RUS, RWA, SAU, SDN, SEN, SGP, SLV, SRB, XAC, SVK, SVN, SWE, SWZ, SYR, TCD, TGO, THA, TJK, TTO, TUN, TUR, TWN, TZA, UGA, UKR, URY, USA, UZB, VEN, VNM, XCA, XCB, XEA, XEC, XEE, XEF, XER, XNA, XNF, XOC, XSA, XSC, XSE, XSM, XSU, XTW, XWF, XWS, ZAF, ZMB, ZWE | E16: Direct CI, Life-Cycle CI | F16: CO2, N2O, CH4, NF3, SF6, F-gasses | G16: Aggregated single sector | H16: Industry-based | I16: Monetary | J16: EEIOT | K16: (Aguiar, 2022) | L16: Basic
A17: EMBER 2025 | B17: EMBER | C17: 2000-2024 | D17: AF, AG, AL, AM, AO, AR, AS, AT, AU, AW, AZ, BA, BB, BD, BE, BF, BG, BH, BI, BJ, BM, BN, BO, BR, BS, BT, BW, BY, BZ, CA, CD, CF, CG, CH, CI, CK, CL, CM, CN, CO, CR, CU, CV, CY, CZ, DE, DJ, DK, DM, DO, DZ, EC, EG, EH, ER, ES, ET, FI, FJ, FK, FO, FR, GA, GB, GIB, GD, GE, GF, GH, GI, GL, GM, GN, GP, GQ, GR, GT, GU, GY, HK, HN, HR, HT, HU, ID, IE, IL, IN, IQ, IR, IS, IT, JM, JO, JP, KE, KG, KH, KI, KM, KN, KP, KR, KW, KY, KZ, LA, LB, LC, LD, LI, LK, LR, LS, LT, LU, LV, LY, MA, MD, ME, MG, MK, ML, MM, MN, MO, MQ, MR, MS, MT, MU, MW, MY, MV, MX, MZ, NA, NC, NE, NG, NI, NL, NO, NP, NR, NU, NZ, OM, PA, PE, PF, PG, PH, PK, PL, PM, PNG, PR, PS, PT, PY, QA, RE, RO, RS, RU, RW, SA, SC, SD, SE, SG, SH, SI, SK, SL, SO, SP, SR, SS, ST, SV, SY, SZ, TC, TD, TG, TH, TJ, TL, TM, TN, TO, TR, TT, TW, TZ, UA, UG, US, UY, UZ, VC, VE, VG, VI, VN, VU, WS, XK, YE, ZA, ZM, ZW | E17: Life-Cycle CI | F17: Generic CO2-eq | G17: Coal, Bioenergy, Hydro, Gas, Nuclear, Solar, Wind, Other renewables, Other fossil | I17: Physical | J17: Secondary data | K17: (EMBER, 2025b) | L17: NA
A18: JRC | B18: JRC | C18: 1990-2021 | D18: AT, BE, BG, CY, CZ, DE, DK, EE, ES, FI, FR, GR, HR, HU, IE, IT, LT, LU, LV, MT, NL, PL, PT, RO, SE, SI, SK, IS, NO, GB | E18: Direct CI, Life-Cycle CI | F18: CO2, N2O, CH4 | G18: Aggregated single sector | I18: Physical | J18: Secondary data | K18: (JRC, 2024) | L18: NA
A19: eGRID | B19: eGRID | C19: 2018-2023 | D19: US | E19: Direct CI | F19: CO2, N2O, CH4 | G19: Aggregated single sector | I19: Physical | J19: Secondary data | K19: (eGrid, 2023) | L19: NA
